Workbook

Sheet Welcome
B2: Customer Queue Calculator
B3: © Brad Cleveland
B4: Sponsored by: International Customer Management Institute (ICMI)
B5: Version 1.2, July 22, 2022

Sheet Staff
B2: Customer Queue Calculator
B3: © Brad Cleveland
B4: Sponsored by: International Customer Management Institute (ICMI)
J6: *Measured in seconds
D7: Average Talk Time* | E7: 180 | I7: Average After Contact Work Time* | J7: 30
D8: Contacts Per Half Hour | E8: 250 | I8: Service Level Objective* | J8: 20
B10: Agents | C10: Probablity of call queueing P(0) | D10: Average Speed of Answer (ASA)* | E10: Avg. Wait if Wait* (DLYDLY) | F10: Average Queue Size (Q1) | G10: Average Queue Size if Queue (Q2) | H10: Service Level (SL) | I10: Agent Occupancy (OCC) | J10: Trunkload (TKLD)
B11: =ROUNDUP((E7+J7)*E8*2/3600,0) -> 30 | C11: =IF(B11="","",IF(Queued(B11,$E$8*2,$E$7+$J$7)=1," Insufficient",Queued(B11,$E$8*2,$E$7+$J$7))) -> 0.8279871345 | D11: =IF(B11="","",IF(C11=" Insufficient","Staffing ",ASA(B11,$E$8*2,$E$7+$J$7))) -> 209 | E11: =IF(B11="","",IF(C11=" Insufficient","",($D11*$E$8)/($C11*$E$8))) -> 252.4193811 | F11: =IF(B11="","",IF(C11=" Insufficient","",QueueSize($B11,$E$8*2,($E$7+$J$7)))) -> 29 | G11: =IF(B11="","",IF(C11=" Insufficient","",IF(F11/C11>G10,G10,F11/C11))) -> 35.02469881 | H11: =IF(B11="","",IF(C11=" Insufficient","",SLA(B11,$J$8,$E$8*2,$E$7+$J$7))) -> 0.2351860106 | I11: =IF(B11="","",IF(C11=" Insufficient","",Utilisation(B11,$E$8*2,$E$7+$J$7))) -> 0.9722222686 | J11: =IF(B11="","",IF(C11=" Insufficient","",($D11+$E$7)*$E$8/1800)) -> 54.02777778
B12: =B11+1 -> 31 | C12: =IF(B12="","",Queued(B12,$E$8*2,$E$7+$J$7)) -> 0.6523318291 | D12: =IF(B12="","",ASA(B12,$E$8*2,$E$7+$J$7)) -> 75 | E12: =IF(B12="","",IF(E11<1,0,IF(($D12*$E$8)/($C12*$E$8)>E11,E11-1,($D12*$E$8)/($C12*$E$8)))) -> 114.9721609 | F12: =IF(B12="","",IF(QueueSize($B12,$E$8*2,($E$7+$J$7))>F11,F11,QueueSize($B12,$E$8*2,($E$7+$J$7)))) -> 10 | G12: =IF(B12="","",IF(F12/C12>G11,G11,F12/C12)) -> 15.32962145 | H12: =IF(B12="","",SLA(B12,$J$8,$E$8*2,$E$7+$J$7)) -> 0.452178061 | I12: =IF(B12="","",Utilisation(B12,$E$8*2,$E$7+$J$7)) -> 0.9408602715 | J12: =IF(B12="","",($D12+$E$7)*$E$8/1800) -> 35.41666667
B13: =IF(H12="","",IF(H12<99.5%,B12+1,"")) -> 32 | C13: =IF(B13="","",Queued(B13,$E$8*2,$E$7+$J$7)) -> 0.5069489479 | D13: =IF(B13="","",ASA(B13,$E$8*2,$E$7+$J$7)) -> 38 | E13: 74.95823821 | F13: =IF(B13="","",IF(QueueSize($B13,$E$8*2,($E$7+$J$7))>F12,F12,QueueSize($B13,$E$8*2,($E$7+$J$7)))) -> 5 | G13: 9.862926081 | H13: =IF(B13="","",SLA(B13,$J$8,$E$8*2,$E$7+$J$7)) -> 0.6129440665 | I13: =IF(B13="","",Utilisation(B13,$E$8*2,$E$7+$J$7)) -> 0.9114583731 | J13: =IF(B13="","",($D13+$E$7)*$E$8/1800) -> 30.27777778
B14: =IF(H13="","",IF(H13<99.5%,B13+1,"")) -> 33 | C14: =IF(B14="","",Queued(B14,$E$8*2,$E$7+$J$7)) -> 0.3883337379 | D14: =IF(B14="","",ASA(B14,$E$8*2,$E$7+$J$7)) -> 21 | E14: 54.07719689 | F14: =IF(B14="","",IF(QueueSize($B14,$E$8*2,($E$7+$J$7))>F13,F13,QueueSize($B14,$E$8*2,($E$7+$J$7)))) -> 3 | G14: 7.725313841 | H14: =IF(B14="","",SLA(B14,$J$8,$E$8*2,$E$7+$J$7)) -> 0.7304413915 | I14: =IF(B14="","",Utilisation(B14,$E$8*2,$E$7+$J$7)) -> 0.8838384151 | J14: =IF(B14="","",($D14+$E$7)*$E$8*2/3600) -> 27.91666667
B15: 34 | C15: =IF(B15="","",Queued(B15,$E$8*2,$E$7+$J$7)) -> 0.2930202782 | D15: =IF(B15="","",ASA(B15,$E$8*2,$E$7+$J$7)) -> 13 | E15: 44.36553019 | F15: =IF(B15="","",IF(QueueSize($B15,$E$8*2,($E$7+$J$7))>F14,F14,QueueSize($B15,$E$8*2,($E$7+$J$7)))) -> 2 | G15: 6.825466183 | H15: =IF(B15="","",SLA(B15,$J$8,$E$8*2,$E$7+$J$7)) -> 0.8150798082 | I15: =IF(B15="","",Utilisation(B15,$E$8*2,$E$7+$J$7)) -> 0.8578431606 | J15: 26.80555556
B16: 35 | C16: =IF(B16="","",Queued(B16,$E$8*2,$E$7+$J$7)) -> 0.2176531553 | D16: =IF(B16="","",ASA(B16,$E$8*2,$E$7+$J$7)) -> 8 | E16: 36.75572719 | F16: =IF(B16="","",IF(QueueSize($B16,$E$8*2,($E$7+$J$7))>F15,F15,QueueSize($B16,$E$8*2,($E$7+$J$7)))) -> 1 | G16: 4.594465899 | H16: =IF(B16="","",SLA(B16,$J$8,$E$8*2,$E$7+$J$7)) -> 0.875120759 | I16: =IF(B16="","",Utilisation(B16,$E$8*2,$E$7+$J$7)) -> 0.8333333731 | J16: 26.11111111
B17: 36 | C17: =IF(B17="","",Queued(B17,$E$8*2,$E$7+$J$7)) -> 0.1590564102 | D17: =IF(B17="","",ASA(B17,$E$8*2,$E$7+$J$7)) -> 5 | E17: 31.4353882 | F17: =IF(B17="","",IF(QueueSize($B17,$E$8*2,($E$7+$J$7))>F16,F16,QueueSize($B17,$E$8*2,($E$7+$J$7)))) -> 1 | G17: 4.594465899 | H17: =IF(B17="","",SLA(B17,$J$8,$E$8*2,$E$7+$J$7)) -> 0.9170311093 | I17: =IF(B17="","",Utilisation(B17,$E$8*2,$E$7+$J$7)) -> 0.810185194 | J17: 25.69444444
B18: 37 | C18: =IF(B18="","",Queued(B18,$E$8*2,$E$7+$J$7)) -> 0.1142945215 | D18: =IF(B18="","",ASA(B18,$E$8*2,$E$7+$J$7)) -> 3 | E18: 26.24797725 | F18: =IF(B18="","",IF(QueueSize($B18,$E$8*2,($E$7+$J$7))>F17,F17,QueueSize($B18,$E$8*2,($E$7+$J$7)))) -> 0 | G18: 0 | H18: =IF(B18="","",SLA(B18,$J$8,$E$8*2,$E$7+$J$7)) -> 0.9457964301 | I18: =IF(B18="","",Utilisation(B18,$E$8*2,$E$7+$J$7)) -> 0.7882882953 | J18: 25.41666667
B19: 38 | C19: =IF(B19="","",Queued(B19,$E$8*2,$E$7+$J$7)) -> 0.08072069287 | D19: =IF(B19="","",ASA(B19,$E$8*2,$E$7+$J$7)) -> 2 | E19: 24.77679426 | F19: =IF(B19="","",IF(QueueSize($B19,$E$8*2,($E$7+$J$7))>F18,F18,QueueSize($B19,$E$8*2,($E$7+$J$7)))) -> 0 | G19: 0 | H19: =IF(B19="","",SLA(B19,$J$8,$E$8*2,$E$7+$J$7)) -> 0.9651962519 | I19: =IF(B19="","",Utilisation(B19,$E$8*2,$E$7+$J$7)) -> 0.7675439119 | J19: 25.27777778
B20: 39 | C20: =IF(B20="","",Queued(B20,$E$8*2,$E$7+$J$7)) -> 0.05600888655 | D20: =IF(B20="","",ASA(B20,$E$8*2,$E$7+$J$7)) -> 1 | E20: 17.85430959 | F20: =IF(B20="","",IF(QueueSize($B20,$E$8*2,($E$7+$J$7))>F19,F19,QueueSize($B20,$E$8*2,($E$7+$J$7)))) -> 0 | G20: 0 | H20: =IF(B20="","",SLA(B20,$J$8,$E$8*2,$E$7+$J$7)) -> 0.9780448079 | I20: =IF(B20="","",Utilisation(B20,$E$8*2,$E$7+$J$7)) -> 0.7478632927 | J20: 25.13888889
B21: 40 | C21: =IF(B21="","",Queued(B21,$E$8*2,$E$7+$J$7)) -> 0.03816807643 | D21: =IF(B21="","",ASA(B21,$E$8*2,$E$7+$J$7)) -> 1 | E21: 16.85430959 | F21: =IF(B21="","",IF(QueueSize($B21,$E$8*2,($E$7+$J$7))>F20,F20,QueueSize($B21,$E$8*2,($E$7+$J$7)))) -> 0 | G21: 0 | H21: =IF(B21="","",SLA(B21,$J$8,$E$8*2,$E$7+$J$7)) -> 0.9863975048 | I21: =IF(B21="","",Utilisation(B21,$E$8*2,$E$7+$J$7)) -> 0.7291666865 | J21: 25.13888889
B22: 41 | C22: =IF(B22="","",Queued(B22,$E$8*2,$E$7+$J$7)) -> 0.02553904802 | D22: =IF(B22="","",ASA(B22,$E$8*2,$E$7+$J$7)) -> 0 | E22: 0 | F22: =IF(B22="","",IF(QueueSize($B22,$E$8*2,($E$7+$J$7))>F21,F21,QueueSize($B22,$E$8*2,($E$7+$J$7)))) -> 0 | G22: 0 | H22: =IF(B22="","",SLA(B22,$J$8,$E$8*2,$E$7+$J$7)) -> 0.9917251468 | I22: =IF(B22="","",Utilisation(B22,$E$8*2,$E$7+$J$7)) -> 0.7113821507 | J22: 25
B23: 42 | C23: =IF(B23="","",Queued(B23,$E$8*2,$E$7+$J$7)) -> 0.01677608117 | D23: =IF(B23="","",ASA(B23,$E$8*2,$E$7+$J$7)) -> 0 | E23: 0 | F23: =IF(B23="","",IF(QueueSize($B23,$E$8*2,($E$7+$J$7))>F22,F22,QueueSize($B23,$E$8*2,($E$7+$J$7)))) -> 0 | G23: 0 | H23: =IF(B23="","",SLA(B23,$J$8,$E$8*2,$E$7+$J$7)) -> 0.9950581789 | I23: =IF(B23="","",Utilisation(B23,$E$8*2,$E$7+$J$7)) -> 0.6944444776 | J23: 25
C24: =IF(B24="","",Queued(B24,$E$8*2,$E$7+$J$7)) ->  | D24: =IF(B24="","",ASA(B24,$E$8*2,$E$7+$J$7)) ->  | F24: =IF(B24="","",IF(QueueSize($B24,$E$8*2,($E$7+$J$7))>F23,F23,QueueSize($B24,$E$8*2,($E$7+$J$7)))) ->  | H24: =IF(B24="","",SLA(B24,$J$8,$E$8*2,$E$7+$J$7)) ->  | I24: =IF(B24="","",Utilisation(B24,$E$8*2,$E$7+$J$7)) -> 
C25: =IF(B25="","",Queued(B25,$E$8*2,$E$7+$J$7)) ->  | D25: =IF(B25="","",ASA(B25,$E$8*2,$E$7+$J$7)) ->  | F25: =IF(B25="","",IF(QueueSize($B25,$E$8*2,($E$7+$J$7))>F24,F24,QueueSize($B25,$E$8*2,($E$7+$J$7)))) ->  | H25: =IF(B25="","",SLA(B25,$J$8,$E$8*2,$E$7+$J$7)) ->  | I25: =IF(B25="","",Utilisation(B25,$E$8*2,$E$7+$J$7)) -> 
C26: =IF(B26="","",Queued(B26,$E$8*2,$E$7+$J$7)) ->  | D26: =IF(B26="","",ASA(B26,$E$8*2,$E$7+$J$7)) ->  | F26: =IF(B26="","",IF(QueueSize($B26,$E$8*2,($E$7+$J$7))>F25,F25,QueueSize($B26,$E$8*2,($E$7+$J$7)))) ->  | H26: =IF(B26="","",SLA(B26,$J$8,$E$8*2,$E$7+$J$7)) ->  | I26: =IF(B26="","",Utilisation(B26,$E$8*2,$E$7+$J$7)) -> 
C27: =IF(B27="","",Queued(B27,$E$8*2,$E$7+$J$7)) ->  | D27: =IF(B27="","",ASA(B27,$E$8*2,$E$7+$J$7)) ->  | F27: =IF(B27="","",QueueSize($B27,$E$8*2,($E$7+$J$7))) ->  | H27: =IF(B27="","",SLA(B27,$J$8,$E$8*2,$E$7+$J$7)) ->  | I27: =IF(B27="","",Utilisation(B27,$E$8*2,$E$7+$J$7)) -> 
C28: =IF(B28="","",Queued(B28,$E$8*2,$E$7+$J$7)) ->  | D28: =IF(B28="","",ASA(B28,$E$8*2,$E$7+$J$7)) ->  | F28: =IF(B28="","",QueueSize($B28,$E$8*2,($E$7+$J$7))) ->  | H28: =IF(B28="","",SLA(B28,$J$8,$E$8*2,$E$7+$J$7)) ->  | I28: =IF(B28="","",Utilisation(B28,$E$8*2,$E$7+$J$7)) -> 
C29: =IF(B29="","",Queued(B29,$E$8*2,$E$7+$J$7)) ->  | D29: =IF(B29="","",ASA(B29,$E$8*2,$E$7+$J$7)) ->  | F29: =IF(B29="","",QueueSize($B29,$E$8*2,($E$7+$J$7))) ->  | H29: =IF(B29="","",SLA(B29,$J$8,$E$8*2,$E$7+$J$7)) ->  | I29: =IF(B29="","",Utilisation(B29,$E$8*2,$E$7+$J$7)) -> 
C30: =IF(B30="","",Queued(B30,$E$8*2,$E$7+$J$7)) ->  | D30: =IF(B30="","",ASA(B30,$E$8*2,$E$7+$J$7)) ->  | F30: =IF(B30="","",QueueSize($B30,$E$8*2,($E$7+$J$7))) ->  | H30: =IF(B30="","",SLA(B30,$J$8,$E$8*2,$E$7+$J$7)) ->  | I30: =IF(B30="","",Utilisation(B30,$E$8*2,$E$7+$J$7)) -> 
C31: =IF(B31="","",Queued(B31,$E$8*2,$E$7+$J$7)) ->  | D31: =IF(B31="","",ASA(B31,$E$8*2,$E$7+$J$7)) ->  | F31: =IF(B31="","",QueueSize($B31,$E$8*2,($E$7+$J$7))) ->  | H31: =IF(B31="","",SLA(B31,$J$8,$E$8*2,$E$7+$J$7)) ->  | I31: =IF(B31="","",Utilisation(B31,$E$8*2,$E$7+$J$7)) -> 
C32: =IF(B32="","",Queued(B32,$E$8*2,$E$7+$J$7)) ->  | D32: =IF(B32="","",ASA(B32,$E$8*2,$E$7+$J$7)) ->  | F32: =IF(B32="","",QueueSize($B32,$E$8*2,($E$7+$J$7))) ->  | H32: =IF(B32="","",SLA(B32,$J$8,$E$8*2,$E$7+$J$7)) ->  | I32: =IF(B32="","",Utilisation(B32,$E$8*2,$E$7+$J$7)) -> 
C33: =IF(B33="","",Queued(B33,$E$8*2,$E$7+$J$7)) ->  | D33: =IF(B33="","",ASA(B33,$E$8*2,$E$7+$J$7)) ->  | F33: =IF(B33="","",QueueSize($B33,$E$8*2,($E$7+$J$7))) ->  | H33: =IF(B33="","",SLA(B33,$J$8,$E$8*2,$E$7+$J$7)) ->  | I33: =IF(B33="","",Utilisation(B33,$E$8*2,$E$7+$J$7)) -> 
C34: =IF(B34="","",Queued(B34,$E$8*2,$E$7+$J$7)) ->  | D34: =IF(B34="","",ASA(B34,$E$8*2,$E$7+$J$7)) ->  | F34: =IF(B34="","",QueueSize($B34,$E$8*2,($E$7+$J$7))) ->  | H34: =IF(B34="","",SLA(B34,$J$8,$E$8*2,$E$7+$J$7)) ->  | I34: =IF(B34="","",Utilisation(B34,$E$8*2,$E$7+$J$7)) -> 
C35: =IF(B35="","",Queued(B35,$E$8*2,$E$7+$J$7)) ->  | D35: =IF(B35="","",ASA(B35,$E$8*2,$E$7+$J$7)) ->  | F35: =IF(B35="","",QueueSize($B35,$E$8*2,($E$7+$J$7))) ->  | H35: =IF(B35="","",SLA(B35,$J$8,$E$8*2,$E$7+$J$7)) ->  | I35: =IF(B35="","",Utilisation(B35,$E$8*2,$E$7+$J$7)) -> 
C36: =IF(B36="","",Queued(B36,$E$8*2,$E$7+$J$7)) ->  | D36: =IF(B36="","",ASA(B36,$E$8*2,$E$7+$J$7)) ->  | F36: =IF(B36="","",QueueSize($B36,$E$8*2,($E$7+$J$7))) ->  | H36: =IF(B36="","",SLA(B36,$J$8,$E$8*2,$E$7+$J$7)) ->  | I36: =IF(B36="","",Utilisation(B36,$E$8*2,$E$7+$J$7)) -> 
C37: =IF(B37="","",Queued(B37,$E$8*2,$E$7+$J$7)) ->  | D37: =IF(B37="","",ASA(B37,$E$8*2,$E$7+$J$7)) ->  | F37: =IF(B37="","",QueueSize($B37,$E$8*2,($E$7+$J$7))) ->  | H37: =IF(B37="","",SLA(B37,$J$8,$E$8*2,$E$7+$J$7)) ->  | I37: =IF(B37="","",Utilisation(B37,$E$8*2,$E$7+$J$7)) -> 
C38: =IF(B38="","",Queued(B38,$E$8*2,$E$7+$J$7)) ->  | D38: =IF(B38="","",ASA(B38,$E$8*2,$E$7+$J$7)) ->  | F38: =IF(B38="","",QueueSize($B38,$E$8*2,($E$7+$J$7))) ->  | H38: =IF(B38="","",SLA(B38,$J$8,$E$8*2,$E$7+$J$7)) ->  | I38: =IF(B38="","",Utilisation(B38,$E$8*2,$E$7+$J$7)) -> 
C39: =IF(B39="","",Queued(B39,$E$8*2,$E$7+$J$7)) ->  | D39: =IF(B39="","",ASA(B39,$E$8*2,$E$7+$J$7)) ->  | F39: =IF(B39="","",QueueSize($B39,$E$8*2,($E$7+$J$7))) ->  | H39: =IF(B39="","",SLA(B39,$J$8,$E$8*2,$E$7+$J$7)) ->  | I39: =IF(B39="","",Utilisation(B39,$E$8*2,$E$7+$J$7)) -> 
C40: =IF(B40="","",Queued(B40,$E$8*2,$E$7+$J$7)) ->  | D40: =IF(B40="","",ASA(B40,$E$8*2,$E$7+$J$7)) ->  | F40: =IF(B40="","",QueueSize($B40,$E$8*2,($E$7+$J$7))) ->  | H40: =IF(B40="","",SLA(B40,$J$8,$E$8*2,$E$7+$J$7)) ->  | I40: =IF(B40="","",Utilisation(B40,$E$8*2,$E$7+$J$7)) -> 
C41: =IF(B41="","",Queued(B41,$E$8*2,$E$7+$J$7)) ->  | D41: =IF(B41="","",ASA(B41,$E$8*2,$E$7+$J$7)) ->  | F41: =IF(B41="","",QueueSize($B41,$E$8*2,($E$7+$J$7))) ->  | H41: =IF(B41="","",SLA(B41,$J$8,$E$8*2,$E$7+$J$7)) ->  | I41: =IF(B41="","",Utilisation(B41,$E$8*2,$E$7+$J$7)) -> 
C42: =IF(B42="","",Queued(B42,$E$8*2,$E$7+$J$7)) ->  | D42: =IF(B42="","",ASA(B42,$E$8*2,$E$7+$J$7)) ->  | F42: =IF(B42="","",QueueSize($B42,$E$8*2,($E$7+$J$7))) ->  | H42: =IF(B42="","",SLA(B42,$J$8,$E$8*2,$E$7+$J$7)) ->  | I42: =IF(B42="","",Utilisation(B42,$E$8*2,$E$7+$J$7)) -> 
C43: =IF(B43="","",Queued(B43,$E$8*2,$E$7+$J$7)) ->  | D43: =IF(B43="","",ASA(B43,$E$8*2,$E$7+$J$7)) ->  | F43: =IF(B43="","",QueueSize($B43,$E$8*2,($E$7+$J$7))) ->  | H43: =IF(B43="","",SLA(B43,$J$8,$E$8*2,$E$7+$J$7)) ->  | I43: =IF(B43="","",Utilisation(B43,$E$8*2,$E$7+$J$7)) -> 
C44: =IF(B44="","",Queued(B44,$E$8*2,$E$7+$J$7)) ->  | D44: =IF(B44="","",ASA(B44,$E$8*2,$E$7+$J$7)) ->  | F44: =IF(B44="","",QueueSize($B44,$E$8*2,($E$7+$J$7))) ->  | H44: =IF(B44="","",SLA(B44,$J$8,$E$8*2,$E$7+$J$7)) ->  | I44: =IF(B44="","",Utilisation(B44,$E$8*2,$E$7+$J$7)) -> 
C45: =IF(B45="","",Queued(B45,$E$8*2,$E$7+$J$7)) ->  | D45: =IF(B45="","",ASA(B45,$E$8*2,$E$7+$J$7)) ->  | F45: =IF(B45="","",QueueSize($B45,$E$8*2,($E$7+$J$7))) ->  | H45: =IF(B45="","",SLA(B45,$J$8,$E$8*2,$E$7+$J$7)) ->  | I45: =IF(B45="","",Utilisation(B45,$E$8*2,$E$7+$J$7)) -> 
C46: =IF(B46="","",Queued(B46,$E$8*2,$E$7+$J$7)) ->  | D46: =IF(B46="","",ASA(B46,$E$8*2,$E$7+$J$7)) ->  | F46: =IF(B46="","",QueueSize($B46,$E$8*2,($E$7+$J$7))) ->  | H46: =IF(B46="","",SLA(B46,$J$8,$E$8*2,$E$7+$J$7)) ->  | I46: =IF(B46="","",Utilisation(B46,$E$8*2,$E$7+$J$7)) -> 
C47: =IF(B47="","",Queued(B47,$E$8*2,$E$7+$J$7)) ->  | D47: =IF(B47="","",ASA(B47,$E$8*2,$E$7+$J$7)) ->  | F47: =IF(B47="","",QueueSize($B47,$E$8*2,($E$7+$J$7))) ->  | H47: =IF(B47="","",SLA(B47,$J$8,$E$8*2,$E$7+$J$7)) ->  | I47: =IF(B47="","",Utilisation(B47,$E$8*2,$E$7+$J$7)) -> 
C48: =IF(B48="","",Queued(B48,$E$8*2,$E$7+$J$7)) ->  | D48: =IF(B48="","",ASA(B48,$E$8*2,$E$7+$J$7)) ->  | F48: =IF(B48="","",QueueSize($B48,$E$8*2,($E$7+$J$7))) ->  | H48: =IF(B48="","",SLA(B48,$J$8,$E$8*2,$E$7+$J$7)) ->  | I48: =IF(B48="","",Utilisation(B48,$E$8*2,$E$7+$J$7)) -> 
C49: =IF(B49="","",Queued(B49,$E$8*2,$E$7+$J$7)) ->  | D49: =IF(B49="","",ASA(B49,$E$8*2,$E$7+$J$7)) ->  | F49: =IF(B49="","",QueueSize($B49,$E$8*2,($E$7+$J$7))) ->  | H49: =IF(B49="","",SLA(B49,$J$8,$E$8*2,$E$7+$J$7)) ->  | I49: =IF(B49="","",Utilisation(B49,$E$8*2,$E$7+$J$7)) -> 
C50: =IF(B50="","",Queued(B50,$E$8*2,$E$7+$J$7)) ->  | D50: =IF(B50="","",ASA(B50,$E$8*2,$E$7+$J$7)) ->  | F50: =IF(B50="","",QueueSize($B50,$E$8*2,($E$7+$J$7))) ->  | H50: =IF(B50="","",SLA(B50,$J$8,$E$8*2,$E$7+$J$7)) ->  | I50: =IF(B50="","",Utilisation(B50,$E$8*2,$E$7+$J$7)) -> 
C51: =IF(B51="","",Queued(B51,$E$8*2,$E$7+$J$7)) ->  | D51: =IF(B51="","",ASA(B51,$E$8*2,$E$7+$J$7)) ->  | E51: =IF(B51="","",IF(E50<1,0,IF(($D51*$E$8)/($C51*$E$8)>E50,E50-1,($D51*$E$8)/($C51*$E$8)))) ->  | F51: =IF(B51="","",QueueSize($B51,$E$8*2,($E$7+$J$7))) ->  | H51: =IF(B51="","",SLA(B51,$J$8,$E$8*2,$E$7+$J$7)) ->  | I51: =IF(B51="","",Utilisation(B51,$E$8*2,$E$7+$J$7)) -> 
C52: =IF(B52="","",Queued(B52,$E$8*2,$E$7+$J$7)) ->  | D52: =IF(B52="","",ASA(B52,$E$8*2,$E$7+$J$7)) ->  | F52: =IF(B52="","",QueueSize($B52,$E$8*2,($E$7+$J$7))) ->  | H52: =IF(B52="","",SLA(B52,$J$8,$E$8*2,$E$7+$J$7)) ->  | I52: =IF(B52="","",Utilisation(B52,$E$8*2,$E$7+$J$7)) -> 
C53: =IF(B53="","",Queued(B53,$E$8*2,$E$7+$J$7)) ->  | D53: =IF(B53="","",ASA(B53,$E$8*2,$E$7+$J$7)) ->  | F53: =IF(B53="","",QueueSize($B53,$E$8*2,($E$7+$J$7))) ->  | H53: =IF(B53="","",SLA(B53,$J$8,$E$8*2,$E$7+$J$7)) ->  | I53: =IF(B53="","",Utilisation(B53,$E$8*2,$E$7+$J$7)) -> 
C54: =IF(B54="","",Queued(B54,$E$8*2,$E$7+$J$7)) ->  | D54: =IF(B54="","",ASA(B54,$E$8*2,$E$7+$J$7)) ->  | F54: =IF(B54="","",QueueSize($B54,$E$8*2,($E$7+$J$7))) ->  | H54: =IF(B54="","",SLA(B54,$J$8,$E$8*2,$E$7+$J$7)) ->  | I54: =IF(B54="","",Utilisation(B54,$E$8*2,$E$7+$J$7)) -> 
C55: =IF(B55="","",Queued(B55,$E$8*2,$E$7+$J$7)) ->  | D55: =IF(B55="","",ASA(B55,$E$8*2,$E$7+$J$7)) ->  | F55: =IF(B55="","",QueueSize($B55,$E$8*2,($E$7+$J$7))) ->  | H55: =IF(B55="","",SLA(B55,$J$8,$E$8*2,$E$7+$J$7)) ->  | I55: =IF(B55="","",Utilisation(B55,$E$8*2,$E$7+$J$7)) -> 
C56: =IF(B56="","",Queued(B56,$E$8*2,$E$7+$J$7)) ->  | D56: =IF(B56="","",ASA(B56,$E$8*2,$E$7+$J$7)) ->  | F56: =IF(B56="","",QueueSize($B56,$E$8*2,($E$7+$J$7))) ->  | G56: =IF(B56="","",IF(F56/C56>G55,G55,F56/C56)) ->  | H56: =IF(B56="","",SLA(B56,$J$8,$E$8*2,$E$7+$J$7)) ->  | I56: =IF(B56="","",Utilisation(B56,$E$8*2,$E$7+$J$7)) ->  | J56: =IF(B56="","",($D56+$E$7)*$E$8*2/3600) -> 
C57: =IF(B57="","",Queued(B57,$E$8*2,$E$7+$J$7)) ->  | D57: =IF(B57="","",ASA(B57,$E$8*2,$E$7+$J$7)) ->  | F57: =IF(B57="","",QueueSize($B57,$E$8*2,($E$7+$J$7))) ->  | H57: =IF(B57="","",SLA(B57,$J$8,$E$8*2,$E$7+$J$7)) ->  | I57: =IF(B57="","",Utilisation(B57,$E$8*2,$E$7+$J$7)) -> 
C58: =IF(B58="","",Queued(B58,$E$8*2,$E$7+$J$7)) ->  | D58: =IF(B58="","",ASA(B58,$E$8*2,$E$7+$J$7)) ->  | F58: =IF(B58="","",QueueSize($B58,$E$8*2,($E$7+$J$7))) ->  | H58: =IF(B58="","",SLA(B58,$J$8,$E$8*2,$E$7+$J$7)) ->  | I58: =IF(B58="","",Utilisation(B58,$E$8*2,$E$7+$J$7)) -> 
C59: =IF(B59="","",Queued(B59,$E$8*2,$E$7+$J$7)) ->  | D59: =IF(B59="","",ASA(B59,$E$8*2,$E$7+$J$7)) ->  | F59: =IF(B59="","",QueueSize($B59,$E$8*2,($E$7+$J$7))) ->  | H59: =IF(B59="","",SLA(B59,$J$8,$E$8*2,$E$7+$J$7)) ->  | I59: =IF(B59="","",Utilisation(B59,$E$8*2,$E$7+$J$7)) -> 
C60: =IF(B60="","",Queued(B60,$E$8*2,$E$7+$J$7)) ->  | D60: =IF(B60="","",ASA(B60,$E$8*2,$E$7+$J$7)) ->  | F60: =IF(B60="","",QueueSize($B60,$E$8*2,($E$7+$J$7))) ->  | H60: =IF(B60="","",SLA(B60,$J$8,$E$8*2,$E$7+$J$7)) ->  | I60: =IF(B60="","",Utilisation(B60,$E$8*2,$E$7+$J$7)) -> 
C61: =IF(B61="","",Queued(B61,$E$8*2,$E$7+$J$7)) ->  | D61: =IF(B61="","",ASA(B61,$E$8*2,$E$7+$J$7)) ->  | F61: =IF(B61="","",QueueSize($B61,$E$8*2,($E$7+$J$7))) ->  | H61: =IF(B61="","",SLA(B61,$J$8,$E$8*2,$E$7+$J$7)) ->  | I61: =IF(B61="","",Utilisation(B61,$E$8*2,$E$7+$J$7)) -> 
C62: =IF(B62="","",Queued(B62,$E$8*2,$E$7+$J$7)) ->  | D62: =IF(B62="","",ASA(B62,$E$8*2,$E$7+$J$7)) ->  | F62: =IF(B62="","",QueueSize($B62,$E$8*2,($E$7+$J$7))) ->  | H62: =IF(B62="","",SLA(B62,$J$8,$E$8*2,$E$7+$J$7)) ->  | I62: =IF(B62="","",Utilisation(B62,$E$8*2,$E$7+$J$7)) -> 
C63: =IF(B63="","",Queued(B63,$E$8*2,$E$7+$J$7)) ->  | D63: =IF(B63="","",ASA(B63,$E$8*2,$E$7+$J$7)) ->  | F63: =IF(B63="","",QueueSize($B63,$E$8*2,($E$7+$J$7))) ->  | H63: =IF(B63="","",SLA(B63,$J$8,$E$8*2,$E$7+$J$7)) ->  | I63: =IF(B63="","",Utilisation(B63,$E$8*2,$E$7+$J$7)) -> 
C64: =IF(B64="","",Queued(B64,$E$8*2,$E$7+$J$7)) ->  | D64: =IF(B64="","",ASA(B64,$E$8*2,$E$7+$J$7)) ->  | E64: =IF(B64="","",IF(E63<1,0,IF(($D64*$E$8)/($C64*$E$8)>E63,E63-1,($D64*$E$8)/($C64*$E$8)))) ->  | F64: =IF(B64="","",QueueSize($B64,$E$8*2,($E$7+$J$7))) ->  | H64: =IF(B64="","",SLA(B64,$J$8,$E$8*2,$E$7+$J$7)) ->  | I64: =IF(B64="","",Utilisation(B64,$E$8*2,$E$7+$J$7)) -> 
C65: =IF(B65="","",Queued(B65,$E$8*2,$E$7+$J$7)) ->  | D65: =IF(B65="","",ASA(B65,$E$8*2,$E$7+$J$7)) ->  | E65: =IF(B65="","",IF(E64<1,0,IF(($D65*$E$8)/($C65*$E$8)>E64,E64-1,($D65*$E$8)/($C65*$E$8)))) ->  | F65: =IF(B65="","",QueueSize($B65,$E$8*2,($E$7+$J$7))) ->  | H65: =IF(B65="","",SLA(B65,$J$8,$E$8*2,$E$7+$J$7)) ->  | I65: =IF(B65="","",Utilisation(B65,$E$8*2,$E$7+$J$7)) -> 
C66: =IF(B66="","",Queued(B66,$E$8*2,$E$7+$J$7)) ->  | D66: =IF(B66="","",ASA(B66,$E$8*2,$E$7+$J$7)) ->  | F66: =IF(B66="","",QueueSize($B66,$E$8*2,($E$7+$J$7))) ->  | H66: =IF(B66="","",SLA(B66,$J$8,$E$8*2,$E$7+$J$7)) ->  | I66: =IF(B66="","",Utilisation(B66,$E$8*2,$E$7+$J$7)) -> 
C67: =IF(B67="","",Queued(B67,$E$8*2,$E$7+$J$7)) ->  | D67: =IF(B67="","",ASA(B67,$E$8*2,$E$7+$J$7)) ->  | E67: =IF(B67="","",IF(E66<1,0,IF(($D67*$E$8)/($C67*$E$8)>E66,E66-1,($D67*$E$8)/($C67*$E$8)))) ->  | F67: =IF(B67="","",QueueSize($B67,$E$8*2,($E$7+$J$7))) ->  | G67: =IF(B67="","",IF(F67/C67>G66,G66,F67/C67)) ->  | H67: =IF(B67="","",SLA(B67,$J$8,$E$8*2,$E$7+$J$7)) ->  | I67: =IF(B67="","",Utilisation(B67,$E$8*2,$E$7+$J$7)) ->  | J67: =IF(B67="","",($D67+$E$7)*$E$8*2/3600) -> 
C68: =IF(B68="","",Queued(B68,$E$8*2,$E$7+$J$7)) ->  | D68: =IF(B68="","",ASA(B68,$E$8*2,$E$7+$J$7)) ->  | F68: =IF(B68="","",QueueSize($B68,$E$8*2,($E$7+$J$7))) ->  | H68: =IF(B68="","",SLA(B68,$J$8,$E$8*2,$E$7+$J$7)) ->  | I68: =IF(B68="","",Utilisation(B68,$E$8*2,$E$7+$J$7)) -> 
C69: =IF(B69="","",Queued(B69,$E$8*2,$E$7+$J$7)) ->  | D69: =IF(B69="","",ASA(B69,$E$8*2,$E$7+$J$7)) ->  | F69: =IF(B69="","",QueueSize($B69,$E$8*2,($E$7+$J$7))) ->  | H69: =IF(B69="","",SLA(B69,$J$8,$E$8*2,$E$7+$J$7)) ->  | I69: =IF(B69="","",Utilisation(B69,$E$8*2,$E$7+$J$7)) -> 
C70: =IF(B70="","",Queued(B70,$E$8*2,$E$7+$J$7)) ->  | D70: =IF(B70="","",ASA(B70,$E$8*2,$E$7+$J$7)) ->  | F70: =IF(B70="","",QueueSize($B70,$E$8*2,($E$7+$J$7))) ->  | H70: =IF(B70="","",SLA(B70,$J$8,$E$8*2,$E$7+$J$7)) ->  | I70: =IF(B70="","",Utilisation(B70,$E$8*2,$E$7+$J$7)) -> 
C71: =IF(B71="","",Queued(B71,$E$8*2,$E$7+$J$7)) ->  | D71: =IF(B71="","",ASA(B71,$E$8*2,$E$7+$J$7)) ->  | F71: =IF(B71="","",QueueSize($B71,$E$8*2,($E$7+$J$7))) ->  | H71: =IF(B71="","",SLA(B71,$J$8,$E$8*2,$E$7+$J$7)) ->  | I71: =IF(B71="","",Utilisation(B71,$E$8*2,$E$7+$J$7)) -> 
C72: =IF(B72="","",Queued(B72,$E$8*2,$E$7+$J$7)) ->  | D72: =IF(B72="","",ASA(B72,$E$8*2,$E$7+$J$7)) ->  | E72: =IF(B72="","",IF(E71<1,0,IF(($D72*$E$8)/($C72*$E$8)>E71,E71-1,($D72*$E$8)/($C72*$E$8)))) ->  | F72: =IF(B72="","",QueueSize($B72,$E$8*2,($E$7+$J$7))) ->  | G72: =IF(B72="","",IF(F72/C72>G71,G71,F72/C72)) ->  | H72: =IF(B72="","",SLA(B72,$J$8,$E$8*2,$E$7+$J$7)) ->  | I72: =IF(B72="","",Utilisation(B72,$E$8*2,$E$7+$J$7)) ->  | J72: =IF(B72="","",($D72+$E$7)*$E$8*2/3600) -> 
C73: =IF(B73="","",Queued(B73,$E$8*2,$E$7+$J$7)) ->  | D73: =IF(B73="","",ASA(B73,$E$8*2,$E$7+$J$7)) ->  | F73: =IF(B73="","",QueueSize($B73,$E$8*2,($E$7+$J$7))) ->  | H73: =IF(B73="","",SLA(B73,$J$8,$E$8*2,$E$7+$J$7)) ->  | I73: =IF(B73="","",Utilisation(B73,$E$8*2,$E$7+$J$7)) -> 
C74: =IF(B74="","",Queued(B74,$E$8*2,$E$7+$J$7)) ->  | D74: =IF(B74="","",ASA(B74,$E$8*2,$E$7+$J$7)) ->  | F74: =IF(B74="","",QueueSize($B74,$E$8*2,($E$7+$J$7))) ->  | H74: =IF(B74="","",SLA(B74,$J$8,$E$8*2,$E$7+$J$7)) ->  | I74: =IF(B74="","",Utilisation(B74,$E$8*2,$E$7+$J$7)) -> 
C75: =IF(B75="","",Queued(B75,$E$8*2,$E$7+$J$7)) ->  | D75: =IF(B75="","",ASA(B75,$E$8*2,$E$7+$J$7)) ->  | F75: =IF(B75="","",QueueSize($B75,$E$8*2,($E$7+$J$7))) ->  | H75: =IF(B75="","",SLA(B75,$J$8,$E$8*2,$E$7+$J$7)) ->  | I75: =IF(B75="","",Utilisation(B75,$E$8*2,$E$7+$J$7)) -> 
C76: =IF(B76="","",Queued(B76,$E$8*2,$E$7+$J$7)) ->  | D76: =IF(B76="","",ASA(B76,$E$8*2,$E$7+$J$7)) ->  | F76: =IF(B76="","",QueueSize($B76,$E$8*2,($E$7+$J$7))) ->  | H76: =IF(B76="","",SLA(B76,$J$8,$E$8*2,$E$7+$J$7)) ->  | I76: =IF(B76="","",Utilisation(B76,$E$8*2,$E$7+$J$7)) -> 
C77: =IF(B77="","",Queued(B77,$E$8*2,$E$7+$J$7)) ->  | D77: =IF(B77="","",ASA(B77,$E$8*2,$E$7+$J$7)) ->  | F77: =IF(B77="","",QueueSize($B77,$E$8*2,($E$7+$J$7))) ->  | H77: =IF(B77="","",SLA(B77,$J$8,$E$8*2,$E$7+$J$7)) ->  | I77: =IF(B77="","",Utilisation(B77,$E$8*2,$E$7+$J$7)) -> 
B78: =IF(H77="","",IF(H77<99.5%,B77+1,"")) ->  | C78: =IF(B78="","",Queued(B78,$E$8*2,$E$7+$J$7)) ->  | D78: =IF(B78="","",ASA(B78,$E$8*2,$E$7+$J$7)) ->  | F78: =IF(B78="","",QueueSize($B78,$E$8*2,($E$7+$J$7))) ->  | H78: =IF(B78="","",SLA(B78,$J$8,$E$8*2,$E$7+$J$7)) ->  | I78: =IF(B78="","",Utilisation(B78,$E$8*2,$E$7+$J$7)) -> 
C79: =IF(B79="","",Queued(B79,$E$8*2,$E$7+$J$7)) ->  | D79: =IF(B79="","",ASA(B79,$E$8*2,$E$7+$J$7)) ->  | F79: =IF(B79="","",QueueSize($B79,$E$8*2,($E$7+$J$7))) ->  | H79: =IF(B79="","",SLA(B79,$J$8,$E$8*2,$E$7+$J$7)) ->  | I79: =IF(B79="","",Utilisation(B79,$E$8*2,$E$7+$J$7)) -> 
C80: =IF(B80="","",Queued(B80,$E$8*2,$E$7+$J$7)) ->  | D80: =IF(B80="","",ASA(B80,$E$8*2,$E$7+$J$7)) ->  | F80: =IF(B80="","",QueueSize($B80,$E$8*2,($E$7+$J$7))) ->  | H80: =IF(B80="","",SLA(B80,$J$8,$E$8*2,$E$7+$J$7)) ->  | I80: =IF(B80="","",Utilisation(B80,$E$8*2,$E$7+$J$7)) -> 
C81: =IF(B81="","",Queued(B81,$E$8*2,$E$7+$J$7)) ->  | D81: =IF(B81="","",ASA(B81,$E$8*2,$E$7+$J$7)) ->  | F81: =IF(B81="","",QueueSize($B81,$E$8*2,($E$7+$J$7))) ->  | H81: =IF(B81="","",SLA(B81,$J$8,$E$8*2,$E$7+$J$7)) ->  | I81: =IF(B81="","",Utilisation(B81,$E$8*2,$E$7+$J$7)) -> 

Sheet Delay
B2: Customer Queue Calculator
B3: © Brad Cleveland
B4: Sponsored by: International Customer Management Institute (ICMI)
J6: (Make entries on staff tab)
D7: ='Staff '!D7 -> Average Talk Time* | E7: ='Staff '!E7 -> 180 | I7: ='Staff '!I7 -> Average After Contact Work Time* | J7: ='Staff '!J7 -> 30
D8: ='Staff '!D8 -> Contacts Per Half Hour | E8: ='Staff '!CPH -> 250 | I8: ='Staff '!I8 -> Service Level Objective* | J8: ='Staff '!J8 -> 20
U9: *Measured in seconds
B10: Agents | C10: SL % | D10: Number of customers waiting longer than x seconds
M11: 2 mins. | N11: 3 mins. | O11: 4 mins. | P11: 5 mins. | Q11: 6 mins. | R11: 7 mins. | S11: 8 mins. | T11: 9 mins. | U11: 10 mins.
D12: 5 | E12: 10 | F12: 15 | G12: 20 | H12: 30 | I12: 40 | J12: 50 | K12: 60 | L12: 90 | M12: 120 | N12: 180 | O12: 240 | P12: 300 | Q12: 360 | R12: 420 | S12: 480 | T12: 540 | U12: 600
B13: ='Staff '!B11 -> 30 | C13: =IF('Staff '!H11=""," Insufficient",SLA($B13,$J$8,$E$8*2,$E$7+$J$7)) -> 0.2351860106 | D13: =IF($B13="","",IF('Staff '!C11=" Insufficient","Staffing ",$E$8-SLA($B13,D$12,$E$8*2,$E$7+$J$7)*($E$8))) -> 202.9301859 | E13: =IF('Staff '!H11="","",IF('Staff '!D11="Insufficient","Staffing",$E$8-SLA($B13,E$12,$E$8*2,$E$7+$J$7)*($E$8))) -> 198.9434808 | F13: =IF(E13="","",IF('Staff '!E11="Insufficient","Staffing",$E$8-SLA($B13,F$12,$E$8*2,$E$7+$J$7)*($E$8))) -> 195.0351 | G13: =IF(F13="","",IF('Staff '!F11="Insufficient","Staffing",$E$8-SLA($B13,G$12,$E$8*2,$E$7+$J$7)*($E$8))) -> 191.2034974 | H13: =IF(G13="","",IF('Staff '!G11="Insufficient","Staffing",$E$8-SLA($B13,H$12,$E$8*2,$E$7+$J$7)*($E$8))) -> 183.764644 | I13: =IF(H13="","",IF('Staff '!H11="Insufficient","Staffing",$E$8-SLA($B13,I$12,$E$8*2,$E$7+$J$7)*($E$8))) -> 176.6151935 | J13: =IF(I13="","",IF('Staff '!I11="Insufficient","Staffing",$E$8-SLA($B13,J$12,$E$8*2,$E$7+$J$7)*($E$8))) -> 169.743903 | K13: =IF(J13="","",IF('Staff '!J11="Insufficient","Staffing",$E$8-SLA($B13,K$12,$E$8*2,$E$7+$J$7)*($E$8))) -> 163.1399468 | L13: =IF(K13="","",IF('Staff '!K11="Insufficient","Staffing",$E$8-SLA($B13,L$12,$E$8*2,$E$7+$J$7)*($E$8))) -> 144.8300406 | M13: =IF(L13="","",IF('Staff '!L11="Insufficient","Staffing",$E$8-SLA($B13,M$12,$E$8*2,$E$7+$J$7)*($E$8))) -> 128.5751462 | N13: =IF(M13="","",IF('Staff '!M11="Insufficient","Staffing",$E$8-SLA($B13,N$12,$E$8*2,$E$7+$J$7)*($E$8))) -> 101.3336629 | O13: =IF(N13="","",IF('Staff '!N11="Insufficient","Staffing",$E$8-SLA($B13,O$12,$E$8*2,$E$7+$J$7)*($E$8))) -> 79.86389101 | P13: =IF(O13="","",IF('Staff '!O11="Insufficient","Staffing",$E$8-SLA($B13,P$12,$E$8*2,$E$7+$J$7)*($E$8))) -> 62.94295192 | Q13: =IF(P13="","",IF('Staff '!P11="Insufficient","Staffing",$E$8-SLA($B13,Q$12,$E$8*2,$E$7+$J$7)*($E$8))) -> 49.6070981 | R13: =IF(Q13="","",IF('Staff '!Q11="Insufficient","Staffing",$E$8-SLA($B13,R$12,$E$8*2,$E$7+$J$7)*($E$8))) -> 39.09674287 | S13: =IF(R13="","",IF('Staff '!R11="Insufficient","Staffing",$E$8-SLA($B13,S$12,$E$8*2,$E$7+$J$7)*($E$8))) -> 30.81323206 | T13: =IF(S13="","",IF('Staff '!S11="Insufficient","Staffing",$E$8-SLA($B13,T$12,$E$8*2,$E$7+$J$7)*($E$8))) -> 24.28476512 | U13: =IF(T13="","",IF('Staff '!T11="Insufficient","Staffing",$E$8-SLA($B13,U$12,$E$8*2,$E$7+$J$7)*($E$8))) -> 19.13949847
B14: ='Staff '!B12 -> 31 | C14: =IF('Staff '!H12="","",SLA($B14,$J$8,$E$8*2,$E$7+$J$7)) -> 0.452178061 | D14: =IF($B14="","",IF('Staff '!C12="Insufficient","Staffing",$E$8-SLA($B14,D$12,$E$8*2,$E$7+$J$7)*($E$8))) -> 156.1173946 | E14: =IF('Staff '!H12="","",IF('Staff '!D12="Insufficient","Staffing",$E$8-SLA($B14,E$12,$E$8*2,$E$7+$J$7)*($E$8))) -> 149.449341 | F14: =IF(E14="","",IF('Staff '!E12="Insufficient","Staffing",$E$8-SLA($B14,F$12,$E$8*2,$E$7+$J$7)*($E$8))) -> 143.0660933 | G14: =IF(F14="","",IF('Staff '!F12="Insufficient","Staffing",$E$8-SLA($B14,G$12,$E$8*2,$E$7+$J$7)*($E$8))) -> 136.9554847 | H14: =IF(G14="","",IF('Staff '!G12="Insufficient","Staffing",$E$8-SLA($B14,H$12,$E$8*2,$E$7+$J$7)*($E$8))) -> 125.5061105 | I14: =IF(H14="","",IF('Staff '!H12="Insufficient","Staffing",$E$8-SLA($B14,I$12,$E$8*2,$E$7+$J$7)*($E$8))) -> 115.0138974 | J14: =IF(I14="","",IF('Staff '!I12="Insufficient","Staffing",$E$8-SLA($B14,J$12,$E$8*2,$E$7+$J$7)*($E$8))) -> 105.3988189 | K14: =IF(J14="","",IF('Staff '!J12="Insufficient","Staffing",$E$8-SLA($B14,K$12,$E$8*2,$E$7+$J$7)*($E$8))) -> 96.58755362 | L14: =IF(K14="","",IF('Staff '!K12="Insufficient","Staffing",$E$8-SLA($B14,L$12,$E$8*2,$E$7+$J$7)*($E$8))) -> 74.33228195 | M14: =IF(L14="","",IF('Staff '!L12="Insufficient","Staffing",$E$8-SLA($B14,M$12,$E$8*2,$E$7+$J$7)*($E$8))) -> 57.20496178 | N14: =IF(M14="","",IF('Staff '!M12="Insufficient","Staffing",$E$8-SLA($B14,N$12,$E$8*2,$E$7+$J$7)*($E$8))) -> 33.88021886 | O14: =IF(N14="","",IF('Staff '!N12="Insufficient","Staffing",$E$8-SLA($B14,O$12,$E$8*2,$E$7+$J$7)*($E$8))) -> 20.06590366 | P14: =IF(O14="","",IF('Staff '!O12="Insufficient","Staffing",$E$8-SLA($B14,P$12,$E$8*2,$E$7+$J$7)*($E$8))) -> 11.8842423 | Q14: =IF(P14="","",IF('Staff '!P12="Insufficient","Staffing",$E$8-SLA($B14,Q$12,$E$8*2,$E$7+$J$7)*($E$8))) -> 7.03856349 | R14: =IF(Q14="","",IF('Staff '!Q12="Insufficient","Staffing",$E$8-SLA($B14,R$12,$E$8*2,$E$7+$J$7)*($E$8))) -> 4.168659449 | S14: =IF(R14="","",IF('Staff '!R12="Insufficient","Staffing",$E$8-SLA($B14,S$12,$E$8*2,$E$7+$J$7)*($E$8))) -> 2.468928695 | T14: =IF(S14="","",IF('Staff '!S12="Insufficient","Staffing",$E$8-SLA($B14,T$12,$E$8*2,$E$7+$J$7)*($E$8))) -> 1.462250948 | U14: =IF(T14="","",IF('Staff '!T12="Insufficient","Staffing",$E$8-SLA($B14,U$12,$E$8*2,$E$7+$J$7)*($E$8))) -> 0.8660256863
B15: ='Staff '!B13 -> 32 | C15: =IF('Staff '!H13="","",SLA($B15,$J$8,$E$8*2,$E$7+$J$7)) -> 0.6129440665 | D15: =IF($B15="","",IF('Staff '!C13="Insufficient","Staffing",$E$8-SLA($B15,D$12,$E$8*2,$E$7+$J$7)*($E$8))) -> 118.4695065 | E15: =IF('Staff '!H13="","",IF('Staff '!D13="Insufficient","Staffing",$E$8-SLA($B15,E$12,$E$8*2,$E$7+$J$7)*($E$8))) -> 110.7411385 | F15: =IF(E15="","",IF('Staff '!E13="Insufficient","Staffing",$E$8-SLA($B15,F$12,$E$8*2,$E$7+$J$7)*($E$8))) -> 103.5169214 | G15: =IF(F15="","",IF('Staff '!F13="Insufficient","Staffing",$E$8-SLA($B15,G$12,$E$8*2,$E$7+$J$7)*($E$8))) -> 96.76398337 | H15: =IF(G15="","",IF('Staff '!G13="Insufficient","Staffing",$E$8-SLA($B15,H$12,$E$8*2,$E$7+$J$7)*($E$8))) -> 84.55094695 | I15: =IF(H15="","",IF('Staff '!H13="Insufficient","Staffing",$E$8-SLA($B15,I$12,$E$8*2,$E$7+$J$7)*($E$8))) -> 73.87937605 | J15: =IF(I15="","",IF('Staff '!I13="Insufficient","Staffing",$E$8-SLA($B15,J$12,$E$8*2,$E$7+$J$7)*($E$8))) -> 64.55470622 | K15: =IF(J15="","",IF('Staff '!J13="Insufficient","Staffing",$E$8-SLA($B15,K$12,$E$8*2,$E$7+$J$7)*($E$8))) -> 56.40695989 | L15: =IF(K15="","",IF('Staff '!K13="Insufficient","Staffing",$E$8-SLA($B15,L$12,$E$8*2,$E$7+$J$7)*($E$8))) -> 37.63109446 | M15: =IF(L15="","",IF('Staff '!L13="Insufficient","Staffing",$E$8-SLA($B15,M$12,$E$8*2,$E$7+$J$7)*($E$8))) -> 25.10504425 | N15: =IF(M15="","",IF('Staff '!M13="Insufficient","Staffing",$E$8-SLA($B15,N$12,$E$8*2,$E$7+$J$7)*($E$8))) -> 11.17350161 | O15: =IF(N15="","",IF('Staff '!N13="Insufficient","Staffing",$E$8-SLA($B15,O$12,$E$8*2,$E$7+$J$7)*($E$8))) -> 4.972994328 | P15: =IF(O15="","",IF('Staff '!O13="Insufficient","Staffing",$E$8-SLA($B15,P$12,$E$8*2,$E$7+$J$7)*($E$8))) -> 2.213329077 | Q15: =IF(P15="","",IF('Staff '!P13="Insufficient","Staffing",$E$8-SLA($B15,Q$12,$E$8*2,$E$7+$J$7)*($E$8))) -> 0.9850859642 | R15: =IF(Q15="","",IF('Staff '!Q13="Insufficient","Staffing",$E$8-SLA($B15,R$12,$E$8*2,$E$7+$J$7)*($E$8))) -> 0.4384368658 | S15: =IF(R15="","",IF('Staff '!R13="Insufficient","Staffing",$E$8-SLA($B15,S$12,$E$8*2,$E$7+$J$7)*($E$8))) -> 0.1951307058 | T15: =IF(S15="","",IF('Staff '!S13="Insufficient","Staffing",$E$8-SLA($B15,T$12,$E$8*2,$E$7+$J$7)*($E$8))) -> 0.08684396744 | U15: =IF(T15="","",IF('Staff '!T13="Insufficient","Staffing",$E$8-SLA($B15,U$12,$E$8*2,$E$7+$J$7)*($E$8))) -> 0.03865361214
B16: ='Staff '!B14 -> 33 | C16: =IF('Staff '!H14="","",SLA($B16,$J$8,$E$8*2,$E$7+$J$7)) -> 0.7304413915 | D16: =IF($B16="","",IF('Staff '!C14="Insufficient","Staffing",$E$8-SLA($B16,D$12,$E$8*2,$E$7+$J$7)*($E$8))) -> 88.61498535 | E16: =IF('Staff '!H14="","",IF('Staff '!D14="Insufficient","Staffing",$E$8-SLA($B16,E$12,$E$8*2,$E$7+$J$7)*($E$8))) -> 80.88521659 | F16: =IF(E16="","",IF('Staff '!E14="Insufficient","Staffing",$E$8-SLA($B16,F$12,$E$8*2,$E$7+$J$7)*($E$8))) -> 73.82971048 | G16: =IF(F16="","",IF('Staff '!F14="Insufficient","Staffing",$E$8-SLA($B16,G$12,$E$8*2,$E$7+$J$7)*($E$8))) -> 67.38965213 | H16: =IF(G16="","",IF('Staff '!G14="Insufficient","Staffing",$E$8-SLA($B16,H$12,$E$8*2,$E$7+$J$7)*($E$8))) -> 56.14580214 | I16: =IF(H16="","",IF('Staff '!H14="Insufficient","Staffing",$E$8-SLA($B16,I$12,$E$8*2,$E$7+$J$7)*($E$8))) -> 46.77796364 | J16: =IF(I16="","",IF('Staff '!I14="Insufficient","Staffing",$E$8-SLA($B16,J$12,$E$8*2,$E$7+$J$7)*($E$8))) -> 38.97313774 | K16: =IF(J16="","",IF('Staff '!J14="Insufficient","Staffing",$E$8-SLA($B16,K$12,$E$8*2,$E$7+$J$7)*($E$8))) -> 32.47053921 | L16: =IF(K16="","",IF('Staff '!K14="Insufficient","Staffing",$E$8-SLA($B16,L$12,$E$8*2,$E$7+$J$7)*($E$8))) -> 18.77853274 | M16: =IF(L16="","",IF('Staff '!L14="Insufficient","Staffing",$E$8-SLA($B16,M$12,$E$8*2,$E$7+$J$7)*($E$8))) -> 10.86010039 | N16: =IF(M16="","",IF('Staff '!M14="Insufficient","Staffing",$E$8-SLA($B16,N$12,$E$8*2,$E$7+$J$7)*($E$8))) -> 3.632262349 | O16: =IF(N16="","",IF('Staff '!N14="Insufficient","Staffing",$E$8-SLA($B16,O$12,$E$8*2,$E$7+$J$7)*($E$8))) -> 1.214846969 | P16: =IF(O16="","",IF('Staff '!O14="Insufficient","Staffing",$E$8-SLA($B16,P$12,$E$8*2,$E$7+$J$7)*($E$8))) -> 0.4063248634 | Q16: =IF(P16="","",IF('Staff '!P14="Insufficient","Staffing",$E$8-SLA($B16,Q$12,$E$8*2,$E$7+$J$7)*($E$8))) -> 0.1358985901 | R16: =IF(Q16="","",IF('Staff '!Q14="Insufficient","Staffing",$E$8-SLA($B16,R$12,$E$8*2,$E$7+$J$7)*($E$8))) -> 0.04544854164 | S16: =IF(R16="","",IF('Staff '!R14="Insufficient","Staffing",$E$8-SLA($B16,S$12,$E$8*2,$E$7+$J$7)*($E$8))) -> 0.01519918442 | T16: =IF(S16="","",IF('Staff '!S14="Insufficient","Staffing",$E$8-SLA($B16,T$12,$E$8*2,$E$7+$J$7)*($E$8))) -> 0.005081295967 | U16: =IF(T16="","",IF('Staff '!T14="Insufficient","Staffing",$E$8-SLA($B16,U$12,$E$8*2,$E$7+$J$7)*($E$8))) -> 0.001698732376
B17: ='Staff '!B15 -> 34 | C17: =IF('Staff '!H15="","",SLA($B17,$J$8,$E$8*2,$E$7+$J$7)) -> 0.8150798082 | D17: =IF($B17="","",IF('Staff '!C15="Insufficient","Staffing",$E$8-SLA($B17,D$12,$E$8*2,$E$7+$J$7)*($E$8))) -> 65.29191136 | E17: =IF('Staff '!H15="","",IF('Staff '!D15="Insufficient","Staffing",$E$8-SLA($B17,E$12,$E$8*2,$E$7+$J$7)*($E$8))) -> 58.19438398 | F17: =IF(E17="","",IF('Staff '!E15="Insufficient","Staffing",$E$8-SLA($B17,F$12,$E$8*2,$E$7+$J$7)*($E$8))) -> 51.86837912 | G17: =IF(F17="","",IF('Staff '!F15="Insufficient","Staffing",$E$8-SLA($B17,G$12,$E$8*2,$E$7+$J$7)*($E$8))) -> 46.23004794 | H17: =IF(G17="","",IF('Staff '!G15="Insufficient","Staffing",$E$8-SLA($B17,H$12,$E$8*2,$E$7+$J$7)*($E$8))) -> 36.72550619 | I17: =IF(H17="","",IF('Staff '!H15="Insufficient","Staffing",$E$8-SLA($B17,I$12,$E$8*2,$E$7+$J$7)*($E$8))) -> 29.1750133 | J17: =IF(I17="","",IF('Staff '!I15="Insufficient","Staffing",$E$8-SLA($B17,J$12,$E$8*2,$E$7+$J$7)*($E$8))) -> 23.17684889 | K17: =IF(J17="","",IF('Staff '!J15="Insufficient","Staffing",$E$8-SLA($B17,K$12,$E$8*2,$E$7+$J$7)*($E$8))) -> 18.41187477 | L17: =IF(K17="","",IF('Staff '!K15="Insufficient","Staffing",$E$8-SLA($B17,L$12,$E$8*2,$E$7+$J$7)*($E$8))) -> 9.230554104 | M17: =IF(L17="","",IF('Staff '!L15="Insufficient","Staffing",$E$8-SLA($B17,M$12,$E$8*2,$E$7+$J$7)*($E$8))) -> 4.627630115 | N17: =IF(M17="","",IF('Staff '!M15="Insufficient","Staffing",$E$8-SLA($B17,N$12,$E$8*2,$E$7+$J$7)*($E$8))) -> 1.163110137 | O17: =IF(N17="","",IF('Staff '!N15="Insufficient","Staffing",$E$8-SLA($B17,O$12,$E$8*2,$E$7+$J$7)*($E$8))) -> 0.2923309803 | P17: =IF(O17="","",IF('Staff '!O15="Insufficient","Staffing",$E$8-SLA($B17,P$12,$E$8*2,$E$7+$J$7)*($E$8))) -> 0.07347762585 | Q17: =IF(P17="","",IF('Staff '!P15="Insufficient","Staffing",$E$8-SLA($B17,Q$12,$E$8*2,$E$7+$J$7)*($E$8))) -> 0.01846253872 | R17: =IF(Q17="","",IF('Staff '!Q15="Insufficient","Staffing",$E$8-SLA($B17,R$12,$E$8*2,$E$7+$J$7)*($E$8))) -> 0.004634261131 | S17: =IF(R17="","",IF('Staff '!R15="Insufficient","Staffing",$E$8-SLA($B17,S$12,$E$8*2,$E$7+$J$7)*($E$8))) -> 0.001162290573 | T17: =IF(S17="","",IF('Staff '!S15="Insufficient","Staffing",$E$8-SLA($B17,T$12,$E$8*2,$E$7+$J$7)*($E$8))) -> 0.0002980232239 | U17: =IF(T17="","",IF('Staff '!T15="Insufficient","Staffing",$E$8-SLA($B17,U$12,$E$8*2,$E$7+$J$7)*($E$8))) -> 7.450580597e-05
B18: ='Staff '!B16 -> 35 | C18: =IF('Staff '!H16="","",SLA($B18,$J$8,$E$8*2,$E$7+$J$7)) -> 0.875120759 | D18: =IF($B18="","",IF('Staff '!C16="Insufficient","Staffing",$E$8-SLA($B18,D$12,$E$8*2,$E$7+$J$7)*($E$8))) -> 47.35723138 | E18: =IF('Staff '!H16="","",IF('Staff '!D16="Insufficient","Staffing",$E$8-SLA($B18,E$12,$E$8*2,$E$7+$J$7)*($E$8))) -> 41.21616483 | F18: =IF(E18="","",IF('Staff '!E16="Insufficient","Staffing",$E$8-SLA($B18,F$12,$E$8*2,$E$7+$J$7)*($E$8))) -> 35.87146103 | G18: =IF(F18="","",IF('Staff '!F16="Insufficient","Staffing",$E$8-SLA($B18,G$12,$E$8*2,$E$7+$J$7)*($E$8))) -> 31.21981025 | H18: =IF(G18="","",IF('Staff '!G16="Insufficient","Staffing",$E$8-SLA($B18,H$12,$E$8*2,$E$7+$J$7)*($E$8))) -> 23.6479193 | I18: =IF(H18="","",IF('Staff '!H16="Insufficient","Staffing",$E$8-SLA($B18,I$12,$E$8*2,$E$7+$J$7)*($E$8))) -> 17.91247725 | J18: =IF(I18="","",IF('Staff '!I16="Insufficient","Staffing",$E$8-SLA($B18,J$12,$E$8*2,$E$7+$J$7)*($E$8))) -> 13.56807351 | K18: =IF(J18="","",IF('Staff '!J16="Insufficient","Staffing",$E$8-SLA($B18,K$12,$E$8*2,$E$7+$J$7)*($E$8))) -> 10.27734578 | L18: =IF(K18="","",IF('Staff '!K16="Insufficient","Staffing",$E$8-SLA($B18,L$12,$E$8*2,$E$7+$J$7)*($E$8))) -> 4.46651876 | M18: =IF(L18="","",IF('Staff '!L16="Insufficient","Staffing",$E$8-SLA($B18,M$12,$E$8*2,$E$7+$J$7)*($E$8))) -> 1.941144466 | N18: =IF(M18="","",IF('Staff '!M16="Insufficient","Staffing",$E$8-SLA($B18,N$12,$E$8*2,$E$7+$J$7)*($E$8))) -> 0.36662817 | O18: =IF(N18="","",IF('Staff '!N16="Insufficient","Staffing",$E$8-SLA($B18,O$12,$E$8*2,$E$7+$J$7)*($E$8))) -> 0.06924569607 | P18: =IF(O18="","",IF('Staff '!O16="Insufficient","Staffing",$E$8-SLA($B18,P$12,$E$8*2,$E$7+$J$7)*($E$8))) -> 0.01308321953 | Q18: =IF(P18="","",IF('Staff '!P16="Insufficient","Staffing",$E$8-SLA($B18,Q$12,$E$8*2,$E$7+$J$7)*($E$8))) -> 0.002473592758 | R18: =IF(Q18="","",IF('Staff '!Q16="Insufficient","Staffing",$E$8-SLA($B18,R$12,$E$8*2,$E$7+$J$7)*($E$8))) -> 0.000461935997 | S18: =IF(R18="","",IF('Staff '!R16="Insufficient","Staffing",$E$8-SLA($B18,S$12,$E$8*2,$E$7+$J$7)*($E$8))) -> 8.940696716e-05 | T18: =IF(S18="","",IF('Staff '!S16="Insufficient","Staffing",$E$8-SLA($B18,T$12,$E$8*2,$E$7+$J$7)*($E$8))) -> 1.490116119e-05 | U18: =IF(T18="","",IF('Staff '!T16="Insufficient","Staffing",$E$8-SLA($B18,U$12,$E$8*2,$E$7+$J$7)*($E$8))) -> 0
B19: ='Staff '!B17 -> 36 | C19: =IF('Staff '!H17="","",SLA($B19,$J$8,$E$8*2,$E$7+$J$7)) -> 0.9170311093 | D19: =IF($B19="","",IF('Staff '!C17="Insufficient","Staffing",$E$8-SLA($B19,D$12,$E$8*2,$E$7+$J$7)*($E$8))) -> 33.7934196 | E19: =IF('Staff '!H17="","",IF('Staff '!D17="Insufficient","Staffing",$E$8-SLA($B19,E$12,$E$8*2,$E$7+$J$7)*($E$8))) -> 28.71926129 | F19: =IF(E19="","",IF('Staff '!E17="Insufficient","Staffing",$E$8-SLA($B19,F$12,$E$8*2,$E$7+$J$7)*($E$8))) -> 24.40698445 | G19: =IF(F19="","",IF('Staff '!F17="Insufficient","Staffing",$E$8-SLA($B19,G$12,$E$8*2,$E$7+$J$7)*($E$8))) -> 20.74222267 | H19: =IF(G19="","",IF('Staff '!G17="Insufficient","Staffing",$E$8-SLA($B19,H$12,$E$8*2,$E$7+$J$7)*($E$8))) -> 14.98086751 | I19: =IF(H19="","",IF('Staff '!H17="Insufficient","Staffing",$E$8-SLA($B19,I$12,$E$8*2,$E$7+$J$7)*($E$8))) -> 10.81979275 | J19: =IF(I19="","",IF('Staff '!I17="Insufficient","Staffing",$E$8-SLA($B19,J$12,$E$8*2,$E$7+$J$7)*($E$8))) -> 7.814496756 | K19: =IF(J19="","",IF('Staff '!J17="Insufficient","Staffing",$E$8-SLA($B19,K$12,$E$8*2,$E$7+$J$7)*($E$8))) -> 5.643948913 | L19: =IF(K19="","",IF('Staff '!K17="Insufficient","Staffing",$E$8-SLA($B19,L$12,$E$8*2,$E$7+$J$7)*($E$8))) -> 2.126321197 | M19: =IF(L19="","",IF('Staff '!L17="Insufficient","Staffing",$E$8-SLA($B19,M$12,$E$8*2,$E$7+$J$7)*($E$8))) -> 0.8010715246 | N19: =IF(M19="","",IF('Staff '!M17="Insufficient","Staffing",$E$8-SLA($B19,N$12,$E$8*2,$E$7+$J$7)*($E$8))) -> 0.1136958599 | O19: =IF(N19="","",IF('Staff '!N17="Insufficient","Staffing",$E$8-SLA($B19,O$12,$E$8*2,$E$7+$J$7)*($E$8))) -> 0.01613795757 | P19: =IF(O19="","",IF('Staff '!O17="Insufficient","Staffing",$E$8-SLA($B19,P$12,$E$8*2,$E$7+$J$7)*($E$8))) -> 0.002294778824 | Q19: =IF(P19="","",IF('Staff '!P17="Insufficient","Staffing",$E$8-SLA($B19,Q$12,$E$8*2,$E$7+$J$7)*($E$8))) -> 0.0003278255463 | R19: =IF(Q19="","",IF('Staff '!Q17="Insufficient","Staffing",$E$8-SLA($B19,R$12,$E$8*2,$E$7+$J$7)*($E$8))) -> 4.470348358e-05 | S19: =IF(R19="","",IF('Staff '!R17="Insufficient","Staffing",$E$8-SLA($B19,S$12,$E$8*2,$E$7+$J$7)*($E$8))) -> 0 | T19: =IF(S19="","",IF('Staff '!S17="Insufficient","Staffing",$E$8-SLA($B19,T$12,$E$8*2,$E$7+$J$7)*($E$8))) -> 0 | U19: =IF(T19="","",IF('Staff '!T17="Insufficient","Staffing",$E$8-SLA($B19,U$12,$E$8*2,$E$7+$J$7)*($E$8))) -> 0
B20: ='Staff '!B18 -> 37 | C20: =IF('Staff '!H18="","",SLA($B20,$J$8,$E$8*2,$E$7+$J$7)) -> 0.9457964301 | D20: =IF($B20="","",IF('Staff '!C18="Insufficient","Staffing",$E$8-SLA($B20,D$12,$E$8*2,$E$7+$J$7)*($E$8))) -> 23.71188998 | E20: =IF('Staff '!H18="","",IF('Staff '!D18="Insufficient","Staffing",$E$8-SLA($B20,E$12,$E$8*2,$E$7+$J$7)*($E$8))) -> 19.67735589 | F20: =IF(E20="","",IF('Staff '!E18="Insufficient","Staffing",$E$8-SLA($B20,F$12,$E$8*2,$E$7+$J$7)*($E$8))) -> 16.32928848 | G20: =IF(F20="","",IF('Staff '!F18="Insufficient","Staffing",$E$8-SLA($B20,G$12,$E$8*2,$E$7+$J$7)*($E$8))) -> 13.55089247 | H20: =IF(G20="","",IF('Staff '!G18="Insufficient","Staffing",$E$8-SLA($B20,H$12,$E$8*2,$E$7+$J$7)*($E$8))) -> 9.331882 | I20: =IF(H20="","",IF('Staff '!H18="Insufficient","Staffing",$E$8-SLA($B20,I$12,$E$8*2,$E$7+$J$7)*($E$8))) -> 6.426438689 | J20: =IF(I20="","",IF('Staff '!I18="Insufficient","Staffing",$E$8-SLA($B20,J$12,$E$8*2,$E$7+$J$7)*($E$8))) -> 4.425600171 | K20: =IF(J20="","",IF('Staff '!J18="Insufficient","Staffing",$E$8-SLA($B20,K$12,$E$8*2,$E$7+$J$7)*($E$8))) -> 3.047704697 | L20: =IF(K20="","",IF('Staff '!K18="Insufficient","Staffing",$E$8-SLA($B20,L$12,$E$8*2,$E$7+$J$7)*($E$8))) -> 0.9953528643 | M20: =IF(L20="","",IF('Staff '!L18="Insufficient","Staffing",$E$8-SLA($B20,M$12,$E$8*2,$E$7+$J$7)*($E$8))) -> 0.3250688314 | N20: =IF(M20="","",IF('Staff '!M18="Insufficient","Staffing",$E$8-SLA($B20,N$12,$E$8*2,$E$7+$J$7)*($E$8))) -> 0.0346750021 | O20: =IF(N20="","",IF('Staff '!N18="Insufficient","Staffing",$E$8-SLA($B20,O$12,$E$8*2,$E$7+$J$7)*($E$8))) -> 0.003695487976 | P20: =IF(O20="","",IF('Staff '!O18="Insufficient","Staffing",$E$8-SLA($B20,P$12,$E$8*2,$E$7+$J$7)*($E$8))) -> 0.000387430191 | Q20: =IF(P20="","",IF('Staff '!P18="Insufficient","Staffing",$E$8-SLA($B20,Q$12,$E$8*2,$E$7+$J$7)*($E$8))) -> 4.470348358e-05 | R20: =IF(Q20="","",IF('Staff '!Q18="Insufficient","Staffing",$E$8-SLA($B20,R$12,$E$8*2,$E$7+$J$7)*($E$8))) -> 0 | S20: =IF(R20="","",IF('Staff '!R18="Insufficient","Staffing",$E$8-SLA($B20,S$12,$E$8*2,$E$7+$J$7)*($E$8))) -> 0 | T20: =IF(S20="","",IF('Staff '!S18="Insufficient","Staffing",$E$8-SLA($B20,T$12,$E$8*2,$E$7+$J$7)*($E$8))) -> 0 | U20: =IF(T20="","",IF('Staff '!T18="Insufficient","Staffing",$E$8-SLA($B20,U$12,$E$8*2,$E$7+$J$7)*($E$8))) -> 0
B21: ='Staff '!B19 -> 38 | C21: =IF('Staff '!H19="","",SLA($B21,$J$8,$E$8*2,$E$7+$J$7)) -> 0.9651962519 | D21: =IF($B21="","",IF('Staff '!C19="Insufficient","Staffing",$E$8-SLA($B21,D$12,$E$8*2,$E$7+$J$7)*($E$8))) -> 16.35253429 | E21: =IF('Staff '!H19="","",IF('Staff '!D19="Insufficient","Staffing",$E$8-SLA($B21,E$12,$E$8*2,$E$7+$J$7)*($E$8))) -> 13.2509023 | F21: =IF(E21="","",IF('Staff '!E19="Insufficient","Staffing",$E$8-SLA($B21,F$12,$E$8*2,$E$7+$J$7)*($E$8))) -> 10.73756814 | G21: =IF(F21="","",IF('Staff '!F19="Insufficient","Staffing",$E$8-SLA($B21,G$12,$E$8*2,$E$7+$J$7)*($E$8))) -> 8.700937033 | H21: =IF(G21="","",IF('Staff '!G19="Insufficient","Staffing",$E$8-SLA($B21,H$12,$E$8*2,$E$7+$J$7)*($E$8))) -> 5.713298917 | I21: =IF(H21="","",IF('Staff '!H19="Insufficient","Staffing",$E$8-SLA($B21,I$12,$E$8*2,$E$7+$J$7)*($E$8))) -> 3.751516342 | J21: =IF(I21="","",IF('Staff '!I19="Insufficient","Staffing",$E$8-SLA($B21,J$12,$E$8*2,$E$7+$J$7)*($E$8))) -> 2.46335566 | K21: =IF(J21="","",IF('Staff '!J19="Insufficient","Staffing",$E$8-SLA($B21,K$12,$E$8*2,$E$7+$J$7)*($E$8))) -> 1.617521048 | L21: =IF(K21="","",IF('Staff '!K19="Insufficient","Staffing",$E$8-SLA($B21,L$12,$E$8*2,$E$7+$J$7)*($E$8))) -> 0.4579424858 | M21: =IF(L21="","",IF('Staff '!L19="Insufficient","Staffing",$E$8-SLA($B21,M$12,$E$8*2,$E$7+$J$7)*($E$8))) -> 0.1296550035 | N21: =IF(M21="","",IF('Staff '!M19="Insufficient","Staffing",$E$8-SLA($B21,N$12,$E$8*2,$E$7+$J$7)*($E$8))) -> 0.01038610935 | O21: =IF(N21="","",IF('Staff '!N19="Insufficient","Staffing",$E$8-SLA($B21,O$12,$E$8*2,$E$7+$J$7)*($E$8))) -> 0.0008344650269 | P21: =IF(O21="","",IF('Staff '!O19="Insufficient","Staffing",$E$8-SLA($B21,P$12,$E$8*2,$E$7+$J$7)*($E$8))) -> 5.960464478e-05 | Q21: =IF(P21="","",IF('Staff '!P19="Insufficient","Staffing",$E$8-SLA($B21,Q$12,$E$8*2,$E$7+$J$7)*($E$8))) -> 0 | R21: =IF(Q21="","",IF('Staff '!Q19="Insufficient","Staffing",$E$8-SLA($B21,R$12,$E$8*2,$E$7+$J$7)*($E$8))) -> 0 | S21: =IF(R21="","",IF('Staff '!R19="Insufficient","Staffing",$E$8-SLA($B21,S$12,$E$8*2,$E$7+$J$7)*($E$8))) -> 0 | T21: =IF(S21="","",IF('Staff '!S19="Insufficient","Staffing",$E$8-SLA($B21,T$12,$E$8*2,$E$7+$J$7)*($E$8))) -> 0 | U21: =IF(T21="","",IF('Staff '!T19="Insufficient","Staffing",$E$8-SLA($B21,U$12,$E$8*2,$E$7+$J$7)*($E$8))) -> 0
B22: ='Staff '!B20 -> 39 | C22: =IF('Staff '!H20="","",SLA($B22,$J$8,$E$8*2,$E$7+$J$7)) -> 0.9780448079 | D22: =IF($B22="","",IF('Staff '!C20="Insufficient","Staffing",$E$8-SLA($B22,D$12,$E$8*2,$E$7+$J$7)*($E$8))) -> 11.07941568 | E22: =IF('Staff '!H20="","",IF('Staff '!D20="Insufficient","Staffing",$E$8-SLA($B22,E$12,$E$8*2,$E$7+$J$7)*($E$8))) -> 8.766710758 | F22: =IF(E22="","",IF('Staff '!E20="Insufficient","Staffing",$E$8-SLA($B22,F$12,$E$8*2,$E$7+$J$7)*($E$8))) -> 6.936758757 | G22: =IF(F22="","",IF('Staff '!F20="Insufficient","Staffing",$E$8-SLA($B22,G$12,$E$8*2,$E$7+$J$7)*($E$8))) -> 5.488798022 | H22: =IF(G22="","",IF('Staff '!G20="Insufficient","Staffing",$E$8-SLA($B22,H$12,$E$8*2,$E$7+$J$7)*($E$8))) -> 3.436505795 | I22: =IF(H22="","",IF('Staff '!H20="Insufficient","Staffing",$E$8-SLA($B22,I$12,$E$8*2,$E$7+$J$7)*($E$8))) -> 2.151578665 | J22: =IF(I22="","",IF('Staff '!I20="Insufficient","Staffing",$E$8-SLA($B22,J$12,$E$8*2,$E$7+$J$7)*($E$8))) -> 1.347094774 | K22: =IF(J22="","",IF('Staff '!J20="Insufficient","Staffing",$E$8-SLA($B22,K$12,$E$8*2,$E$7+$J$7)*($E$8))) -> 0.8434057236 | L22: =IF(K22="","",IF('Staff '!K20="Insufficient","Staffing",$E$8-SLA($B22,L$12,$E$8*2,$E$7+$J$7)*($E$8))) -> 0.2069920301 | M22: =IF(L22="","",IF('Staff '!L20="Insufficient","Staffing",$E$8-SLA($B22,M$12,$E$8*2,$E$7+$J$7)*($E$8))) -> 0.05079805851 | N22: =IF(M22="","",IF('Staff '!M20="Insufficient","Staffing",$E$8-SLA($B22,N$12,$E$8*2,$E$7+$J$7)*($E$8))) -> 0.003054738045 | O22: =IF(N22="","",IF('Staff '!N20="Insufficient","Staffing",$E$8-SLA($B22,O$12,$E$8*2,$E$7+$J$7)*($E$8))) -> 0.0001788139343 | P22: =IF(O22="","",IF('Staff '!O20="Insufficient","Staffing",$E$8-SLA($B22,P$12,$E$8*2,$E$7+$J$7)*($E$8))) -> 1.490116119e-05 | Q22: =IF(P22="","",IF('Staff '!P20="Insufficient","Staffing",$E$8-SLA($B22,Q$12,$E$8*2,$E$7+$J$7)*($E$8))) -> 0 | R22: =IF(Q22="","",IF('Staff '!Q20="Insufficient","Staffing",$E$8-SLA($B22,R$12,$E$8*2,$E$7+$J$7)*($E$8))) -> 0 | S22: =IF(R22="","",IF('Staff '!R20="Insufficient","Staffing",$E$8-SLA($B22,S$12,$E$8*2,$E$7+$J$7)*($E$8))) -> 0 | T22: =IF(S22="","",IF('Staff '!S20="Insufficient","Staffing",$E$8-SLA($B22,T$12,$E$8*2,$E$7+$J$7)*($E$8))) -> 0 | U22: =IF(T22="","",IF('Staff '!T20="Insufficient","Staffing",$E$8-SLA($B22,U$12,$E$8*2,$E$7+$J$7)*($E$8))) -> 0
B23: ='Staff '!B21 -> 40 | C23: =IF('Staff '!H21="","",SLA($B23,$J$8,$E$8*2,$E$7+$J$7)) -> 0.9863975048 | D23: =IF($B23="","",IF('Staff '!C21="Insufficient","Staffing",$E$8-SLA($B23,D$12,$E$8*2,$E$7+$J$7)*($E$8))) -> 7.372587919 | E23: =IF('Staff '!H21="","",IF('Staff '!D21="Insufficient","Staffing",$E$8-SLA($B23,E$12,$E$8*2,$E$7+$J$7)*($E$8))) -> 5.696386099 | F23: =IF(E23="","",IF('Staff '!E21="Insufficient","Staffing",$E$8-SLA($B23,F$12,$E$8*2,$E$7+$J$7)*($E$8))) -> 4.401281476 | G23: =IF(F23="","",IF('Staff '!F21="Insufficient","Staffing",$E$8-SLA($B23,G$12,$E$8*2,$E$7+$J$7)*($E$8))) -> 3.400623798 | H23: =IF(G23="","",IF('Staff '!G21="Insufficient","Staffing",$E$8-SLA($B23,H$12,$E$8*2,$E$7+$J$7)*($E$8))) -> 2.030104399 | I23: =IF(H23="","",IF('Staff '!H21="Insufficient","Staffing",$E$8-SLA($B23,I$12,$E$8*2,$E$7+$J$7)*($E$8))) -> 1.211926341 | J23: =IF(I23="","",IF('Staff '!I21="Insufficient","Staffing",$E$8-SLA($B23,J$12,$E$8*2,$E$7+$J$7)*($E$8))) -> 0.7234960794 | K23: =IF(J23="","",IF('Staff '!J21="Insufficient","Staffing",$E$8-SLA($B23,K$12,$E$8*2,$E$7+$J$7)*($E$8))) -> 0.4319101572 | L23: =IF(K23="","",IF('Staff '!K21="Insufficient","Staffing",$E$8-SLA($B23,L$12,$E$8*2,$E$7+$J$7)*($E$8))) -> 0.09189546108 | M23: =IF(L23="","",IF('Staff '!L21="Insufficient","Staffing",$E$8-SLA($B23,M$12,$E$8*2,$E$7+$J$7)*($E$8))) -> 0.01955032349 | N23: =IF(M23="","",IF('Staff '!M21="Insufficient","Staffing",$E$8-SLA($B23,N$12,$E$8*2,$E$7+$J$7)*($E$8))) -> 0.0008791685104 | O23: =IF(N23="","",IF('Staff '!N21="Insufficient","Staffing",$E$8-SLA($B23,O$12,$E$8*2,$E$7+$J$7)*($E$8))) -> 4.470348358e-05 | P23: =IF(O23="","",IF('Staff '!O21="Insufficient","Staffing",$E$8-SLA($B23,P$12,$E$8*2,$E$7+$J$7)*($E$8))) -> 0 | Q23: =IF(P23="","",IF('Staff '!P21="Insufficient","Staffing",$E$8-SLA($B23,Q$12,$E$8*2,$E$7+$J$7)*($E$8))) -> 0 | R23: =IF(Q23="","",IF('Staff '!Q21="Insufficient","Staffing",$E$8-SLA($B23,R$12,$E$8*2,$E$7+$J$7)*($E$8))) -> 0 | S23: =IF(R23="","",IF('Staff '!R21="Insufficient","Staffing",$E$8-SLA($B23,S$12,$E$8*2,$E$7+$J$7)*($E$8))) -> 0 | T23: =IF(S23="","",IF('Staff '!S21="Insufficient","Staffing",$E$8-SLA($B23,T$12,$E$8*2,$E$7+$J$7)*($E$8))) -> 0 | U23: =IF(T23="","",IF('Staff '!T21="Insufficient","Staffing",$E$8-SLA($B23,U$12,$E$8*2,$E$7+$J$7)*($E$8))) -> 0
B24: ='Staff '!B22 -> 41 | C24: =IF('Staff '!H22="","",SLA($B24,$J$8,$E$8*2,$E$7+$J$7)) -> 0.9917251468 | D24: =IF($B24="","",IF('Staff '!C22="Insufficient","Staffing",$E$8-SLA($B24,D$12,$E$8*2,$E$7+$J$7)*($E$8))) -> 4.817083478 | E24: =IF('Staff '!H22="","",IF('Staff '!D22="Insufficient","Staffing",$E$8-SLA($B24,E$12,$E$8*2,$E$7+$J$7)*($E$8))) -> 3.634318709 | F24: =IF(E24="","",IF('Staff '!E22="Insufficient","Staffing",$E$8-SLA($B24,F$12,$E$8*2,$E$7+$J$7)*($E$8))) -> 2.741962671 | G24: =IF(F24="","",IF('Staff '!F22="Insufficient","Staffing",$E$8-SLA($B24,G$12,$E$8*2,$E$7+$J$7)*($E$8))) -> 2.068713307 | H24: =IF(G24="","",IF('Staff '!G22="Insufficient","Staffing",$E$8-SLA($B24,H$12,$E$8*2,$E$7+$J$7)*($E$8))) -> 1.177549362 | I24: =IF(H24="","",IF('Staff '!H22="Insufficient","Staffing",$E$8-SLA($B24,I$12,$E$8*2,$E$7+$J$7)*($E$8))) -> 0.6702840328 | J24: =IF(I24="","",IF('Staff '!I22="Insufficient","Staffing",$E$8-SLA($B24,J$12,$E$8*2,$E$7+$J$7)*($E$8))) -> 0.3815442324 | K24: =IF(J24="","",IF('Staff '!J22="Insufficient","Staffing",$E$8-SLA($B24,K$12,$E$8*2,$E$7+$J$7)*($E$8))) -> 0.2171844244 | L24: =IF(K24="","",IF('Staff '!K22="Insufficient","Staffing",$E$8-SLA($B24,L$12,$E$8*2,$E$7+$J$7)*($E$8))) -> 0.04005432129 | M24: =IF(L24="","",IF('Staff '!L22="Insufficient","Staffing",$E$8-SLA($B24,M$12,$E$8*2,$E$7+$J$7)*($E$8))) -> 0.007390975952 | N24: =IF(M24="","",IF('Staff '!M22="Insufficient","Staffing",$E$8-SLA($B24,N$12,$E$8*2,$E$7+$J$7)*($E$8))) -> 0.0002533197403 | O24: =IF(N24="","",IF('Staff '!N22="Insufficient","Staffing",$E$8-SLA($B24,O$12,$E$8*2,$E$7+$J$7)*($E$8))) -> 1.490116119e-05 | P24: =IF(O24="","",IF('Staff '!O22="Insufficient","Staffing",$E$8-SLA($B24,P$12,$E$8*2,$E$7+$J$7)*($E$8))) -> 0 | Q24: =IF(P24="","",IF('Staff '!P22="Insufficient","Staffing",$E$8-SLA($B24,Q$12,$E$8*2,$E$7+$J$7)*($E$8))) -> 0 | R24: =IF(Q24="","",IF('Staff '!Q22="Insufficient","Staffing",$E$8-SLA($B24,R$12,$E$8*2,$E$7+$J$7)*($E$8))) -> 0 | S24: =IF(R24="","",IF('Staff '!R22="Insufficient","Staffing",$E$8-SLA($B24,S$12,$E$8*2,$E$7+$J$7)*($E$8))) -> 0 | T24: =IF(S24="","",IF('Staff '!S22="Insufficient","Staffing",$E$8-SLA($B24,T$12,$E$8*2,$E$7+$J$7)*($E$8))) -> 0 | U24: =IF(T24="","",IF('Staff '!T22="Insufficient","Staffing",$E$8-SLA($B24,U$12,$E$8*2,$E$7+$J$7)*($E$8))) -> 0
B25: ='Staff '!B23 -> 42 | C25: =IF('Staff '!H23="","",SLA($B25,$J$8,$E$8*2,$E$7+$J$7)) -> 0.9950581789 | D25: =IF($B25="","",IF('Staff '!C23="Insufficient","Staffing",$E$8-SLA($B25,D$12,$E$8*2,$E$7+$J$7)*($E$8))) -> 3.089800477 | E25: =IF('Staff '!H23="","",IF('Staff '!D23="Insufficient","Staffing",$E$8-SLA($B25,E$12,$E$8*2,$E$7+$J$7)*($E$8))) -> 2.276301384 | F25: =IF(E25="","",IF('Staff '!E23="Insufficient","Staffing",$E$8-SLA($B25,F$12,$E$8*2,$E$7+$J$7)*($E$8))) -> 1.676976681 | G25: =IF(F25="","",IF('Staff '!F23="Insufficient","Staffing",$E$8-SLA($B25,G$12,$E$8*2,$E$7+$J$7)*($E$8))) -> 1.235455275 | H25: =IF(G25="","",IF('Staff '!G23="Insufficient","Staffing",$E$8-SLA($B25,H$12,$E$8*2,$E$7+$J$7)*($E$8))) -> 0.6705373526 | I25: =IF(H25="","",IF('Staff '!H23="Insufficient","Staffing",$E$8-SLA($B25,I$12,$E$8*2,$E$7+$J$7)*($E$8))) -> 0.3639310598 | J25: =IF(I25="","",IF('Staff '!I23="Insufficient","Staffing",$E$8-SLA($B25,J$12,$E$8*2,$E$7+$J$7)*($E$8))) -> 0.1975297928 | K25: =IF(J25="","",IF('Staff '!J23="Insufficient","Staffing",$E$8-SLA($B25,K$12,$E$8*2,$E$7+$J$7)*($E$8))) -> 0.1071989536 | L25: =IF(K25="","",IF('Staff '!K23="Insufficient","Staffing",$E$8-SLA($B25,L$12,$E$8*2,$E$7+$J$7)*($E$8))) -> 0.01713633537 | M25: =IF(L25="","",IF('Staff '!L23="Insufficient","Staffing",$E$8-SLA($B25,M$12,$E$8*2,$E$7+$J$7)*($E$8))) -> 0.00274181366 | N25: =IF(M25="","",IF('Staff '!M23="Insufficient","Staffing",$E$8-SLA($B25,N$12,$E$8*2,$E$7+$J$7)*($E$8))) -> 7.450580597e-05 | O25: =IF(N25="","",IF('Staff '!N23="Insufficient","Staffing",$E$8-SLA($B25,O$12,$E$8*2,$E$7+$J$7)*($E$8))) -> 0 | P25: =IF(O25="","",IF('Staff '!O23="Insufficient","Staffing",$E$8-SLA($B25,P$12,$E$8*2,$E$7+$J$7)*($E$8))) -> 0 | Q25: =IF(P25="","",IF('Staff '!P23="Insufficient","Staffing",$E$8-SLA($B25,Q$12,$E$8*2,$E$7+$J$7)*($E$8))) -> 0 | R25: =IF(Q25="","",IF('Staff '!Q23="Insufficient","Staffing",$E$8-SLA($B25,R$12,$E$8*2,$E$7+$J$7)*($E$8))) -> 0 | S25: =IF(R25="","",IF('Staff '!R23="Insufficient","Staffing",$E$8-SLA($B25,S$12,$E$8*2,$E$7+$J$7)*($E$8))) -> 0 | T25: =IF(S25="","",IF('Staff '!S23="Insufficient","Staffing",$E$8-SLA($B25,T$12,$E$8*2,$E$7+$J$7)*($E$8))) -> 0 | U25: =IF(T25="","",IF('Staff '!T23="Insufficient","Staffing",$E$8-SLA($B25,U$12,$E$8*2,$E$7+$J$7)*($E$8))) -> 0
B26: ='Staff '!B24 ->  | C26: =IF('Staff '!H24="","",SLA($B26,$J$8,$E$8*2,$E$7+$J$7)) ->  | D26: =IF($B26="","",IF('Staff '!C24="Insufficient","Staffing",$E$8-SLA($B26,D$12,$E$8*2,$E$7+$J$7)*($E$8))) ->  | E26: =IF('Staff '!H24="","",IF('Staff '!D24="Insufficient","Staffing",$E$8-SLA($B26,E$12,$E$8*2,$E$7+$J$7)*($E$8))) ->  | F26: =IF(E26="","",IF('Staff '!E24="Insufficient","Staffing",$E$8-SLA($B26,F$12,$E$8*2,$E$7+$J$7)*($E$8))) ->  | G26: =IF(F26="","",IF('Staff '!F24="Insufficient","Staffing",$E$8-SLA($B26,G$12,$E$8*2,$E$7+$J$7)*($E$8))) ->  | H26: =IF(G26="","",IF('Staff '!G24="Insufficient","Staffing",$E$8-SLA($B26,H$12,$E$8*2,$E$7+$J$7)*($E$8))) ->  | I26: =IF(H26="","",IF('Staff '!H24="Insufficient","Staffing",$E$8-SLA($B26,I$12,$E$8*2,$E$7+$J$7)*($E$8))) ->  | J26: =IF(I26="","",IF('Staff '!I24="Insufficient","Staffing",$E$8-SLA($B26,J$12,$E$8*2,$E$7+$J$7)*($E$8))) ->  | K26: =IF(J26="","",IF('Staff '!J24="Insufficient","Staffing",$E$8-SLA($B26,K$12,$E$8*2,$E$7+$J$7)*($E$8))) ->  | L26: =IF(K26="","",IF('Staff '!K24="Insufficient","Staffing",$E$8-SLA($B26,L$12,$E$8*2,$E$7+$J$7)*($E$8))) ->  | M26: =IF(L26="","",IF('Staff '!L24="Insufficient","Staffing",$E$8-SLA($B26,M$12,$E$8*2,$E$7+$J$7)*($E$8))) ->  | N26: =IF(M26="","",IF('Staff '!M24="Insufficient","Staffing",$E$8-SLA($B26,N$12,$E$8*2,$E$7+$J$7)*($E$8))) ->  | O26: =IF(N26="","",IF('Staff '!N24="Insufficient","Staffing",$E$8-SLA($B26,O$12,$E$8*2,$E$7+$J$7)*($E$8))) ->  | P26: =IF(O26="","",IF('Staff '!O24="Insufficient","Staffing",$E$8-SLA($B26,P$12,$E$8*2,$E$7+$J$7)*($E$8))) ->  | Q26: =IF(P26="","",IF('Staff '!P24="Insufficient","Staffing",$E$8-SLA($B26,Q$12,$E$8*2,$E$7+$J$7)*($E$8))) ->  | R26: =IF(Q26="","",IF('Staff '!Q24="Insufficient","Staffing",$E$8-SLA($B26,R$12,$E$8*2,$E$7+$J$7)*($E$8))) ->  | S26: =IF(R26="","",IF('Staff '!R24="Insufficient","Staffing",$E$8-SLA($B26,S$12,$E$8*2,$E$7+$J$7)*($E$8))) ->  | T26: =IF(S26="","",IF('Staff '!S24="Insufficient","Staffing",$E$8-SLA($B26,T$12,$E$8*2,$E$7+$J$7)*($E$8))) ->  | U26: =IF(T26="","",IF('Staff '!T24="Insufficient","Staffing",$E$8-SLA($B26,U$12,$E$8*2,$E$7+$J$7)*($E$8))) -> 
B27: ='Staff '!B25 ->  | C27: =IF('Staff '!H25="","",SLA($B27,$J$8,$E$8*2,$E$7+$J$7)) ->  | D27: =IF($B27="","",IF('Staff '!C25="Insufficient","Staffing",$E$8-SLA($B27,D$12,$E$8*2,$E$7+$J$7)*($E$8))) ->  | E27: =IF('Staff '!H25="","",IF('Staff '!D25="Insufficient","Staffing",$E$8-SLA($B27,E$12,$E$8*2,$E$7+$J$7)*($E$8))) ->  | F27: =IF(E27="","",IF('Staff '!E25="Insufficient","Staffing",$E$8-SLA($B27,F$12,$E$8*2,$E$7+$J$7)*($E$8))) ->  | G27: =IF(F27="","",IF('Staff '!F25="Insufficient","Staffing",$E$8-SLA($B27,G$12,$E$8*2,$E$7+$J$7)*($E$8))) ->  | H27: =IF(G27="","",IF('Staff '!G25="Insufficient","Staffing",$E$8-SLA($B27,H$12,$E$8*2,$E$7+$J$7)*($E$8))) ->  | I27: =IF(H27="","",IF('Staff '!H25="Insufficient","Staffing",$E$8-SLA($B27,I$12,$E$8*2,$E$7+$J$7)*($E$8))) ->  | J27: =IF(I27="","",IF('Staff '!I25="Insufficient","Staffing",$E$8-SLA($B27,J$12,$E$8*2,$E$7+$J$7)*($E$8))) ->  | K27: =IF(J27="","",IF('Staff '!J25="Insufficient","Staffing",$E$8-SLA($B27,K$12,$E$8*2,$E$7+$J$7)*($E$8))) ->  | L27: =IF(K27="","",IF('Staff '!K25="Insufficient","Staffing",$E$8-SLA($B27,L$12,$E$8*2,$E$7+$J$7)*($E$8))) ->  | M27: =IF(L27="","",IF('Staff '!L25="Insufficient","Staffing",$E$8-SLA($B27,M$12,$E$8*2,$E$7+$J$7)*($E$8))) ->  | N27: =IF(M27="","",IF('Staff '!M25="Insufficient","Staffing",$E$8-SLA($B27,N$12,$E$8*2,$E$7+$J$7)*($E$8))) ->  | O27: =IF(N27="","",IF('Staff '!N25="Insufficient","Staffing",$E$8-SLA($B27,O$12,$E$8*2,$E$7+$J$7)*($E$8))) ->  | P27: =IF(O27="","",IF('Staff '!O25="Insufficient","Staffing",$E$8-SLA($B27,P$12,$E$8*2,$E$7+$J$7)*($E$8))) ->  | Q27: =IF(P27="","",IF('Staff '!P25="Insufficient","Staffing",$E$8-SLA($B27,Q$12,$E$8*2,$E$7+$J$7)*($E$8))) ->  | R27: =IF(Q27="","",IF('Staff '!Q25="Insufficient","Staffing",$E$8-SLA($B27,R$12,$E$8*2,$E$7+$J$7)*($E$8))) ->  | S27: =IF(R27="","",IF('Staff '!R25="Insufficient","Staffing",$E$8-SLA($B27,S$12,$E$8*2,$E$7+$J$7)*($E$8))) ->  | T27: =IF(S27="","",IF('Staff '!S25="Insufficient","Staffing",$E$8-SLA($B27,T$12,$E$8*2,$E$7+$J$7)*($E$8))) ->  | U27: =IF(T27="","",IF('Staff '!T25="Insufficient","Staffing",$E$8-SLA($B27,U$12,$E$8*2,$E$7+$J$7)*($E$8))) -> 
B28: ='Staff '!B26 ->  | C28: =IF('Staff '!H26="","",SLA($B28,$J$8,$E$8*2,$E$7+$J$7)) ->  | D28: =IF($B28="","",IF('Staff '!C26="Insufficient","Staffing",$E$8-SLA($B28,D$12,$E$8*2,$E$7+$J$7)*($E$8))) ->  | E28: =IF('Staff '!H26="","",IF('Staff '!D26="Insufficient","Staffing",$E$8-SLA($B28,E$12,$E$8*2,$E$7+$J$7)*($E$8))) ->  | F28: =IF(E28="","",IF('Staff '!E26="Insufficient","Staffing",$E$8-SLA($B28,F$12,$E$8*2,$E$7+$J$7)*($E$8))) ->  | G28: =IF(F28="","",IF('Staff '!F26="Insufficient","Staffing",$E$8-SLA($B28,G$12,$E$8*2,$E$7+$J$7)*($E$8))) ->  | H28: =IF(G28="","",IF('Staff '!G26="Insufficient","Staffing",$E$8-SLA($B28,H$12,$E$8*2,$E$7+$J$7)*($E$8))) ->  | I28: =IF(H28="","",IF('Staff '!H26="Insufficient","Staffing",$E$8-SLA($B28,I$12,$E$8*2,$E$7+$J$7)*($E$8))) ->  | J28: =IF(I28="","",IF('Staff '!I26="Insufficient","Staffing",$E$8-SLA($B28,J$12,$E$8*2,$E$7+$J$7)*($E$8))) ->  | K28: =IF(J28="","",IF('Staff '!J26="Insufficient","Staffing",$E$8-SLA($B28,K$12,$E$8*2,$E$7+$J$7)*($E$8))) ->  | L28: =IF(K28="","",IF('Staff '!K26="Insufficient","Staffing",$E$8-SLA($B28,L$12,$E$8*2,$E$7+$J$7)*($E$8))) ->  | M28: =IF(L28="","",IF('Staff '!L26="Insufficient","Staffing",$E$8-SLA($B28,M$12,$E$8*2,$E$7+$J$7)*($E$8))) ->  | N28: =IF(M28="","",IF('Staff '!M26="Insufficient","Staffing",$E$8-SLA($B28,N$12,$E$8*2,$E$7+$J$7)*($E$8))) ->  | O28: =IF(N28="","",IF('Staff '!N26="Insufficient","Staffing",$E$8-SLA($B28,O$12,$E$8*2,$E$7+$J$7)*($E$8))) ->  | P28: =IF(O28="","",IF('Staff '!O26="Insufficient","Staffing",$E$8-SLA($B28,P$12,$E$8*2,$E$7+$J$7)*($E$8))) ->  | Q28: =IF(P28="","",IF('Staff '!P26="Insufficient","Staffing",$E$8-SLA($B28,Q$12,$E$8*2,$E$7+$J$7)*($E$8))) ->  | R28: =IF(Q28="","",IF('Staff '!Q26="Insufficient","Staffing",$E$8-SLA($B28,R$12,$E$8*2,$E$7+$J$7)*($E$8))) ->  | S28: =IF(R28="","",IF('Staff '!R26="Insufficient","Staffing",$E$8-SLA($B28,S$12,$E$8*2,$E$7+$J$7)*($E$8))) ->  | T28: =IF(S28="","",IF('Staff '!S26="Insufficient","Staffing",$E$8-SLA($B28,T$12,$E$8*2,$E$7+$J$7)*($E$8))) ->  | U28: =IF(T28="","",IF('Staff '!T26="Insufficient","Staffing",$E$8-SLA($B28,U$12,$E$8*2,$E$7+$J$7)*($E$8))) -> 
B29: ='Staff '!B27 ->  | C29: =IF('Staff '!H27="","",SLA($B29,$J$8,$E$8*2,$E$7+$J$7)) ->  | D29: =IF($B29="","",IF('Staff '!C27="Insufficient","Staffing",$E$8-SLA($B29,D$12,$E$8*2,$E$7+$J$7)*($E$8))) ->  | E29: =IF('Staff '!H27="","",IF('Staff '!D27="Insufficient","Staffing",$E$8-SLA($B29,E$12,$E$8*2,$E$7+$J$7)*($E$8))) ->  | F29: =IF(E29="","",IF('Staff '!E27="Insufficient","Staffing",$E$8-SLA($B29,F$12,$E$8*2,$E$7+$J$7)*($E$8))) ->  | G29: =IF(F29="","",IF('Staff '!F27="Insufficient","Staffing",$E$8-SLA($B29,G$12,$E$8*2,$E$7+$J$7)*($E$8))) ->  | H29: =IF(G29="","",IF('Staff '!G27="Insufficient","Staffing",$E$8-SLA($B29,H$12,$E$8*2,$E$7+$J$7)*($E$8))) ->  | I29: =IF(H29="","",IF('Staff '!H27="Insufficient","Staffing",$E$8-SLA($B29,I$12,$E$8*2,$E$7+$J$7)*($E$8))) ->  | J29: =IF(I29="","",IF('Staff '!I27="Insufficient","Staffing",$E$8-SLA($B29,J$12,$E$8*2,$E$7+$J$7)*($E$8))) ->  | K29: =IF(J29="","",IF('Staff '!J27="Insufficient","Staffing",$E$8-SLA($B29,K$12,$E$8*2,$E$7+$J$7)*($E$8))) ->  | L29: =IF(K29="","",IF('Staff '!K27="Insufficient","Staffing",$E$8-SLA($B29,L$12,$E$8*2,$E$7+$J$7)*($E$8))) ->  | M29: =IF(L29="","",IF('Staff '!L27="Insufficient","Staffing",$E$8-SLA($B29,M$12,$E$8*2,$E$7+$J$7)*($E$8))) ->  | N29: =IF(M29="","",IF('Staff '!M27="Insufficient","Staffing",$E$8-SLA($B29,N$12,$E$8*2,$E$7+$J$7)*($E$8))) ->  | O29: =IF(N29="","",IF('Staff '!N27="Insufficient","Staffing",$E$8-SLA($B29,O$12,$E$8*2,$E$7+$J$7)*($E$8))) ->  | P29: =IF(O29="","",IF('Staff '!O27="Insufficient","Staffing",$E$8-SLA($B29,P$12,$E$8*2,$E$7+$J$7)*($E$8))) ->  | Q29: =IF(P29="","",IF('Staff '!P27="Insufficient","Staffing",$E$8-SLA($B29,Q$12,$E$8*2,$E$7+$J$7)*($E$8))) ->  | R29: =IF(Q29="","",IF('Staff '!Q27="Insufficient","Staffing",$E$8-SLA($B29,R$12,$E$8*2,$E$7+$J$7)*($E$8))) ->  | S29: =IF(R29="","",IF('Staff '!R27="Insufficient","Staffing",$E$8-SLA($B29,S$12,$E$8*2,$E$7+$J$7)*($E$8))) ->  | T29: =IF(S29="","",IF('Staff '!S27="Insufficient","Staffing",$E$8-SLA($B29,T$12,$E$8*2,$E$7+$J$7)*($E$8))) ->  | U29: =IF(T29="","",IF('Staff '!T27="Insufficient","Staffing",$E$8-SLA($B29,U$12,$E$8*2,$E$7+$J$7)*($E$8))) -> 
B30: ='Staff '!B28 ->  | C30: =IF('Staff '!H28="","",SLA($B30,$J$8,$E$8*2,$E$7+$J$7)) ->  | D30: =IF($B30="","",IF('Staff '!C28="Insufficient","Staffing",$E$8-SLA($B30,D$12,$E$8*2,$E$7+$J$7)*($E$8))) ->  | E30: =IF('Staff '!H28="","",IF('Staff '!D28="Insufficient","Staffing",$E$8-SLA($B30,E$12,$E$8*2,$E$7+$J$7)*($E$8))) ->  | F30: =IF(E30="","",IF('Staff '!E28="Insufficient","Staffing",$E$8-SLA($B30,F$12,$E$8*2,$E$7+$J$7)*($E$8))) ->  | G30: =IF(F30="","",IF('Staff '!F28="Insufficient","Staffing",$E$8-SLA($B30,G$12,$E$8*2,$E$7+$J$7)*($E$8))) ->  | H30: =IF(G30="","",IF('Staff '!G28="Insufficient","Staffing",$E$8-SLA($B30,H$12,$E$8*2,$E$7+$J$7)*($E$8))) ->  | I30: =IF(H30="","",IF('Staff '!H28="Insufficient","Staffing",$E$8-SLA($B30,I$12,$E$8*2,$E$7+$J$7)*($E$8))) ->  | J30: =IF(I30="","",IF('Staff '!I28="Insufficient","Staffing",$E$8-SLA($B30,J$12,$E$8*2,$E$7+$J$7)*($E$8))) ->  | K30: =IF(J30="","",IF('Staff '!J28="Insufficient","Staffing",$E$8-SLA($B30,K$12,$E$8*2,$E$7+$J$7)*($E$8))) ->  | L30: =IF(K30="","",IF('Staff '!K28="Insufficient","Staffing",$E$8-SLA($B30,L$12,$E$8*2,$E$7+$J$7)*($E$8))) ->  | M30: =IF(L30="","",IF('Staff '!L28="Insufficient","Staffing",$E$8-SLA($B30,M$12,$E$8*2,$E$7+$J$7)*($E$8))) ->  | N30: =IF(M30="","",IF('Staff '!M28="Insufficient","Staffing",$E$8-SLA($B30,N$12,$E$8*2,$E$7+$J$7)*($E$8))) ->  | O30: =IF(N30="","",IF('Staff '!N28="Insufficient","Staffing",$E$8-SLA($B30,O$12,$E$8*2,$E$7+$J$7)*($E$8))) ->  | P30: =IF(O30="","",IF('Staff '!O28="Insufficient","Staffing",$E$8-SLA($B30,P$12,$E$8*2,$E$7+$J$7)*($E$8))) ->  | Q30: =IF(P30="","",IF('Staff '!P28="Insufficient","Staffing",$E$8-SLA($B30,Q$12,$E$8*2,$E$7+$J$7)*($E$8))) ->  | R30: =IF(Q30="","",IF('Staff '!Q28="Insufficient","Staffing",$E$8-SLA($B30,R$12,$E$8*2,$E$7+$J$7)*($E$8))) ->  | S30: =IF(R30="","",IF('Staff '!R28="Insufficient","Staffing",$E$8-SLA($B30,S$12,$E$8*2,$E$7+$J$7)*($E$8))) ->  | T30: =IF(S30="","",IF('Staff '!S28="Insufficient","Staffing",$E$8-SLA($B30,T$12,$E$8*2,$E$7+$J$7)*($E$8))) ->  | U30: =IF(T30="","",IF('Staff '!T28="Insufficient","Staffing",$E$8-SLA($B30,U$12,$E$8*2,$E$7+$J$7)*($E$8))) -> 
B31: ='Staff '!B29 ->  | C31: =IF('Staff '!H29="","",SLA($B31,$J$8,$E$8*2,$E$7+$J$7)) ->  | D31: =IF($B31="","",IF('Staff '!C29="Insufficient","Staffing",$E$8-SLA($B31,D$12,$E$8*2,$E$7+$J$7)*($E$8))) ->  | E31: =IF('Staff '!H29="","",IF('Staff '!D29="Insufficient","Staffing",$E$8-SLA($B31,E$12,$E$8*2,$E$7+$J$7)*($E$8))) ->  | F31: =IF(E31="","",IF('Staff '!E29="Insufficient","Staffing",$E$8-SLA($B31,F$12,$E$8*2,$E$7+$J$7)*($E$8))) ->  | G31: =IF(F31="","",IF('Staff '!F29="Insufficient","Staffing",$E$8-SLA($B31,G$12,$E$8*2,$E$7+$J$7)*($E$8))) ->  | H31: =IF(G31="","",IF('Staff '!G29="Insufficient","Staffing",$E$8-SLA($B31,H$12,$E$8*2,$E$7+$J$7)*($E$8))) ->  | I31: =IF(H31="","",IF('Staff '!H29="Insufficient","Staffing",$E$8-SLA($B31,I$12,$E$8*2,$E$7+$J$7)*($E$8))) ->  | J31: =IF(I31="","",IF('Staff '!I29="Insufficient","Staffing",$E$8-SLA($B31,J$12,$E$8*2,$E$7+$J$7)*($E$8))) ->  | K31: =IF(J31="","",IF('Staff '!J29="Insufficient","Staffing",$E$8-SLA($B31,K$12,$E$8*2,$E$7+$J$7)*($E$8))) ->  | L31: =IF(K31="","",IF('Staff '!K29="Insufficient","Staffing",$E$8-SLA($B31,L$12,$E$8*2,$E$7+$J$7)*($E$8))) ->  | M31: =IF(L31="","",IF('Staff '!L29="Insufficient","Staffing",$E$8-SLA($B31,M$12,$E$8*2,$E$7+$J$7)*($E$8))) ->  | N31: =IF(M31="","",IF('Staff '!M29="Insufficient","Staffing",$E$8-SLA($B31,N$12,$E$8*2,$E$7+$J$7)*($E$8))) ->  | O31: =IF(N31="","",IF('Staff '!N29="Insufficient","Staffing",$E$8-SLA($B31,O$12,$E$8*2,$E$7+$J$7)*($E$8))) ->  | P31: =IF(O31="","",IF('Staff '!O29="Insufficient","Staffing",$E$8-SLA($B31,P$12,$E$8*2,$E$7+$J$7)*($E$8))) ->  | Q31: =IF(P31="","",IF('Staff '!P29="Insufficient","Staffing",$E$8-SLA($B31,Q$12,$E$8*2,$E$7+$J$7)*($E$8))) ->  | R31: =IF(Q31="","",IF('Staff '!Q29="Insufficient","Staffing",$E$8-SLA($B31,R$12,$E$8*2,$E$7+$J$7)*($E$8))) ->  | S31: =IF(R31="","",IF('Staff '!R29="Insufficient","Staffing",$E$8-SLA($B31,S$12,$E$8*2,$E$7+$J$7)*($E$8))) ->  | T31: =IF(S31="","",IF('Staff '!S29="Insufficient","Staffing",$E$8-SLA($B31,T$12,$E$8*2,$E$7+$J$7)*($E$8))) ->  | U31: =IF(T31="","",IF('Staff '!T29="Insufficient","Staffing",$E$8-SLA($B31,U$12,$E$8*2,$E$7+$J$7)*($E$8))) -> 
B32: ='Staff '!B30 ->  | C32: =IF('Staff '!H30="","",SLA($B32,$J$8,$E$8*2,$E$7+$J$7)) ->  | D32: =IF($B32="","",IF('Staff '!C30="Insufficient","Staffing",$E$8-SLA($B32,D$12,$E$8*2,$E$7+$J$7)*($E$8))) ->  | E32: =IF('Staff '!H30="","",IF('Staff '!D30="Insufficient","Staffing",$E$8-SLA($B32,E$12,$E$8*2,$E$7+$J$7)*($E$8))) ->  | F32: =IF(E32="","",IF('Staff '!E30="Insufficient","Staffing",$E$8-SLA($B32,F$12,$E$8*2,$E$7+$J$7)*($E$8))) ->  | G32: =IF(F32="","",IF('Staff '!F30="Insufficient","Staffing",$E$8-SLA($B32,G$12,$E$8*2,$E$7+$J$7)*($E$8))) ->  | H32: =IF(G32="","",IF('Staff '!G30="Insufficient","Staffing",$E$8-SLA($B32,H$12,$E$8*2,$E$7+$J$7)*($E$8))) ->  | I32: =IF(H32="","",IF('Staff '!H30="Insufficient","Staffing",$E$8-SLA($B32,I$12,$E$8*2,$E$7+$J$7)*($E$8))) ->  | J32: =IF(I32="","",IF('Staff '!I30="Insufficient","Staffing",$E$8-SLA($B32,J$12,$E$8*2,$E$7+$J$7)*($E$8))) ->  | K32: =IF(J32="","",IF('Staff '!J30="Insufficient","Staffing",$E$8-SLA($B32,K$12,$E$8*2,$E$7+$J$7)*($E$8))) ->  | L32: =IF(K32="","",IF('Staff '!K30="Insufficient","Staffing",$E$8-SLA($B32,L$12,$E$8*2,$E$7+$J$7)*($E$8))) ->  | M32: =IF(L32="","",IF('Staff '!L30="Insufficient","Staffing",$E$8-SLA($B32,M$12,$E$8*2,$E$7+$J$7)*($E$8))) ->  | N32: =IF(M32="","",IF('Staff '!M30="Insufficient","Staffing",$E$8-SLA($B32,N$12,$E$8*2,$E$7+$J$7)*($E$8))) ->  | O32: =IF(N32="","",IF('Staff '!N30="Insufficient","Staffing",$E$8-SLA($B32,O$12,$E$8*2,$E$7+$J$7)*($E$8))) ->  | P32: =IF(O32="","",IF('Staff '!O30="Insufficient","Staffing",$E$8-SLA($B32,P$12,$E$8*2,$E$7+$J$7)*($E$8))) ->  | Q32: =IF(P32="","",IF('Staff '!P30="Insufficient","Staffing",$E$8-SLA($B32,Q$12,$E$8*2,$E$7+$J$7)*($E$8))) ->  | R32: =IF(Q32="","",IF('Staff '!Q30="Insufficient","Staffing",$E$8-SLA($B32,R$12,$E$8*2,$E$7+$J$7)*($E$8))) ->  | S32: =IF(R32="","",IF('Staff '!R30="Insufficient","Staffing",$E$8-SLA($B32,S$12,$E$8*2,$E$7+$J$7)*($E$8))) ->  | T32: =IF(S32="","",IF('Staff '!S30="Insufficient","Staffing",$E$8-SLA($B32,T$12,$E$8*2,$E$7+$J$7)*($E$8))) ->  | U32: =IF(T32="","",IF('Staff '!T30="Insufficient","Staffing",$E$8-SLA($B32,U$12,$E$8*2,$E$7+$J$7)*($E$8))) -> 
B33: ='Staff '!B31 ->  | C33: =IF('Staff '!H31="","",SLA($B33,$J$8,$E$8*2,$E$7+$J$7)) ->  | D33: =IF($B33="","",IF('Staff '!C31="Insufficient","Staffing",$E$8-SLA($B33,D$12,$E$8*2,$E$7+$J$7)*($E$8))) ->  | E33: =IF('Staff '!H31="","",IF('Staff '!D31="Insufficient","Staffing",$E$8-SLA($B33,E$12,$E$8*2,$E$7+$J$7)*($E$8))) ->  | F33: =IF(E33="","",IF('Staff '!E31="Insufficient","Staffing",$E$8-SLA($B33,F$12,$E$8*2,$E$7+$J$7)*($E$8))) ->  | G33: =IF(F33="","",IF('Staff '!F31="Insufficient","Staffing",$E$8-SLA($B33,G$12,$E$8*2,$E$7+$J$7)*($E$8))) ->  | H33: =IF(G33="","",IF('Staff '!G31="Insufficient","Staffing",$E$8-SLA($B33,H$12,$E$8*2,$E$7+$J$7)*($E$8))) ->  | I33: =IF(H33="","",IF('Staff '!H31="Insufficient","Staffing",$E$8-SLA($B33,I$12,$E$8*2,$E$7+$J$7)*($E$8))) ->  | J33: =IF(I33="","",IF('Staff '!I31="Insufficient","Staffing",$E$8-SLA($B33,J$12,$E$8*2,$E$7+$J$7)*($E$8))) ->  | K33: =IF(J33="","",IF('Staff '!J31="Insufficient","Staffing",$E$8-SLA($B33,K$12,$E$8*2,$E$7+$J$7)*($E$8))) ->  | L33: =IF(K33="","",IF('Staff '!K31="Insufficient","Staffing",$E$8-SLA($B33,L$12,$E$8*2,$E$7+$J$7)*($E$8))) ->  | M33: =IF(L33="","",IF('Staff '!L31="Insufficient","Staffing",$E$8-SLA($B33,M$12,$E$8*2,$E$7+$J$7)*($E$8))) ->  | N33: =IF(M33="","",IF('Staff '!M31="Insufficient","Staffing",$E$8-SLA($B33,N$12,$E$8*2,$E$7+$J$7)*($E$8))) ->  | O33: =IF(N33="","",IF('Staff '!N31="Insufficient","Staffing",$E$8-SLA($B33,O$12,$E$8*2,$E$7+$J$7)*($E$8))) ->  | P33: =IF(O33="","",IF('Staff '!O31="Insufficient","Staffing",$E$8-SLA($B33,P$12,$E$8*2,$E$7+$J$7)*($E$8))) ->  | Q33: =IF(P33="","",IF('Staff '!P31="Insufficient","Staffing",$E$8-SLA($B33,Q$12,$E$8*2,$E$7+$J$7)*($E$8))) ->  | R33: =IF(Q33="","",IF('Staff '!Q31="Insufficient","Staffing",$E$8-SLA($B33,R$12,$E$8*2,$E$7+$J$7)*($E$8))) ->  | S33: =IF(R33="","",IF('Staff '!R31="Insufficient","Staffing",$E$8-SLA($B33,S$12,$E$8*2,$E$7+$J$7)*($E$8))) ->  | T33: =IF(S33="","",IF('Staff '!S31="Insufficient","Staffing",$E$8-SLA($B33,T$12,$E$8*2,$E$7+$J$7)*($E$8))) ->  | U33: =IF(T33="","",IF('Staff '!T31="Insufficient","Staffing",$E$8-SLA($B33,U$12,$E$8*2,$E$7+$J$7)*($E$8))) -> 
B34: ='Staff '!B32 ->  | C34: =IF('Staff '!H32="","",SLA($B34,$J$8,$E$8*2,$E$7+$J$7)) ->  | D34: =IF($B34="","",IF('Staff '!C32="Insufficient","Staffing",$E$8-SLA($B34,D$12,$E$8*2,$E$7+$J$7)*($E$8))) ->  | E34: =IF('Staff '!H32="","",IF('Staff '!D32="Insufficient","Staffing",$E$8-SLA($B34,E$12,$E$8*2,$E$7+$J$7)*($E$8))) ->  | F34: =IF(E34="","",IF('Staff '!E32="Insufficient","Staffing",$E$8-SLA($B34,F$12,$E$8*2,$E$7+$J$7)*($E$8))) ->  | G34: =IF(F34="","",IF('Staff '!F32="Insufficient","Staffing",$E$8-SLA($B34,G$12,$E$8*2,$E$7+$J$7)*($E$8))) ->  | H34: =IF(G34="","",IF('Staff '!G32="Insufficient","Staffing",$E$8-SLA($B34,H$12,$E$8*2,$E$7+$J$7)*($E$8))) ->  | I34: =IF(H34="","",IF('Staff '!H32="Insufficient","Staffing",$E$8-SLA($B34,I$12,$E$8*2,$E$7+$J$7)*($E$8))) ->  | J34: =IF(I34="","",IF('Staff '!I32="Insufficient","Staffing",$E$8-SLA($B34,J$12,$E$8*2,$E$7+$J$7)*($E$8))) ->  | K34: =IF(J34="","",IF('Staff '!J32="Insufficient","Staffing",$E$8-SLA($B34,K$12,$E$8*2,$E$7+$J$7)*($E$8))) ->  | L34: =IF(K34="","",IF('Staff '!K32="Insufficient","Staffing",$E$8-SLA($B34,L$12,$E$8*2,$E$7+$J$7)*($E$8))) ->  | M34: =IF(L34="","",IF('Staff '!L32="Insufficient","Staffing",$E$8-SLA($B34,M$12,$E$8*2,$E$7+$J$7)*($E$8))) ->  | N34: =IF(M34="","",IF('Staff '!M32="Insufficient","Staffing",$E$8-SLA($B34,N$12,$E$8*2,$E$7+$J$7)*($E$8))) ->  | O34: =IF(N34="","",IF('Staff '!N32="Insufficient","Staffing",$E$8-SLA($B34,O$12,$E$8*2,$E$7+$J$7)*($E$8))) ->  | P34: =IF(O34="","",IF('Staff '!O32="Insufficient","Staffing",$E$8-SLA($B34,P$12,$E$8*2,$E$7+$J$7)*($E$8))) ->  | Q34: =IF(P34="","",IF('Staff '!P32="Insufficient","Staffing",$E$8-SLA($B34,Q$12,$E$8*2,$E$7+$J$7)*($E$8))) ->  | R34: =IF(Q34="","",IF('Staff '!Q32="Insufficient","Staffing",$E$8-SLA($B34,R$12,$E$8*2,$E$7+$J$7)*($E$8))) ->  | S34: =IF(R34="","",IF('Staff '!R32="Insufficient","Staffing",$E$8-SLA($B34,S$12,$E$8*2,$E$7+$J$7)*($E$8))) ->  | T34: =IF(S34="","",IF('Staff '!S32="Insufficient","Staffing",$E$8-SLA($B34,T$12,$E$8*2,$E$7+$J$7)*($E$8))) ->  | U34: =IF(T34="","",IF('Staff '!T32="Insufficient","Staffing",$E$8-SLA($B34,U$12,$E$8*2,$E$7+$J$7)*($E$8))) -> 
B35: ='Staff '!B33 ->  | C35: =IF('Staff '!H33="","",SLA($B35,$J$8,$E$8*2,$E$7+$J$7)) ->  | D35: =IF($B35="","",IF('Staff '!C33="Insufficient","Staffing",$E$8-SLA($B35,D$12,$E$8*2,$E$7+$J$7)*($E$8))) ->  | E35: =IF('Staff '!H33="","",IF('Staff '!D33="Insufficient","Staffing",$E$8-SLA($B35,E$12,$E$8*2,$E$7+$J$7)*($E$8))) ->  | F35: =IF(E35="","",IF('Staff '!E33="Insufficient","Staffing",$E$8-SLA($B35,F$12,$E$8*2,$E$7+$J$7)*($E$8))) ->  | G35: =IF(F35="","",IF('Staff '!F33="Insufficient","Staffing",$E$8-SLA($B35,G$12,$E$8*2,$E$7+$J$7)*($E$8))) ->  | H35: =IF(G35="","",IF('Staff '!G33="Insufficient","Staffing",$E$8-SLA($B35,H$12,$E$8*2,$E$7+$J$7)*($E$8))) ->  | I35: =IF(H35="","",IF('Staff '!H33="Insufficient","Staffing",$E$8-SLA($B35,I$12,$E$8*2,$E$7+$J$7)*($E$8))) ->  | J35: =IF(I35="","",IF('Staff '!I33="Insufficient","Staffing",$E$8-SLA($B35,J$12,$E$8*2,$E$7+$J$7)*($E$8))) ->  | K35: =IF(J35="","",IF('Staff '!J33="Insufficient","Staffing",$E$8-SLA($B35,K$12,$E$8*2,$E$7+$J$7)*($E$8))) ->  | L35: =IF(K35="","",IF('Staff '!K33="Insufficient","Staffing",$E$8-SLA($B35,L$12,$E$8*2,$E$7+$J$7)*($E$8))) ->  | M35: =IF(L35="","",IF('Staff '!L33="Insufficient","Staffing",$E$8-SLA($B35,M$12,$E$8*2,$E$7+$J$7)*($E$8))) ->  | N35: =IF(M35="","",IF('Staff '!M33="Insufficient","Staffing",$E$8-SLA($B35,N$12,$E$8*2,$E$7+$J$7)*($E$8))) ->  | O35: =IF(N35="","",IF('Staff '!N33="Insufficient","Staffing",$E$8-SLA($B35,O$12,$E$8*2,$E$7+$J$7)*($E$8))) ->  | P35: =IF(O35="","",IF('Staff '!O33="Insufficient","Staffing",$E$8-SLA($B35,P$12,$E$8*2,$E$7+$J$7)*($E$8))) ->  | Q35: =IF(P35="","",IF('Staff '!P33="Insufficient","Staffing",$E$8-SLA($B35,Q$12,$E$8*2,$E$7+$J$7)*($E$8))) ->  | R35: =IF(Q35="","",IF('Staff '!Q33="Insufficient","Staffing",$E$8-SLA($B35,R$12,$E$8*2,$E$7+$J$7)*($E$8))) ->  | S35: =IF(R35="","",IF('Staff '!R33="Insufficient","Staffing",$E$8-SLA($B35,S$12,$E$8*2,$E$7+$J$7)*($E$8))) ->  | T35: =IF(S35="","",IF('Staff '!S33="Insufficient","Staffing",$E$8-SLA($B35,T$12,$E$8*2,$E$7+$J$7)*($E$8))) ->  | U35: =IF(T35="","",IF('Staff '!T33="Insufficient","Staffing",$E$8-SLA($B35,U$12,$E$8*2,$E$7+$J$7)*($E$8))) -> 
B36: ='Staff '!B34 ->  | C36: =IF('Staff '!H34="","",SLA($B36,$J$8,$E$8*2,$E$7+$J$7)) ->  | D36: =IF($B36="","",IF('Staff '!C34="Insufficient","Staffing",$E$8-SLA($B36,D$12,$E$8*2,$E$7+$J$7)*($E$8))) ->  | E36: =IF('Staff '!H34="","",IF('Staff '!D34="Insufficient","Staffing",$E$8-SLA($B36,E$12,$E$8*2,$E$7+$J$7)*($E$8))) ->  | F36: =IF(E36="","",IF('Staff '!E34="Insufficient","Staffing",$E$8-SLA($B36,F$12,$E$8*2,$E$7+$J$7)*($E$8))) ->  | G36: =IF(F36="","",IF('Staff '!F34="Insufficient","Staffing",$E$8-SLA($B36,G$12,$E$8*2,$E$7+$J$7)*($E$8))) ->  | H36: =IF(G36="","",IF('Staff '!G34="Insufficient","Staffing",$E$8-SLA($B36,H$12,$E$8*2,$E$7+$J$7)*($E$8))) ->  | I36: =IF(H36="","",IF('Staff '!H34="Insufficient","Staffing",$E$8-SLA($B36,I$12,$E$8*2,$E$7+$J$7)*($E$8))) ->  | J36: =IF(I36="","",IF('Staff '!I34="Insufficient","Staffing",$E$8-SLA($B36,J$12,$E$8*2,$E$7+$J$7)*($E$8))) ->  | K36: =IF(J36="","",IF('Staff '!J34="Insufficient","Staffing",$E$8-SLA($B36,K$12,$E$8*2,$E$7+$J$7)*($E$8))) ->  | L36: =IF(K36="","",IF('Staff '!K34="Insufficient","Staffing",$E$8-SLA($B36,L$12,$E$8*2,$E$7+$J$7)*($E$8))) ->  | M36: =IF(L36="","",IF('Staff '!L34="Insufficient","Staffing",$E$8-SLA($B36,M$12,$E$8*2,$E$7+$J$7)*($E$8))) ->  | N36: =IF(M36="","",IF('Staff '!M34="Insufficient","Staffing",$E$8-SLA($B36,N$12,$E$8*2,$E$7+$J$7)*($E$8))) ->  | O36: =IF(N36="","",IF('Staff '!N34="Insufficient","Staffing",$E$8-SLA($B36,O$12,$E$8*2,$E$7+$J$7)*($E$8))) ->  | P36: =IF(O36="","",IF('Staff '!O34="Insufficient","Staffing",$E$8-SLA($B36,P$12,$E$8*2,$E$7+$J$7)*($E$8))) ->  | Q36: =IF(P36="","",IF('Staff '!P34="Insufficient","Staffing",$E$8-SLA($B36,Q$12,$E$8*2,$E$7+$J$7)*($E$8))) ->  | R36: =IF(Q36="","",IF('Staff '!Q34="Insufficient","Staffing",$E$8-SLA($B36,R$12,$E$8*2,$E$7+$J$7)*($E$8))) ->  | S36: =IF(R36="","",IF('Staff '!R34="Insufficient","Staffing",$E$8-SLA($B36,S$12,$E$8*2,$E$7+$J$7)*($E$8))) ->  | T36: =IF(S36="","",IF('Staff '!S34="Insufficient","Staffing",$E$8-SLA($B36,T$12,$E$8*2,$E$7+$J$7)*($E$8))) ->  | U36: =IF(T36="","",IF('Staff '!T34="Insufficient","Staffing",$E$8-SLA($B36,U$12,$E$8*2,$E$7+$J$7)*($E$8))) -> 
B37: ='Staff '!B35 ->  | C37: =IF('Staff '!H35="","",SLA($B37,$J$8,$E$8*2,$E$7+$J$7)) ->  | D37: =IF($B37="","",IF('Staff '!C35="Insufficient","Staffing",$E$8-SLA($B37,D$12,$E$8*2,$E$7+$J$7)*($E$8))) ->  | E37: =IF('Staff '!H35="","",IF('Staff '!D35="Insufficient","Staffing",$E$8-SLA($B37,E$12,$E$8*2,$E$7+$J$7)*($E$8))) ->  | F37: =IF(E37="","",IF('Staff '!E35="Insufficient","Staffing",$E$8-SLA($B37,F$12,$E$8*2,$E$7+$J$7)*($E$8))) ->  | G37: =IF(F37="","",IF('Staff '!F35="Insufficient","Staffing",$E$8-SLA($B37,G$12,$E$8*2,$E$7+$J$7)*($E$8))) ->  | H37: =IF(G37="","",IF('Staff '!G35="Insufficient","Staffing",$E$8-SLA($B37,H$12,$E$8*2,$E$7+$J$7)*($E$8))) ->  | I37: =IF(H37="","",IF('Staff '!H35="Insufficient","Staffing",$E$8-SLA($B37,I$12,$E$8*2,$E$7+$J$7)*($E$8))) ->  | J37: =IF(I37="","",IF('Staff '!I35="Insufficient","Staffing",$E$8-SLA($B37,J$12,$E$8*2,$E$7+$J$7)*($E$8))) ->  | K37: =IF(J37="","",IF('Staff '!J35="Insufficient","Staffing",$E$8-SLA($B37,K$12,$E$8*2,$E$7+$J$7)*($E$8))) ->  | L37: =IF(K37="","",IF('Staff '!K35="Insufficient","Staffing",$E$8-SLA($B37,L$12,$E$8*2,$E$7+$J$7)*($E$8))) ->  | M37: =IF(L37="","",IF('Staff '!L35="Insufficient","Staffing",$E$8-SLA($B37,M$12,$E$8*2,$E$7+$J$7)*($E$8))) ->  | N37: =IF(M37="","",IF('Staff '!M35="Insufficient","Staffing",$E$8-SLA($B37,N$12,$E$8*2,$E$7+$J$7)*($E$8))) ->  | O37: =IF(N37="","",IF('Staff '!N35="Insufficient","Staffing",$E$8-SLA($B37,O$12,$E$8*2,$E$7+$J$7)*($E$8))) ->  | P37: =IF(O37="","",IF('Staff '!O35="Insufficient","Staffing",$E$8-SLA($B37,P$12,$E$8*2,$E$7+$J$7)*($E$8))) ->  | Q37: =IF(P37="","",IF('Staff '!P35="Insufficient","Staffing",$E$8-SLA($B37,Q$12,$E$8*2,$E$7+$J$7)*($E$8))) ->  | R37: =IF(Q37="","",IF('Staff '!Q35="Insufficient","Staffing",$E$8-SLA($B37,R$12,$E$8*2,$E$7+$J$7)*($E$8))) ->  | S37: =IF(R37="","",IF('Staff '!R35="Insufficient","Staffing",$E$8-SLA($B37,S$12,$E$8*2,$E$7+$J$7)*($E$8))) ->  | T37: =IF(S37="","",IF('Staff '!S35="Insufficient","Staffing",$E$8-SLA($B37,T$12,$E$8*2,$E$7+$J$7)*($E$8))) ->  | U37: =IF(T37="","",IF('Staff '!T35="Insufficient","Staffing",$E$8-SLA($B37,U$12,$E$8*2,$E$7+$J$7)*($E$8))) -> 
B38: ='Staff '!B36 ->  | C38: =IF('Staff '!H36="","",SLA($B38,$J$8,$E$8*2,$E$7+$J$7)) ->  | D38: =IF($B38="","",IF('Staff '!C36="Insufficient","Staffing",$E$8-SLA($B38,D$12,$E$8*2,$E$7+$J$7)*($E$8))) ->  | E38: =IF('Staff '!H36="","",IF('Staff '!D36="Insufficient","Staffing",$E$8-SLA($B38,E$12,$E$8*2,$E$7+$J$7)*($E$8))) ->  | F38: =IF(E38="","",IF('Staff '!E36="Insufficient","Staffing",$E$8-SLA($B38,F$12,$E$8*2,$E$7+$J$7)*($E$8))) ->  | G38: =IF(F38="","",IF('Staff '!F36="Insufficient","Staffing",$E$8-SLA($B38,G$12,$E$8*2,$E$7+$J$7)*($E$8))) ->  | H38: =IF(G38="","",IF('Staff '!G36="Insufficient","Staffing",$E$8-SLA($B38,H$12,$E$8*2,$E$7+$J$7)*($E$8))) ->  | I38: =IF(H38="","",IF('Staff '!H36="Insufficient","Staffing",$E$8-SLA($B38,I$12,$E$8*2,$E$7+$J$7)*($E$8))) ->  | J38: =IF(I38="","",IF('Staff '!I36="Insufficient","Staffing",$E$8-SLA($B38,J$12,$E$8*2,$E$7+$J$7)*($E$8))) ->  | K38: =IF(J38="","",IF('Staff '!J36="Insufficient","Staffing",$E$8-SLA($B38,K$12,$E$8*2,$E$7+$J$7)*($E$8))) ->  | L38: =IF(K38="","",IF('Staff '!K36="Insufficient","Staffing",$E$8-SLA($B38,L$12,$E$8*2,$E$7+$J$7)*($E$8))) ->  | M38: =IF(L38="","",IF('Staff '!L36="Insufficient","Staffing",$E$8-SLA($B38,M$12,$E$8*2,$E$7+$J$7)*($E$8))) ->  | N38: =IF(M38="","",IF('Staff '!M36="Insufficient","Staffing",$E$8-SLA($B38,N$12,$E$8*2,$E$7+$J$7)*($E$8))) ->  | O38: =IF(N38="","",IF('Staff '!N36="Insufficient","Staffing",$E$8-SLA($B38,O$12,$E$8*2,$E$7+$J$7)*($E$8))) ->  | P38: =IF(O38="","",IF('Staff '!O36="Insufficient","Staffing",$E$8-SLA($B38,P$12,$E$8*2,$E$7+$J$7)*($E$8))) ->  | Q38: =IF(P38="","",IF('Staff '!P36="Insufficient","Staffing",$E$8-SLA($B38,Q$12,$E$8*2,$E$7+$J$7)*($E$8))) ->  | R38: =IF(Q38="","",IF('Staff '!Q36="Insufficient","Staffing",$E$8-SLA($B38,R$12,$E$8*2,$E$7+$J$7)*($E$8))) ->  | S38: =IF(R38="","",IF('Staff '!R36="Insufficient","Staffing",$E$8-SLA($B38,S$12,$E$8*2,$E$7+$J$7)*($E$8))) ->  | T38: =IF(S38="","",IF('Staff '!S36="Insufficient","Staffing",$E$8-SLA($B38,T$12,$E$8*2,$E$7+$J$7)*($E$8))) ->  | U38: =IF(T38="","",IF('Staff '!T36="Insufficient","Staffing",$E$8-SLA($B38,U$12,$E$8*2,$E$7+$J$7)*($E$8))) -> 
B39: ='Staff '!B37 ->  | C39: =IF('Staff '!H37="","",SLA($B39,$J$8,$E$8*2,$E$7+$J$7)) ->  | D39: =IF($B39="","",IF('Staff '!C37="Insufficient","Staffing",$E$8-SLA($B39,D$12,$E$8*2,$E$7+$J$7)*($E$8))) ->  | E39: =IF('Staff '!H37="","",IF('Staff '!D37="Insufficient","Staffing",$E$8-SLA($B39,E$12,$E$8*2,$E$7+$J$7)*($E$8))) ->  | F39: =IF(E39="","",IF('Staff '!E37="Insufficient","Staffing",$E$8-SLA($B39,F$12,$E$8*2,$E$7+$J$7)*($E$8))) ->  | G39: =IF(F39="","",IF('Staff '!F37="Insufficient","Staffing",$E$8-SLA($B39,G$12,$E$8*2,$E$7+$J$7)*($E$8))) ->  | H39: =IF(G39="","",IF('Staff '!G37="Insufficient","Staffing",$E$8-SLA($B39,H$12,$E$8*2,$E$7+$J$7)*($E$8))) ->  | I39: =IF(H39="","",IF('Staff '!H37="Insufficient","Staffing",$E$8-SLA($B39,I$12,$E$8*2,$E$7+$J$7)*($E$8))) ->  | J39: =IF(I39="","",IF('Staff '!I37="Insufficient","Staffing",$E$8-SLA($B39,J$12,$E$8*2,$E$7+$J$7)*($E$8))) ->  | K39: =IF(J39="","",IF('Staff '!J37="Insufficient","Staffing",$E$8-SLA($B39,K$12,$E$8*2,$E$7+$J$7)*($E$8))) ->  | L39: =IF(K39="","",IF('Staff '!K37="Insufficient","Staffing",$E$8-SLA($B39,L$12,$E$8*2,$E$7+$J$7)*($E$8))) ->  | M39: =IF(L39="","",IF('Staff '!L37="Insufficient","Staffing",$E$8-SLA($B39,M$12,$E$8*2,$E$7+$J$7)*($E$8))) ->  | N39: =IF(M39="","",IF('Staff '!M37="Insufficient","Staffing",$E$8-SLA($B39,N$12,$E$8*2,$E$7+$J$7)*($E$8))) ->  | O39: =IF(N39="","",IF('Staff '!N37="Insufficient","Staffing",$E$8-SLA($B39,O$12,$E$8*2,$E$7+$J$7)*($E$8))) ->  | P39: =IF(O39="","",IF('Staff '!O37="Insufficient","Staffing",$E$8-SLA($B39,P$12,$E$8*2,$E$7+$J$7)*($E$8))) ->  | Q39: =IF(P39="","",IF('Staff '!P37="Insufficient","Staffing",$E$8-SLA($B39,Q$12,$E$8*2,$E$7+$J$7)*($E$8))) ->  | R39: =IF(Q39="","",IF('Staff '!Q37="Insufficient","Staffing",$E$8-SLA($B39,R$12,$E$8*2,$E$7+$J$7)*($E$8))) ->  | S39: =IF(R39="","",IF('Staff '!R37="Insufficient","Staffing",$E$8-SLA($B39,S$12,$E$8*2,$E$7+$J$7)*($E$8))) ->  | T39: =IF(S39="","",IF('Staff '!S37="Insufficient","Staffing",$E$8-SLA($B39,T$12,$E$8*2,$E$7+$J$7)*($E$8))) ->  | U39: =IF(T39="","",IF('Staff '!T37="Insufficient","Staffing",$E$8-SLA($B39,U$12,$E$8*2,$E$7+$J$7)*($E$8))) -> 
B40: ='Staff '!B38 ->  | C40: =IF('Staff '!H38="","",SLA($B40,$J$8,$E$8*2,$E$7+$J$7)) ->  | D40: =IF($B40="","",IF('Staff '!C38="Insufficient","Staffing",$E$8-SLA($B40,D$12,$E$8*2,$E$7+$J$7)*($E$8))) ->  | E40: =IF('Staff '!H38="","",IF('Staff '!D38="Insufficient","Staffing",$E$8-SLA($B40,E$12,$E$8*2,$E$7+$J$7)*($E$8))) ->  | F40: =IF(E40="","",IF('Staff '!E38="Insufficient","Staffing",$E$8-SLA($B40,F$12,$E$8*2,$E$7+$J$7)*($E$8))) ->  | G40: =IF(F40="","",IF('Staff '!F38="Insufficient","Staffing",$E$8-SLA($B40,G$12,$E$8*2,$E$7+$J$7)*($E$8))) ->  | H40: =IF(G40="","",IF('Staff '!G38="Insufficient","Staffing",$E$8-SLA($B40,H$12,$E$8*2,$E$7+$J$7)*($E$8))) ->  | I40: =IF(H40="","",IF('Staff '!H38="Insufficient","Staffing",$E$8-SLA($B40,I$12,$E$8*2,$E$7+$J$7)*($E$8))) ->  | J40: =IF(I40="","",IF('Staff '!I38="Insufficient","Staffing",$E$8-SLA($B40,J$12,$E$8*2,$E$7+$J$7)*($E$8))) ->  | K40: =IF(J40="","",IF('Staff '!J38="Insufficient","Staffing",$E$8-SLA($B40,K$12,$E$8*2,$E$7+$J$7)*($E$8))) ->  | L40: =IF(K40="","",IF('Staff '!K38="Insufficient","Staffing",$E$8-SLA($B40,L$12,$E$8*2,$E$7+$J$7)*($E$8))) ->  | M40: =IF(L40="","",IF('Staff '!L38="Insufficient","Staffing",$E$8-SLA($B40,M$12,$E$8*2,$E$7+$J$7)*($E$8))) ->  | N40: =IF(M40="","",IF('Staff '!M38="Insufficient","Staffing",$E$8-SLA($B40,N$12,$E$8*2,$E$7+$J$7)*($E$8))) ->  | O40: =IF(N40="","",IF('Staff '!N38="Insufficient","Staffing",$E$8-SLA($B40,O$12,$E$8*2,$E$7+$J$7)*($E$8))) ->  | P40: =IF(O40="","",IF('Staff '!O38="Insufficient","Staffing",$E$8-SLA($B40,P$12,$E$8*2,$E$7+$J$7)*($E$8))) ->  | Q40: =IF(P40="","",IF('Staff '!P38="Insufficient","Staffing",$E$8-SLA($B40,Q$12,$E$8*2,$E$7+$J$7)*($E$8))) ->  | R40: =IF(Q40="","",IF('Staff '!Q38="Insufficient","Staffing",$E$8-SLA($B40,R$12,$E$8*2,$E$7+$J$7)*($E$8))) ->  | S40: =IF(R40="","",IF('Staff '!R38="Insufficient","Staffing",$E$8-SLA($B40,S$12,$E$8*2,$E$7+$J$7)*($E$8))) ->  | T40: =IF(S40="","",IF('Staff '!S38="Insufficient","Staffing",$E$8-SLA($B40,T$12,$E$8*2,$E$7+$J$7)*($E$8))) ->  | U40: =IF(T40="","",IF('Staff '!T38="Insufficient","Staffing",$E$8-SLA($B40,U$12,$E$8*2,$E$7+$J$7)*($E$8))) -> 
B41: ='Staff '!B39 ->  | C41: =IF('Staff '!H39="","",SLA($B41,$J$8,$E$8*2,$E$7+$J$7)) ->  | D41: =IF($B41="","",IF('Staff '!C39="Insufficient","Staffing",$E$8-SLA($B41,D$12,$E$8*2,$E$7+$J$7)*($E$8))) ->  | E41: =IF('Staff '!H39="","",IF('Staff '!D39="Insufficient","Staffing",$E$8-SLA($B41,E$12,$E$8*2,$E$7+$J$7)*($E$8))) ->  | F41: =IF(E41="","",IF('Staff '!E39="Insufficient","Staffing",$E$8-SLA($B41,F$12,$E$8*2,$E$7+$J$7)*($E$8))) ->  | G41: =IF(F41="","",IF('Staff '!F39="Insufficient","Staffing",$E$8-SLA($B41,G$12,$E$8*2,$E$7+$J$7)*($E$8))) ->  | H41: =IF(G41="","",IF('Staff '!G39="Insufficient","Staffing",$E$8-SLA($B41,H$12,$E$8*2,$E$7+$J$7)*($E$8))) ->  | I41: =IF(H41="","",IF('Staff '!H39="Insufficient","Staffing",$E$8-SLA($B41,I$12,$E$8*2,$E$7+$J$7)*($E$8))) ->  | J41: =IF(I41="","",IF('Staff '!I39="Insufficient","Staffing",$E$8-SLA($B41,J$12,$E$8*2,$E$7+$J$7)*($E$8))) ->  | K41: =IF(J41="","",IF('Staff '!J39="Insufficient","Staffing",$E$8-SLA($B41,K$12,$E$8*2,$E$7+$J$7)*($E$8))) ->  | L41: =IF(K41="","",IF('Staff '!K39="Insufficient","Staffing",$E$8-SLA($B41,L$12,$E$8*2,$E$7+$J$7)*($E$8))) ->  | M41: =IF(L41="","",IF('Staff '!L39="Insufficient","Staffing",$E$8-SLA($B41,M$12,$E$8*2,$E$7+$J$7)*($E$8))) ->  | N41: =IF(M41="","",IF('Staff '!M39="Insufficient","Staffing",$E$8-SLA($B41,N$12,$E$8*2,$E$7+$J$7)*($E$8))) ->  | O41: =IF(N41="","",IF('Staff '!N39="Insufficient","Staffing",$E$8-SLA($B41,O$12,$E$8*2,$E$7+$J$7)*($E$8))) ->  | P41: =IF(O41="","",IF('Staff '!O39="Insufficient","Staffing",$E$8-SLA($B41,P$12,$E$8*2,$E$7+$J$7)*($E$8))) ->  | Q41: =IF(P41="","",IF('Staff '!P39="Insufficient","Staffing",$E$8-SLA($B41,Q$12,$E$8*2,$E$7+$J$7)*($E$8))) ->  | R41: =IF(Q41="","",IF('Staff '!Q39="Insufficient","Staffing",$E$8-SLA($B41,R$12,$E$8*2,$E$7+$J$7)*($E$8))) ->  | S41: =IF(R41="","",IF('Staff '!R39="Insufficient","Staffing",$E$8-SLA($B41,S$12,$E$8*2,$E$7+$J$7)*($E$8))) ->  | T41: =IF(S41="","",IF('Staff '!S39="Insufficient","Staffing",$E$8-SLA($B41,T$12,$E$8*2,$E$7+$J$7)*($E$8))) ->  | U41: =IF(T41="","",IF('Staff '!T39="Insufficient","Staffing",$E$8-SLA($B41,U$12,$E$8*2,$E$7+$J$7)*($E$8))) -> 
B42: ='Staff '!B40 ->  | C42: =IF('Staff '!H40="","",SLA($B42,$J$8,$E$8*2,$E$7+$J$7)) ->  | D42: =IF($B42="","",IF('Staff '!C40="Insufficient","Staffing",$E$8-SLA($B42,D$12,$E$8*2,$E$7+$J$7)*($E$8))) ->  | E42: =IF('Staff '!H40="","",IF('Staff '!D40="Insufficient","Staffing",$E$8-SLA($B42,E$12,$E$8*2,$E$7+$J$7)*($E$8))) ->  | F42: =IF(E42="","",IF('Staff '!E40="Insufficient","Staffing",$E$8-SLA($B42,F$12,$E$8*2,$E$7+$J$7)*($E$8))) ->  | G42: =IF(F42="","",IF('Staff '!F40="Insufficient","Staffing",$E$8-SLA($B42,G$12,$E$8*2,$E$7+$J$7)*($E$8))) ->  | H42: =IF(G42="","",IF('Staff '!G40="Insufficient","Staffing",$E$8-SLA($B42,H$12,$E$8*2,$E$7+$J$7)*($E$8))) ->  | I42: =IF(H42="","",IF('Staff '!H40="Insufficient","Staffing",$E$8-SLA($B42,I$12,$E$8*2,$E$7+$J$7)*($E$8))) ->  | J42: =IF(I42="","",IF('Staff '!I40="Insufficient","Staffing",$E$8-SLA($B42,J$12,$E$8*2,$E$7+$J$7)*($E$8))) ->  | K42: =IF(J42="","",IF('Staff '!J40="Insufficient","Staffing",$E$8-SLA($B42,K$12,$E$8*2,$E$7+$J$7)*($E$8))) ->  | L42: =IF(K42="","",IF('Staff '!K40="Insufficient","Staffing",$E$8-SLA($B42,L$12,$E$8*2,$E$7+$J$7)*($E$8))) ->  | M42: =IF(L42="","",IF('Staff '!L40="Insufficient","Staffing",$E$8-SLA($B42,M$12,$E$8*2,$E$7+$J$7)*($E$8))) ->  | N42: =IF(M42="","",IF('Staff '!M40="Insufficient","Staffing",$E$8-SLA($B42,N$12,$E$8*2,$E$7+$J$7)*($E$8))) ->  | O42: =IF(N42="","",IF('Staff '!N40="Insufficient","Staffing",$E$8-SLA($B42,O$12,$E$8*2,$E$7+$J$7)*($E$8))) ->  | P42: =IF(O42="","",IF('Staff '!O40="Insufficient","Staffing",$E$8-SLA($B42,P$12,$E$8*2,$E$7+$J$7)*($E$8))) ->  | Q42: =IF(P42="","",IF('Staff '!P40="Insufficient","Staffing",$E$8-SLA($B42,Q$12,$E$8*2,$E$7+$J$7)*($E$8))) ->  | R42: =IF(Q42="","",IF('Staff '!Q40="Insufficient","Staffing",$E$8-SLA($B42,R$12,$E$8*2,$E$7+$J$7)*($E$8))) ->  | S42: =IF(R42="","",IF('Staff '!R40="Insufficient","Staffing",$E$8-SLA($B42,S$12,$E$8*2,$E$7+$J$7)*($E$8))) ->  | T42: =IF(S42="","",IF('Staff '!S40="Insufficient","Staffing",$E$8-SLA($B42,T$12,$E$8*2,$E$7+$J$7)*($E$8))) ->  | U42: =IF(T42="","",IF('Staff '!T40="Insufficient","Staffing",$E$8-SLA($B42,U$12,$E$8*2,$E$7+$J$7)*($E$8))) -> 
B43: ='Staff '!B41 ->  | C43: =IF('Staff '!H41="","",SLA($B43,$J$8,$E$8*2,$E$7+$J$7)) ->  | D43: =IF($B43="","",IF('Staff '!C41="Insufficient","Staffing",$E$8-SLA($B43,D$12,$E$8*2,$E$7+$J$7)*($E$8))) ->  | E43: =IF('Staff '!H41="","",IF('Staff '!D41="Insufficient","Staffing",$E$8-SLA($B43,E$12,$E$8*2,$E$7+$J$7)*($E$8))) ->  | F43: =IF(E43="","",IF('Staff '!E41="Insufficient","Staffing",$E$8-SLA($B43,F$12,$E$8*2,$E$7+$J$7)*($E$8))) ->  | G43: =IF(F43="","",IF('Staff '!F41="Insufficient","Staffing",$E$8-SLA($B43,G$12,$E$8*2,$E$7+$J$7)*($E$8))) ->  | H43: =IF(G43="","",IF('Staff '!G41="Insufficient","Staffing",$E$8-SLA($B43,H$12,$E$8*2,$E$7+$J$7)*($E$8))) ->  | I43: =IF(H43="","",IF('Staff '!H41="Insufficient","Staffing",$E$8-SLA($B43,I$12,$E$8*2,$E$7+$J$7)*($E$8))) ->  | J43: =IF(I43="","",IF('Staff '!I41="Insufficient","Staffing",$E$8-SLA($B43,J$12,$E$8*2,$E$7+$J$7)*($E$8))) ->  | K43: =IF(J43="","",IF('Staff '!J41="Insufficient","Staffing",$E$8-SLA($B43,K$12,$E$8*2,$E$7+$J$7)*($E$8))) ->  | L43: =IF(K43="","",IF('Staff '!K41="Insufficient","Staffing",$E$8-SLA($B43,L$12,$E$8*2,$E$7+$J$7)*($E$8))) ->  | M43: =IF(L43="","",IF('Staff '!L41="Insufficient","Staffing",$E$8-SLA($B43,M$12,$E$8*2,$E$7+$J$7)*($E$8))) ->  | N43: =IF(M43="","",IF('Staff '!M41="Insufficient","Staffing",$E$8-SLA($B43,N$12,$E$8*2,$E$7+$J$7)*($E$8))) ->  | O43: =IF(N43="","",IF('Staff '!N41="Insufficient","Staffing",$E$8-SLA($B43,O$12,$E$8*2,$E$7+$J$7)*($E$8))) ->  | P43: =IF(O43="","",IF('Staff '!O41="Insufficient","Staffing",$E$8-SLA($B43,P$12,$E$8*2,$E$7+$J$7)*($E$8))) ->  | Q43: =IF(P43="","",IF('Staff '!P41="Insufficient","Staffing",$E$8-SLA($B43,Q$12,$E$8*2,$E$7+$J$7)*($E$8))) ->  | R43: =IF(Q43="","",IF('Staff '!Q41="Insufficient","Staffing",$E$8-SLA($B43,R$12,$E$8*2,$E$7+$J$7)*($E$8))) ->  | S43: =IF(R43="","",IF('Staff '!R41="Insufficient","Staffing",$E$8-SLA($B43,S$12,$E$8*2,$E$7+$J$7)*($E$8))) ->  | T43: =IF(S43="","",IF('Staff '!S41="Insufficient","Staffing",$E$8-SLA($B43,T$12,$E$8*2,$E$7+$J$7)*($E$8))) ->  | U43: =IF(T43="","",IF('Staff '!T41="Insufficient","Staffing",$E$8-SLA($B43,U$12,$E$8*2,$E$7+$J$7)*($E$8))) -> 
B44: ='Staff '!B42 ->  | C44: =IF('Staff '!H42="","",SLA($B44,$J$8,$E$8*2,$E$7+$J$7)) ->  | D44: =IF($B44="","",IF('Staff '!C42="Insufficient","Staffing",$E$8-SLA($B44,D$12,$E$8*2,$E$7+$J$7)*($E$8))) ->  | E44: =IF('Staff '!H42="","",IF('Staff '!D42="Insufficient","Staffing",$E$8-SLA($B44,E$12,$E$8*2,$E$7+$J$7)*($E$8))) ->  | F44: =IF(E44="","",IF('Staff '!E42="Insufficient","Staffing",$E$8-SLA($B44,F$12,$E$8*2,$E$7+$J$7)*($E$8))) ->  | G44: =IF(F44="","",IF('Staff '!F42="Insufficient","Staffing",$E$8-SLA($B44,G$12,$E$8*2,$E$7+$J$7)*($E$8))) ->  | H44: =IF(G44="","",IF('Staff '!G42="Insufficient","Staffing",$E$8-SLA($B44,H$12,$E$8*2,$E$7+$J$7)*($E$8))) ->  | I44: =IF(H44="","",IF('Staff '!H42="Insufficient","Staffing",$E$8-SLA($B44,I$12,$E$8*2,$E$7+$J$7)*($E$8))) ->  | J44: =IF(I44="","",IF('Staff '!I42="Insufficient","Staffing",$E$8-SLA($B44,J$12,$E$8*2,$E$7+$J$7)*($E$8))) ->  | K44: =IF(J44="","",IF('Staff '!J42="Insufficient","Staffing",$E$8-SLA($B44,K$12,$E$8*2,$E$7+$J$7)*($E$8))) ->  | L44: =IF(K44="","",IF('Staff '!K42="Insufficient","Staffing",$E$8-SLA($B44,L$12,$E$8*2,$E$7+$J$7)*($E$8))) ->  | M44: =IF(L44="","",IF('Staff '!L42="Insufficient","Staffing",$E$8-SLA($B44,M$12,$E$8*2,$E$7+$J$7)*($E$8))) ->  | N44: =IF(M44="","",IF('Staff '!M42="Insufficient","Staffing",$E$8-SLA($B44,N$12,$E$8*2,$E$7+$J$7)*($E$8))) ->  | O44: =IF(N44="","",IF('Staff '!N42="Insufficient","Staffing",$E$8-SLA($B44,O$12,$E$8*2,$E$7+$J$7)*($E$8))) ->  | P44: =IF(O44="","",IF('Staff '!O42="Insufficient","Staffing",$E$8-SLA($B44,P$12,$E$8*2,$E$7+$J$7)*($E$8))) ->  | Q44: =IF(P44="","",IF('Staff '!P42="Insufficient","Staffing",$E$8-SLA($B44,Q$12,$E$8*2,$E$7+$J$7)*($E$8))) ->  | R44: =IF(Q44="","",IF('Staff '!Q42="Insufficient","Staffing",$E$8-SLA($B44,R$12,$E$8*2,$E$7+$J$7)*($E$8))) ->  | S44: =IF(R44="","",IF('Staff '!R42="Insufficient","Staffing",$E$8-SLA($B44,S$12,$E$8*2,$E$7+$J$7)*($E$8))) ->  | T44: =IF(S44="","",IF('Staff '!S42="Insufficient","Staffing",$E$8-SLA($B44,T$12,$E$8*2,$E$7+$J$7)*($E$8))) ->  | U44: =IF(T44="","",IF('Staff '!T42="Insufficient","Staffing",$E$8-SLA($B44,U$12,$E$8*2,$E$7+$J$7)*($E$8))) -> 
B45: ='Staff '!B43 ->  | C45: =IF('Staff '!H43="","",SLA($B45,$J$8,$E$8*2,$E$7+$J$7)) ->  | D45: =IF($B45="","",IF('Staff '!C43="Insufficient","Staffing",$E$8-SLA($B45,D$12,$E$8*2,$E$7+$J$7)*($E$8))) ->  | E45: =IF('Staff '!H43="","",IF('Staff '!D43="Insufficient","Staffing",$E$8-SLA($B45,E$12,$E$8*2,$E$7+$J$7)*($E$8))) ->  | F45: =IF(E45="","",IF('Staff '!E43="Insufficient","Staffing",$E$8-SLA($B45,F$12,$E$8*2,$E$7+$J$7)*($E$8))) ->  | G45: =IF(F45="","",IF('Staff '!F43="Insufficient","Staffing",$E$8-SLA($B45,G$12,$E$8*2,$E$7+$J$7)*($E$8))) ->  | H45: =IF(G45="","",IF('Staff '!G43="Insufficient","Staffing",$E$8-SLA($B45,H$12,$E$8*2,$E$7+$J$7)*($E$8))) ->  | I45: =IF(H45="","",IF('Staff '!H43="Insufficient","Staffing",$E$8-SLA($B45,I$12,$E$8*2,$E$7+$J$7)*($E$8))) ->  | J45: =IF(I45="","",IF('Staff '!I43="Insufficient","Staffing",$E$8-SLA($B45,J$12,$E$8*2,$E$7+$J$7)*($E$8))) ->  | K45: =IF(J45="","",IF('Staff '!J43="Insufficient","Staffing",$E$8-SLA($B45,K$12,$E$8*2,$E$7+$J$7)*($E$8))) ->  | L45: =IF(K45="","",IF('Staff '!K43="Insufficient","Staffing",$E$8-SLA($B45,L$12,$E$8*2,$E$7+$J$7)*($E$8))) ->  | M45: =IF(L45="","",IF('Staff '!L43="Insufficient","Staffing",$E$8-SLA($B45,M$12,$E$8*2,$E$7+$J$7)*($E$8))) ->  | N45: =IF(M45="","",IF('Staff '!M43="Insufficient","Staffing",$E$8-SLA($B45,N$12,$E$8*2,$E$7+$J$7)*($E$8))) ->  | O45: =IF(N45="","",IF('Staff '!N43="Insufficient","Staffing",$E$8-SLA($B45,O$12,$E$8*2,$E$7+$J$7)*($E$8))) ->  | P45: =IF(O45="","",IF('Staff '!O43="Insufficient","Staffing",$E$8-SLA($B45,P$12,$E$8*2,$E$7+$J$7)*($E$8))) ->  | Q45: =IF(P45="","",IF('Staff '!P43="Insufficient","Staffing",$E$8-SLA($B45,Q$12,$E$8*2,$E$7+$J$7)*($E$8))) ->  | R45: =IF(Q45="","",IF('Staff '!Q43="Insufficient","Staffing",$E$8-SLA($B45,R$12,$E$8*2,$E$7+$J$7)*($E$8))) ->  | S45: =IF(R45="","",IF('Staff '!R43="Insufficient","Staffing",$E$8-SLA($B45,S$12,$E$8*2,$E$7+$J$7)*($E$8))) ->  | T45: =IF(S45="","",IF('Staff '!S43="Insufficient","Staffing",$E$8-SLA($B45,T$12,$E$8*2,$E$7+$J$7)*($E$8))) ->  | U45: =IF(T45="","",IF('Staff '!T43="Insufficient","Staffing",$E$8-SLA($B45,U$12,$E$8*2,$E$7+$J$7)*($E$8))) -> 
B46: ='Staff '!B44 ->  | C46: =IF('Staff '!H44="","",SLA($B46,$J$8,$E$8*2,$E$7+$J$7)) ->  | D46: =IF($B46="","",IF('Staff '!C44="Insufficient","Staffing",$E$8-SLA($B46,D$12,$E$8*2,$E$7+$J$7)*($E$8))) ->  | E46: =IF('Staff '!H44="","",IF('Staff '!D44="Insufficient","Staffing",$E$8-SLA($B46,E$12,$E$8*2,$E$7+$J$7)*($E$8))) ->  | F46: =IF(E46="","",IF('Staff '!E44="Insufficient","Staffing",$E$8-SLA($B46,F$12,$E$8*2,$E$7+$J$7)*($E$8))) ->  | G46: =IF(F46="","",IF('Staff '!F44="Insufficient","Staffing",$E$8-SLA($B46,G$12,$E$8*2,$E$7+$J$7)*($E$8))) ->  | H46: =IF(G46="","",IF('Staff '!G44="Insufficient","Staffing",$E$8-SLA($B46,H$12,$E$8*2,$E$7+$J$7)*($E$8))) ->  | I46: =IF(H46="","",IF('Staff '!H44="Insufficient","Staffing",$E$8-SLA($B46,I$12,$E$8*2,$E$7+$J$7)*($E$8))) ->  | J46: =IF(I46="","",IF('Staff '!I44="Insufficient","Staffing",$E$8-SLA($B46,J$12,$E$8*2,$E$7+$J$7)*($E$8))) ->  | K46: =IF(J46="","",IF('Staff '!J44="Insufficient","Staffing",$E$8-SLA($B46,K$12,$E$8*2,$E$7+$J$7)*($E$8))) ->  | L46: =IF(K46="","",IF('Staff '!K44="Insufficient","Staffing",$E$8-SLA($B46,L$12,$E$8*2,$E$7+$J$7)*($E$8))) ->  | M46: =IF(L46="","",IF('Staff '!L44="Insufficient","Staffing",$E$8-SLA($B46,M$12,$E$8*2,$E$7+$J$7)*($E$8))) ->  | N46: =IF(M46="","",IF('Staff '!M44="Insufficient","Staffing",$E$8-SLA($B46,N$12,$E$8*2,$E$7+$J$7)*($E$8))) ->  | O46: =IF(N46="","",IF('Staff '!N44="Insufficient","Staffing",$E$8-SLA($B46,O$12,$E$8*2,$E$7+$J$7)*($E$8))) ->  | P46: =IF(O46="","",IF('Staff '!O44="Insufficient","Staffing",$E$8-SLA($B46,P$12,$E$8*2,$E$7+$J$7)*($E$8))) ->  | Q46: =IF(P46="","",IF('Staff '!P44="Insufficient","Staffing",$E$8-SLA($B46,Q$12,$E$8*2,$E$7+$J$7)*($E$8))) ->  | R46: =IF(Q46="","",IF('Staff '!Q44="Insufficient","Staffing",$E$8-SLA($B46,R$12,$E$8*2,$E$7+$J$7)*($E$8))) ->  | S46: =IF(R46="","",IF('Staff '!R44="Insufficient","Staffing",$E$8-SLA($B46,S$12,$E$8*2,$E$7+$J$7)*($E$8))) ->  | T46: =IF(S46="","",IF('Staff '!S44="Insufficient","Staffing",$E$8-SLA($B46,T$12,$E$8*2,$E$7+$J$7)*($E$8))) ->  | U46: =IF(T46="","",IF('Staff '!T44="Insufficient","Staffing",$E$8-SLA($B46,U$12,$E$8*2,$E$7+$J$7)*($E$8))) -> 
B47: ='Staff '!B45 ->  | C47: =IF('Staff '!H45="","",SLA($B47,$J$8,$E$8*2,$E$7+$J$7)) ->  | D47: =IF($B47="","",IF('Staff '!C45="Insufficient","Staffing",$E$8-SLA($B47,D$12,$E$8*2,$E$7+$J$7)*($E$8))) ->  | E47: =IF('Staff '!H45="","",IF('Staff '!D45="Insufficient","Staffing",$E$8-SLA($B47,E$12,$E$8*2,$E$7+$J$7)*($E$8))) ->  | F47: =IF(E47="","",IF('Staff '!E45="Insufficient","Staffing",$E$8-SLA($B47,F$12,$E$8*2,$E$7+$J$7)*($E$8))) ->  | G47: =IF(F47="","",IF('Staff '!F45="Insufficient","Staffing",$E$8-SLA($B47,G$12,$E$8*2,$E$7+$J$7)*($E$8))) ->  | H47: =IF(G47="","",IF('Staff '!G45="Insufficient","Staffing",$E$8-SLA($B47,H$12,$E$8*2,$E$7+$J$7)*($E$8))) ->  | I47: =IF(H47="","",IF('Staff '!H45="Insufficient","Staffing",$E$8-SLA($B47,I$12,$E$8*2,$E$7+$J$7)*($E$8))) ->  | J47: =IF(I47="","",IF('Staff '!I45="Insufficient","Staffing",$E$8-SLA($B47,J$12,$E$8*2,$E$7+$J$7)*($E$8))) ->  | K47: =IF(J47="","",IF('Staff '!J45="Insufficient","Staffing",$E$8-SLA($B47,K$12,$E$8*2,$E$7+$J$7)*($E$8))) ->  | L47: =IF(K47="","",IF('Staff '!K45="Insufficient","Staffing",$E$8-SLA($B47,L$12,$E$8*2,$E$7+$J$7)*($E$8))) ->  | M47: =IF(L47="","",IF('Staff '!L45="Insufficient","Staffing",$E$8-SLA($B47,M$12,$E$8*2,$E$7+$J$7)*($E$8))) ->  | N47: =IF(M47="","",IF('Staff '!M45="Insufficient","Staffing",$E$8-SLA($B47,N$12,$E$8*2,$E$7+$J$7)*($E$8))) ->  | O47: =IF(N47="","",IF('Staff '!N45="Insufficient","Staffing",$E$8-SLA($B47,O$12,$E$8*2,$E$7+$J$7)*($E$8))) ->  | P47: =IF(O47="","",IF('Staff '!O45="Insufficient","Staffing",$E$8-SLA($B47,P$12,$E$8*2,$E$7+$J$7)*($E$8))) ->  | Q47: =IF(P47="","",IF('Staff '!P45="Insufficient","Staffing",$E$8-SLA($B47,Q$12,$E$8*2,$E$7+$J$7)*($E$8))) ->  | R47: =IF(Q47="","",IF('Staff '!Q45="Insufficient","Staffing",$E$8-SLA($B47,R$12,$E$8*2,$E$7+$J$7)*($E$8))) ->  | S47: =IF(R47="","",IF('Staff '!R45="Insufficient","Staffing",$E$8-SLA($B47,S$12,$E$8*2,$E$7+$J$7)*($E$8))) ->  | T47: =IF(S47="","",IF('Staff '!S45="Insufficient","Staffing",$E$8-SLA($B47,T$12,$E$8*2,$E$7+$J$7)*($E$8))) ->  | U47: =IF(T47="","",IF('Staff '!T45="Insufficient","Staffing",$E$8-SLA($B47,U$12,$E$8*2,$E$7+$J$7)*($E$8))) -> 
B48: ='Staff '!B46 ->  | C48: =IF('Staff '!H46="","",SLA($B48,$J$8,$E$8*2,$E$7+$J$7)) ->  | D48: =IF($B48="","",IF('Staff '!C46="Insufficient","Staffing",$E$8-SLA($B48,D$12,$E$8*2,$E$7+$J$7)*($E$8))) ->  | E48: =IF('Staff '!H46="","",IF('Staff '!D46="Insufficient","Staffing",$E$8-SLA($B48,E$12,$E$8*2,$E$7+$J$7)*($E$8))) ->  | F48: =IF(E48="","",IF('Staff '!E46="Insufficient","Staffing",$E$8-SLA($B48,F$12,$E$8*2,$E$7+$J$7)*($E$8))) ->  | G48: =IF(F48="","",IF('Staff '!F46="Insufficient","Staffing",$E$8-SLA($B48,G$12,$E$8*2,$E$7+$J$7)*($E$8))) ->  | H48: =IF(G48="","",IF('Staff '!G46="Insufficient","Staffing",$E$8-SLA($B48,H$12,$E$8*2,$E$7+$J$7)*($E$8))) ->  | I48: =IF(H48="","",IF('Staff '!H46="Insufficient","Staffing",$E$8-SLA($B48,I$12,$E$8*2,$E$7+$J$7)*($E$8))) ->  | J48: =IF(I48="","",IF('Staff '!I46="Insufficient","Staffing",$E$8-SLA($B48,J$12,$E$8*2,$E$7+$J$7)*($E$8))) ->  | K48: =IF(J48="","",IF('Staff '!J46="Insufficient","Staffing",$E$8-SLA($B48,K$12,$E$8*2,$E$7+$J$7)*($E$8))) ->  | L48: =IF(K48="","",IF('Staff '!K46="Insufficient","Staffing",$E$8-SLA($B48,L$12,$E$8*2,$E$7+$J$7)*($E$8))) ->  | M48: =IF(L48="","",IF('Staff '!L46="Insufficient","Staffing",$E$8-SLA($B48,M$12,$E$8*2,$E$7+$J$7)*($E$8))) ->  | N48: =IF(M48="","",IF('Staff '!M46="Insufficient","Staffing",$E$8-SLA($B48,N$12,$E$8*2,$E$7+$J$7)*($E$8))) ->  | O48: =IF(N48="","",IF('Staff '!N46="Insufficient","Staffing",$E$8-SLA($B48,O$12,$E$8*2,$E$7+$J$7)*($E$8))) ->  | P48: =IF(O48="","",IF('Staff '!O46="Insufficient","Staffing",$E$8-SLA($B48,P$12,$E$8*2,$E$7+$J$7)*($E$8))) ->  | Q48: =IF(P48="","",IF('Staff '!P46="Insufficient","Staffing",$E$8-SLA($B48,Q$12,$E$8*2,$E$7+$J$7)*($E$8))) ->  | R48: =IF(Q48="","",IF('Staff '!Q46="Insufficient","Staffing",$E$8-SLA($B48,R$12,$E$8*2,$E$7+$J$7)*($E$8))) ->  | S48: =IF(R48="","",IF('Staff '!R46="Insufficient","Staffing",$E$8-SLA($B48,S$12,$E$8*2,$E$7+$J$7)*($E$8))) ->  | T48: =IF(S48="","",IF('Staff '!S46="Insufficient","Staffing",$E$8-SLA($B48,T$12,$E$8*2,$E$7+$J$7)*($E$8))) ->  | U48: =IF(T48="","",IF('Staff '!T46="Insufficient","Staffing",$E$8-SLA($B48,U$12,$E$8*2,$E$7+$J$7)*($E$8))) -> 
B49: ='Staff '!B47 ->  | C49: =IF('Staff '!H47="","",SLA($B49,$J$8,$E$8*2,$E$7+$J$7)) ->  | D49: =IF($B49="","",IF('Staff '!C47="Insufficient","Staffing",$E$8-SLA($B49,D$12,$E$8*2,$E$7+$J$7)*($E$8))) ->  | E49: =IF('Staff '!H47="","",IF('Staff '!D47="Insufficient","Staffing",$E$8-SLA($B49,E$12,$E$8*2,$E$7+$J$7)*($E$8))) ->  | F49: =IF(E49="","",IF('Staff '!E47="Insufficient","Staffing",$E$8-SLA($B49,F$12,$E$8*2,$E$7+$J$7)*($E$8))) ->  | G49: =IF(F49="","",IF('Staff '!F47="Insufficient","Staffing",$E$8-SLA($B49,G$12,$E$8*2,$E$7+$J$7)*($E$8))) ->  | H49: =IF(G49="","",IF('Staff '!G47="Insufficient","Staffing",$E$8-SLA($B49,H$12,$E$8*2,$E$7+$J$7)*($E$8))) ->  | I49: =IF(H49="","",IF('Staff '!H47="Insufficient","Staffing",$E$8-SLA($B49,I$12,$E$8*2,$E$7+$J$7)*($E$8))) ->  | J49: =IF(I49="","",IF('Staff '!I47="Insufficient","Staffing",$E$8-SLA($B49,J$12,$E$8*2,$E$7+$J$7)*($E$8))) ->  | K49: =IF(J49="","",IF('Staff '!J47="Insufficient","Staffing",$E$8-SLA($B49,K$12,$E$8*2,$E$7+$J$7)*($E$8))) ->  | L49: =IF(K49="","",IF('Staff '!K47="Insufficient","Staffing",$E$8-SLA($B49,L$12,$E$8*2,$E$7+$J$7)*($E$8))) ->  | M49: =IF(L49="","",IF('Staff '!L47="Insufficient","Staffing",$E$8-SLA($B49,M$12,$E$8*2,$E$7+$J$7)*($E$8))) ->  | N49: =IF(M49="","",IF('Staff '!M47="Insufficient","Staffing",$E$8-SLA($B49,N$12,$E$8*2,$E$7+$J$7)*($E$8))) ->  | O49: =IF(N49="","",IF('Staff '!N47="Insufficient","Staffing",$E$8-SLA($B49,O$12,$E$8*2,$E$7+$J$7)*($E$8))) ->  | P49: =IF(O49="","",IF('Staff '!O47="Insufficient","Staffing",$E$8-SLA($B49,P$12,$E$8*2,$E$7+$J$7)*($E$8))) ->  | Q49: =IF(P49="","",IF('Staff '!P47="Insufficient","Staffing",$E$8-SLA($B49,Q$12,$E$8*2,$E$7+$J$7)*($E$8))) ->  | R49: =IF(Q49="","",IF('Staff '!Q47="Insufficient","Staffing",$E$8-SLA($B49,R$12,$E$8*2,$E$7+$J$7)*($E$8))) ->  | S49: =IF(R49="","",IF('Staff '!R47="Insufficient","Staffing",$E$8-SLA($B49,S$12,$E$8*2,$E$7+$J$7)*($E$8))) ->  | T49: =IF(S49="","",IF('Staff '!S47="Insufficient","Staffing",$E$8-SLA($B49,T$12,$E$8*2,$E$7+$J$7)*($E$8))) ->  | U49: =IF(T49="","",IF('Staff '!T47="Insufficient","Staffing",$E$8-SLA($B49,U$12,$E$8*2,$E$7+$J$7)*($E$8))) -> 
B50: ='Staff '!B48 ->  | C50: =IF('Staff '!H48="","",SLA($B50,$J$8,$E$8*2,$E$7+$J$7)) ->  | D50: =IF($B50="","",IF('Staff '!C48="Insufficient","Staffing",$E$8-SLA($B50,D$12,$E$8*2,$E$7+$J$7)*($E$8))) ->  | E50: =IF('Staff '!H48="","",IF('Staff '!D48="Insufficient","Staffing",$E$8-SLA($B50,E$12,$E$8*2,$E$7+$J$7)*($E$8))) ->  | F50: =IF(E50="","",IF('Staff '!E48="Insufficient","Staffing",$E$8-SLA($B50,F$12,$E$8*2,$E$7+$J$7)*($E$8))) ->  | G50: =IF(F50="","",IF('Staff '!F48="Insufficient","Staffing",$E$8-SLA($B50,G$12,$E$8*2,$E$7+$J$7)*($E$8))) ->  | H50: =IF(G50="","",IF('Staff '!G48="Insufficient","Staffing",$E$8-SLA($B50,H$12,$E$8*2,$E$7+$J$7)*($E$8))) ->  | I50: =IF(H50="","",IF('Staff '!H48="Insufficient","Staffing",$E$8-SLA($B50,I$12,$E$8*2,$E$7+$J$7)*($E$8))) ->  | J50: =IF(I50="","",IF('Staff '!I48="Insufficient","Staffing",$E$8-SLA($B50,J$12,$E$8*2,$E$7+$J$7)*($E$8))) ->  | K50: =IF(J50="","",IF('Staff '!J48="Insufficient","Staffing",$E$8-SLA($B50,K$12,$E$8*2,$E$7+$J$7)*($E$8))) ->  | L50: =IF(K50="","",IF('Staff '!K48="Insufficient","Staffing",$E$8-SLA($B50,L$12,$E$8*2,$E$7+$J$7)*($E$8))) ->  | M50: =IF(L50="","",IF('Staff '!L48="Insufficient","Staffing",$E$8-SLA($B50,M$12,$E$8*2,$E$7+$J$7)*($E$8))) ->  | N50: =IF(M50="","",IF('Staff '!M48="Insufficient","Staffing",$E$8-SLA($B50,N$12,$E$8*2,$E$7+$J$7)*($E$8))) ->  | O50: =IF(N50="","",IF('Staff '!N48="Insufficient","Staffing",$E$8-SLA($B50,O$12,$E$8*2,$E$7+$J$7)*($E$8))) ->  | P50: =IF(O50="","",IF('Staff '!O48="Insufficient","Staffing",$E$8-SLA($B50,P$12,$E$8*2,$E$7+$J$7)*($E$8))) ->  | Q50: =IF(P50="","",IF('Staff '!P48="Insufficient","Staffing",$E$8-SLA($B50,Q$12,$E$8*2,$E$7+$J$7)*($E$8))) ->  | R50: =IF(Q50="","",IF('Staff '!Q48="Insufficient","Staffing",$E$8-SLA($B50,R$12,$E$8*2,$E$7+$J$7)*($E$8))) ->  | S50: =IF(R50="","",IF('Staff '!R48="Insufficient","Staffing",$E$8-SLA($B50,S$12,$E$8*2,$E$7+$J$7)*($E$8))) ->  | T50: =IF(S50="","",IF('Staff '!S48="Insufficient","Staffing",$E$8-SLA($B50,T$12,$E$8*2,$E$7+$J$7)*($E$8))) ->  | U50: =IF(T50="","",IF('Staff '!T48="Insufficient","Staffing",$E$8-SLA($B50,U$12,$E$8*2,$E$7+$J$7)*($E$8))) -> 
B51: ='Staff '!B49 ->  | C51: =IF('Staff '!H49="","",SLA($B51,$J$8,$E$8*2,$E$7+$J$7)) ->  | D51: =IF($B51="","",IF('Staff '!C49="Insufficient","Staffing",$E$8-SLA($B51,D$12,$E$8*2,$E$7+$J$7)*($E$8))) ->  | E51: =IF('Staff '!H49="","",IF('Staff '!D49="Insufficient","Staffing",$E$8-SLA($B51,E$12,$E$8*2,$E$7+$J$7)*($E$8))) ->  | F51: =IF(E51="","",IF('Staff '!E49="Insufficient","Staffing",$E$8-SLA($B51,F$12,$E$8*2,$E$7+$J$7)*($E$8))) ->  | G51: =IF(F51="","",IF('Staff '!F49="Insufficient","Staffing",$E$8-SLA($B51,G$12,$E$8*2,$E$7+$J$7)*($E$8))) ->  | H51: =IF(G51="","",IF('Staff '!G49="Insufficient","Staffing",$E$8-SLA($B51,H$12,$E$8*2,$E$7+$J$7)*($E$8))) ->  | I51: =IF(H51="","",IF('Staff '!H49="Insufficient","Staffing",$E$8-SLA($B51,I$12,$E$8*2,$E$7+$J$7)*($E$8))) ->  | J51: =IF(I51="","",IF('Staff '!I49="Insufficient","Staffing",$E$8-SLA($B51,J$12,$E$8*2,$E$7+$J$7)*($E$8))) ->  | K51: =IF(J51="","",IF('Staff '!J49="Insufficient","Staffing",$E$8-SLA($B51,K$12,$E$8*2,$E$7+$J$7)*($E$8))) ->  | L51: =IF(K51="","",IF('Staff '!K49="Insufficient","Staffing",$E$8-SLA($B51,L$12,$E$8*2,$E$7+$J$7)*($E$8))) ->  | M51: =IF(L51="","",IF('Staff '!L49="Insufficient","Staffing",$E$8-SLA($B51,M$12,$E$8*2,$E$7+$J$7)*($E$8))) ->  | N51: =IF(M51="","",IF('Staff '!M49="Insufficient","Staffing",$E$8-SLA($B51,N$12,$E$8*2,$E$7+$J$7)*($E$8))) ->  | O51: =IF(N51="","",IF('Staff '!N49="Insufficient","Staffing",$E$8-SLA($B51,O$12,$E$8*2,$E$7+$J$7)*($E$8))) ->  | P51: =IF(O51="","",IF('Staff '!O49="Insufficient","Staffing",$E$8-SLA($B51,P$12,$E$8*2,$E$7+$J$7)*($E$8))) ->  | Q51: =IF(P51="","",IF('Staff '!P49="Insufficient","Staffing",$E$8-SLA($B51,Q$12,$E$8*2,$E$7+$J$7)*($E$8))) ->  | R51: =IF(Q51="","",IF('Staff '!Q49="Insufficient","Staffing",$E$8-SLA($B51,R$12,$E$8*2,$E$7+$J$7)*($E$8))) ->  | S51: =IF(R51="","",IF('Staff '!R49="Insufficient","Staffing",$E$8-SLA($B51,S$12,$E$8*2,$E$7+$J$7)*($E$8))) ->  | T51: =IF(S51="","",IF('Staff '!S49="Insufficient","Staffing",$E$8-SLA($B51,T$12,$E$8*2,$E$7+$J$7)*($E$8))) ->  | U51: =IF(T51="","",IF('Staff '!T49="Insufficient","Staffing",$E$8-SLA($B51,U$12,$E$8*2,$E$7+$J$7)*($E$8))) -> 
B52: ='Staff '!B50 ->  | C52: =IF('Staff '!H50="","",SLA($B52,$J$8,$E$8*2,$E$7+$J$7)) ->  | D52: =IF($B52="","",IF('Staff '!C50="Insufficient","Staffing",$E$8-SLA($B52,D$12,$E$8*2,$E$7+$J$7)*($E$8))) ->  | E52: =IF('Staff '!H50="","",IF('Staff '!D50="Insufficient","Staffing",$E$8-SLA($B52,E$12,$E$8*2,$E$7+$J$7)*($E$8))) ->  | F52: =IF(E52="","",IF('Staff '!E50="Insufficient","Staffing",$E$8-SLA($B52,F$12,$E$8*2,$E$7+$J$7)*($E$8))) ->  | G52: =IF(F52="","",IF('Staff '!F50="Insufficient","Staffing",$E$8-SLA($B52,G$12,$E$8*2,$E$7+$J$7)*($E$8))) ->  | H52: =IF(G52="","",IF('Staff '!G50="Insufficient","Staffing",$E$8-SLA($B52,H$12,$E$8*2,$E$7+$J$7)*($E$8))) ->  | I52: =IF(H52="","",IF('Staff '!H50="Insufficient","Staffing",$E$8-SLA($B52,I$12,$E$8*2,$E$7+$J$7)*($E$8))) ->  | J52: =IF(I52="","",IF('Staff '!I50="Insufficient","Staffing",$E$8-SLA($B52,J$12,$E$8*2,$E$7+$J$7)*($E$8))) ->  | K52: =IF(J52="","",IF('Staff '!J50="Insufficient","Staffing",$E$8-SLA($B52,K$12,$E$8*2,$E$7+$J$7)*($E$8))) ->  | L52: =IF(K52="","",IF('Staff '!K50="Insufficient","Staffing",$E$8-SLA($B52,L$12,$E$8*2,$E$7+$J$7)*($E$8))) ->  | M52: =IF(L52="","",IF('Staff '!L50="Insufficient","Staffing",$E$8-SLA($B52,M$12,$E$8*2,$E$7+$J$7)*($E$8))) ->  | N52: =IF(M52="","",IF('Staff '!M50="Insufficient","Staffing",$E$8-SLA($B52,N$12,$E$8*2,$E$7+$J$7)*($E$8))) ->  | O52: =IF(N52="","",IF('Staff '!N50="Insufficient","Staffing",$E$8-SLA($B52,O$12,$E$8*2,$E$7+$J$7)*($E$8))) ->  | P52: =IF(O52="","",IF('Staff '!O50="Insufficient","Staffing",$E$8-SLA($B52,P$12,$E$8*2,$E$7+$J$7)*($E$8))) ->  | Q52: =IF(P52="","",IF('Staff '!P50="Insufficient","Staffing",$E$8-SLA($B52,Q$12,$E$8*2,$E$7+$J$7)*($E$8))) ->  | R52: =IF(Q52="","",IF('Staff '!Q50="Insufficient","Staffing",$E$8-SLA($B52,R$12,$E$8*2,$E$7+$J$7)*($E$8))) ->  | S52: =IF(R52="","",IF('Staff '!R50="Insufficient","Staffing",$E$8-SLA($B52,S$12,$E$8*2,$E$7+$J$7)*($E$8))) ->  | T52: =IF(S52="","",IF('Staff '!S50="Insufficient","Staffing",$E$8-SLA($B52,T$12,$E$8*2,$E$7+$J$7)*($E$8))) ->  | U52: =IF(T52="","",IF('Staff '!T50="Insufficient","Staffing",$E$8-SLA($B52,U$12,$E$8*2,$E$7+$J$7)*($E$8))) -> 
B53: ='Staff '!B51 ->  | C53: =IF('Staff '!H51="","",SLA($B53,$J$8,$E$8*2,$E$7+$J$7)) ->  | D53: =IF($B53="","",IF('Staff '!C51="Insufficient","Staffing",$E$8-SLA($B53,D$12,$E$8*2,$E$7+$J$7)*($E$8))) ->  | E53: =IF('Staff '!H51="","",IF('Staff '!D51="Insufficient","Staffing",$E$8-SLA($B53,E$12,$E$8*2,$E$7+$J$7)*($E$8))) ->  | F53: =IF(E53="","",IF('Staff '!E51="Insufficient","Staffing",$E$8-SLA($B53,F$12,$E$8*2,$E$7+$J$7)*($E$8))) ->  | G53: =IF(F53="","",IF('Staff '!F51="Insufficient","Staffing",$E$8-SLA($B53,G$12,$E$8*2,$E$7+$J$7)*($E$8))) ->  | H53: =IF(G53="","",IF('Staff '!G51="Insufficient","Staffing",$E$8-SLA($B53,H$12,$E$8*2,$E$7+$J$7)*($E$8))) ->  | I53: =IF(H53="","",IF('Staff '!H51="Insufficient","Staffing",$E$8-SLA($B53,I$12,$E$8*2,$E$7+$J$7)*($E$8))) ->  | J53: =IF(I53="","",IF('Staff '!I51="Insufficient","Staffing",$E$8-SLA($B53,J$12,$E$8*2,$E$7+$J$7)*($E$8))) ->  | K53: =IF(J53="","",IF('Staff '!J51="Insufficient","Staffing",$E$8-SLA($B53,K$12,$E$8*2,$E$7+$J$7)*($E$8))) ->  | L53: =IF(K53="","",IF('Staff '!K51="Insufficient","Staffing",$E$8-SLA($B53,L$12,$E$8*2,$E$7+$J$7)*($E$8))) ->  | M53: =IF(L53="","",IF('Staff '!L51="Insufficient","Staffing",$E$8-SLA($B53,M$12,$E$8*2,$E$7+$J$7)*($E$8))) ->  | N53: =IF(M53="","",IF('Staff '!M51="Insufficient","Staffing",$E$8-SLA($B53,N$12,$E$8*2,$E$7+$J$7)*($E$8))) ->  | O53: =IF(N53="","",IF('Staff '!N51="Insufficient","Staffing",$E$8-SLA($B53,O$12,$E$8*2,$E$7+$J$7)*($E$8))) ->  | P53: =IF(O53="","",IF('Staff '!O51="Insufficient","Staffing",$E$8-SLA($B53,P$12,$E$8*2,$E$7+$J$7)*($E$8))) ->  | Q53: =IF(P53="","",IF('Staff '!P51="Insufficient","Staffing",$E$8-SLA($B53,Q$12,$E$8*2,$E$7+$J$7)*($E$8))) ->  | R53: =IF(Q53="","",IF('Staff '!Q51="Insufficient","Staffing",$E$8-SLA($B53,R$12,$E$8*2,$E$7+$J$7)*($E$8))) ->  | S53: =IF(R53="","",IF('Staff '!R51="Insufficient","Staffing",$E$8-SLA($B53,S$12,$E$8*2,$E$7+$J$7)*($E$8))) ->  | T53: =IF(S53="","",IF('Staff '!S51="Insufficient","Staffing",$E$8-SLA($B53,T$12,$E$8*2,$E$7+$J$7)*($E$8))) ->  | U53: =IF(T53="","",IF('Staff '!T51="Insufficient","Staffing",$E$8-SLA($B53,U$12,$E$8*2,$E$7+$J$7)*($E$8))) -> 
B54: ='Staff '!B52 ->  | C54: =IF('Staff '!H52="","",SLA($B54,$J$8,$E$8*2,$E$7+$J$7)) ->  | D54: =IF($B54="","",IF('Staff '!C52="Insufficient","Staffing",$E$8-SLA($B54,D$12,$E$8*2,$E$7+$J$7)*($E$8))) ->  | E54: =IF('Staff '!H52="","",IF('Staff '!D52="Insufficient","Staffing",$E$8-SLA($B54,E$12,$E$8*2,$E$7+$J$7)*($E$8))) ->  | F54: =IF(E54="","",IF('Staff '!E52="Insufficient","Staffing",$E$8-SLA($B54,F$12,$E$8*2,$E$7+$J$7)*($E$8))) ->  | G54: =IF(F54="","",IF('Staff '!F52="Insufficient","Staffing",$E$8-SLA($B54,G$12,$E$8*2,$E$7+$J$7)*($E$8))) ->  | H54: =IF(G54="","",IF('Staff '!G52="Insufficient","Staffing",$E$8-SLA($B54,H$12,$E$8*2,$E$7+$J$7)*($E$8))) ->  | I54: =IF(H54="","",IF('Staff '!H52="Insufficient","Staffing",$E$8-SLA($B54,I$12,$E$8*2,$E$7+$J$7)*($E$8))) ->  | J54: =IF(I54="","",IF('Staff '!I52="Insufficient","Staffing",$E$8-SLA($B54,J$12,$E$8*2,$E$7+$J$7)*($E$8))) ->  | K54: =IF(J54="","",IF('Staff '!J52="Insufficient","Staffing",$E$8-SLA($B54,K$12,$E$8*2,$E$7+$J$7)*($E$8))) ->  | L54: =IF(K54="","",IF('Staff '!K52="Insufficient","Staffing",$E$8-SLA($B54,L$12,$E$8*2,$E$7+$J$7)*($E$8))) ->  | M54: =IF(L54="","",IF('Staff '!L52="Insufficient","Staffing",$E$8-SLA($B54,M$12,$E$8*2,$E$7+$J$7)*($E$8))) ->  | N54: =IF(M54="","",IF('Staff '!M52="Insufficient","Staffing",$E$8-SLA($B54,N$12,$E$8*2,$E$7+$J$7)*($E$8))) ->  | O54: =IF(N54="","",IF('Staff '!N52="Insufficient","Staffing",$E$8-SLA($B54,O$12,$E$8*2,$E$7+$J$7)*($E$8))) ->  | P54: =IF(O54="","",IF('Staff '!O52="Insufficient","Staffing",$E$8-SLA($B54,P$12,$E$8*2,$E$7+$J$7)*($E$8))) ->  | Q54: =IF(P54="","",IF('Staff '!P52="Insufficient","Staffing",$E$8-SLA($B54,Q$12,$E$8*2,$E$7+$J$7)*($E$8))) ->  | R54: =IF(Q54="","",IF('Staff '!Q52="Insufficient","Staffing",$E$8-SLA($B54,R$12,$E$8*2,$E$7+$J$7)*($E$8))) ->  | S54: =IF(R54="","",IF('Staff '!R52="Insufficient","Staffing",$E$8-SLA($B54,S$12,$E$8*2,$E$7+$J$7)*($E$8))) ->  | T54: =IF(S54="","",IF('Staff '!S52="Insufficient","Staffing",$E$8-SLA($B54,T$12,$E$8*2,$E$7+$J$7)*($E$8))) ->  | U54: =IF(T54="","",IF('Staff '!T52="Insufficient","Staffing",$E$8-SLA($B54,U$12,$E$8*2,$E$7+$J$7)*($E$8))) -> 
B55: ='Staff '!B53 ->  | C55: =IF('Staff '!H53="","",SLA($B55,$J$8,$E$8*2,$E$7+$J$7)) ->  | D55: =IF($B55="","",IF('Staff '!C53="Insufficient","Staffing",$E$8-SLA($B55,D$12,$E$8*2,$E$7+$J$7)*($E$8))) ->  | E55: =IF('Staff '!H53="","",IF('Staff '!D53="Insufficient","Staffing",$E$8-SLA($B55,E$12,$E$8*2,$E$7+$J$7)*($E$8))) ->  | F55: =IF(E55="","",IF('Staff '!E53="Insufficient","Staffing",$E$8-SLA($B55,F$12,$E$8*2,$E$7+$J$7)*($E$8))) ->  | G55: =IF(F55="","",IF('Staff '!F53="Insufficient","Staffing",$E$8-SLA($B55,G$12,$E$8*2,$E$7+$J$7)*($E$8))) ->  | H55: =IF(G55="","",IF('Staff '!G53="Insufficient","Staffing",$E$8-SLA($B55,H$12,$E$8*2,$E$7+$J$7)*($E$8))) ->  | I55: =IF(H55="","",IF('Staff '!H53="Insufficient","Staffing",$E$8-SLA($B55,I$12,$E$8*2,$E$7+$J$7)*($E$8))) ->  | J55: =IF(I55="","",IF('Staff '!I53="Insufficient","Staffing",$E$8-SLA($B55,J$12,$E$8*2,$E$7+$J$7)*($E$8))) ->  | K55: =IF(J55="","",IF('Staff '!J53="Insufficient","Staffing",$E$8-SLA($B55,K$12,$E$8*2,$E$7+$J$7)*($E$8))) ->  | L55: =IF(K55="","",IF('Staff '!K53="Insufficient","Staffing",$E$8-SLA($B55,L$12,$E$8*2,$E$7+$J$7)*($E$8))) ->  | M55: =IF(L55="","",IF('Staff '!L53="Insufficient","Staffing",$E$8-SLA($B55,M$12,$E$8*2,$E$7+$J$7)*($E$8))) ->  | N55: =IF(M55="","",IF('Staff '!M53="Insufficient","Staffing",$E$8-SLA($B55,N$12,$E$8*2,$E$7+$J$7)*($E$8))) ->  | O55: =IF(N55="","",IF('Staff '!N53="Insufficient","Staffing",$E$8-SLA($B55,O$12,$E$8*2,$E$7+$J$7)*($E$8))) ->  | P55: =IF(O55="","",IF('Staff '!O53="Insufficient","Staffing",$E$8-SLA($B55,P$12,$E$8*2,$E$7+$J$7)*($E$8))) ->  | Q55: =IF(P55="","",IF('Staff '!P53="Insufficient","Staffing",$E$8-SLA($B55,Q$12,$E$8*2,$E$7+$J$7)*($E$8))) ->  | R55: =IF(Q55="","",IF('Staff '!Q53="Insufficient","Staffing",$E$8-SLA($B55,R$12,$E$8*2,$E$7+$J$7)*($E$8))) ->  | S55: =IF(R55="","",IF('Staff '!R53="Insufficient","Staffing",$E$8-SLA($B55,S$12,$E$8*2,$E$7+$J$7)*($E$8))) ->  | T55: =IF(S55="","",IF('Staff '!S53="Insufficient","Staffing",$E$8-SLA($B55,T$12,$E$8*2,$E$7+$J$7)*($E$8))) ->  | U55: =IF(T55="","",IF('Staff '!T53="Insufficient","Staffing",$E$8-SLA($B55,U$12,$E$8*2,$E$7+$J$7)*($E$8))) -> 
B56: ='Staff '!B54 ->  | C56: =IF('Staff '!H54="","",SLA($B56,$J$8,$E$8*2,$E$7+$J$7)) ->  | D56: =IF($B56="","",IF('Staff '!C54="Insufficient","Staffing",$E$8-SLA($B56,D$12,$E$8*2,$E$7+$J$7)*($E$8))) ->  | E56: =IF('Staff '!H54="","",IF('Staff '!D54="Insufficient","Staffing",$E$8-SLA($B56,E$12,$E$8*2,$E$7+$J$7)*($E$8))) ->  | F56: =IF(E56="","",IF('Staff '!E54="Insufficient","Staffing",$E$8-SLA($B56,F$12,$E$8*2,$E$7+$J$7)*($E$8))) ->  | G56: =IF(F56="","",IF('Staff '!F54="Insufficient","Staffing",$E$8-SLA($B56,G$12,$E$8*2,$E$7+$J$7)*($E$8))) ->  | H56: =IF(G56="","",IF('Staff '!G54="Insufficient","Staffing",$E$8-SLA($B56,H$12,$E$8*2,$E$7+$J$7)*($E$8))) ->  | I56: =IF(H56="","",IF('Staff '!H54="Insufficient","Staffing",$E$8-SLA($B56,I$12,$E$8*2,$E$7+$J$7)*($E$8))) ->  | J56: =IF(I56="","",IF('Staff '!I54="Insufficient","Staffing",$E$8-SLA($B56,J$12,$E$8*2,$E$7+$J$7)*($E$8))) ->  | K56: =IF(J56="","",IF('Staff '!J54="Insufficient","Staffing",$E$8-SLA($B56,K$12,$E$8*2,$E$7+$J$7)*($E$8))) ->  | L56: =IF(K56="","",IF('Staff '!K54="Insufficient","Staffing",$E$8-SLA($B56,L$12,$E$8*2,$E$7+$J$7)*($E$8))) ->  | M56: =IF(L56="","",IF('Staff '!L54="Insufficient","Staffing",$E$8-SLA($B56,M$12,$E$8*2,$E$7+$J$7)*($E$8))) ->  | N56: =IF(M56="","",IF('Staff '!M54="Insufficient","Staffing",$E$8-SLA($B56,N$12,$E$8*2,$E$7+$J$7)*($E$8))) ->  | O56: =IF(N56="","",IF('Staff '!N54="Insufficient","Staffing",$E$8-SLA($B56,O$12,$E$8*2,$E$7+$J$7)*($E$8))) ->  | P56: =IF(O56="","",IF('Staff '!O54="Insufficient","Staffing",$E$8-SLA($B56,P$12,$E$8*2,$E$7+$J$7)*($E$8))) ->  | Q56: =IF(P56="","",IF('Staff '!P54="Insufficient","Staffing",$E$8-SLA($B56,Q$12,$E$8*2,$E$7+$J$7)*($E$8))) ->  | R56: =IF(Q56="","",IF('Staff '!Q54="Insufficient","Staffing",$E$8-SLA($B56,R$12,$E$8*2,$E$7+$J$7)*($E$8))) ->  | S56: =IF(R56="","",IF('Staff '!R54="Insufficient","Staffing",$E$8-SLA($B56,S$12,$E$8*2,$E$7+$J$7)*($E$8))) ->  | T56: =IF(S56="","",IF('Staff '!S54="Insufficient","Staffing",$E$8-SLA($B56,T$12,$E$8*2,$E$7+$J$7)*($E$8))) ->  | U56: =IF(T56="","",IF('Staff '!T54="Insufficient","Staffing",$E$8-SLA($B56,U$12,$E$8*2,$E$7+$J$7)*($E$8))) -> 
B57: ='Staff '!B55 ->  | C57: =IF('Staff '!H55="","",SLA($B57,$J$8,$E$8*2,$E$7+$J$7)) ->  | D57: =IF($B57="","",IF('Staff '!C55="Insufficient","Staffing",$E$8-SLA($B57,D$12,$E$8*2,$E$7+$J$7)*($E$8))) ->  | E57: =IF('Staff '!H55="","",IF('Staff '!D55="Insufficient","Staffing",$E$8-SLA($B57,E$12,$E$8*2,$E$7+$J$7)*($E$8))) ->  | F57: =IF(E57="","",IF('Staff '!E55="Insufficient","Staffing",$E$8-SLA($B57,F$12,$E$8*2,$E$7+$J$7)*($E$8))) ->  | G57: =IF(F57="","",IF('Staff '!F55="Insufficient","Staffing",$E$8-SLA($B57,G$12,$E$8*2,$E$7+$J$7)*($E$8))) ->  | H57: =IF(G57="","",IF('Staff '!G55="Insufficient","Staffing",$E$8-SLA($B57,H$12,$E$8*2,$E$7+$J$7)*($E$8))) ->  | I57: =IF(H57="","",IF('Staff '!H55="Insufficient","Staffing",$E$8-SLA($B57,I$12,$E$8*2,$E$7+$J$7)*($E$8))) ->  | J57: =IF(I57="","",IF('Staff '!I55="Insufficient","Staffing",$E$8-SLA($B57,J$12,$E$8*2,$E$7+$J$7)*($E$8))) ->  | K57: =IF(J57="","",IF('Staff '!J55="Insufficient","Staffing",$E$8-SLA($B57,K$12,$E$8*2,$E$7+$J$7)*($E$8))) ->  | L57: =IF(K57="","",IF('Staff '!K55="Insufficient","Staffing",$E$8-SLA($B57,L$12,$E$8*2,$E$7+$J$7)*($E$8))) ->  | M57: =IF(L57="","",IF('Staff '!L55="Insufficient","Staffing",$E$8-SLA($B57,M$12,$E$8*2,$E$7+$J$7)*($E$8))) ->  | N57: =IF(M57="","",IF('Staff '!M55="Insufficient","Staffing",$E$8-SLA($B57,N$12,$E$8*2,$E$7+$J$7)*($E$8))) ->  | O57: =IF(N57="","",IF('Staff '!N55="Insufficient","Staffing",$E$8-SLA($B57,O$12,$E$8*2,$E$7+$J$7)*($E$8))) ->  | P57: =IF(O57="","",IF('Staff '!O55="Insufficient","Staffing",$E$8-SLA($B57,P$12,$E$8*2,$E$7+$J$7)*($E$8))) ->  | Q57: =IF(P57="","",IF('Staff '!P55="Insufficient","Staffing",$E$8-SLA($B57,Q$12,$E$8*2,$E$7+$J$7)*($E$8))) ->  | R57: =IF(Q57="","",IF('Staff '!Q55="Insufficient","Staffing",$E$8-SLA($B57,R$12,$E$8*2,$E$7+$J$7)*($E$8))) ->  | S57: =IF(R57="","",IF('Staff '!R55="Insufficient","Staffing",$E$8-SLA($B57,S$12,$E$8*2,$E$7+$J$7)*($E$8))) ->  | T57: =IF(S57="","",IF('Staff '!S55="Insufficient","Staffing",$E$8-SLA($B57,T$12,$E$8*2,$E$7+$J$7)*($E$8))) ->  | U57: =IF(T57="","",IF('Staff '!T55="Insufficient","Staffing",$E$8-SLA($B57,U$12,$E$8*2,$E$7+$J$7)*($E$8))) -> 
B58: ='Staff '!B56 ->  | C58: =IF('Staff '!H56="","",SLA($B58,$J$8,$E$8*2,$E$7+$J$7)) ->  | D58: =IF($B58="","",IF('Staff '!C56="Insufficient","Staffing",$E$8-SLA($B58,D$12,$E$8*2,$E$7+$J$7)*($E$8))) ->  | E58: =IF('Staff '!H56="","",IF('Staff '!D56="Insufficient","Staffing",$E$8-SLA($B58,E$12,$E$8*2,$E$7+$J$7)*($E$8))) ->  | F58: =IF(E58="","",IF('Staff '!E56="Insufficient","Staffing",$E$8-SLA($B58,F$12,$E$8*2,$E$7+$J$7)*($E$8))) ->  | G58: =IF(F58="","",IF('Staff '!F56="Insufficient","Staffing",$E$8-SLA($B58,G$12,$E$8*2,$E$7+$J$7)*($E$8))) ->  | H58: =IF(G58="","",IF('Staff '!G56="Insufficient","Staffing",$E$8-SLA($B58,H$12,$E$8*2,$E$7+$J$7)*($E$8))) ->  | I58: =IF(H58="","",IF('Staff '!H56="Insufficient","Staffing",$E$8-SLA($B58,I$12,$E$8*2,$E$7+$J$7)*($E$8))) ->  | J58: =IF(I58="","",IF('Staff '!I56="Insufficient","Staffing",$E$8-SLA($B58,J$12,$E$8*2,$E$7+$J$7)*($E$8))) ->  | K58: =IF(J58="","",IF('Staff '!J56="Insufficient","Staffing",$E$8-SLA($B58,K$12,$E$8*2,$E$7+$J$7)*($E$8))) ->  | L58: =IF(K58="","",IF('Staff '!K56="Insufficient","Staffing",$E$8-SLA($B58,L$12,$E$8*2,$E$7+$J$7)*($E$8))) ->  | M58: =IF(L58="","",IF('Staff '!L56="Insufficient","Staffing",$E$8-SLA($B58,M$12,$E$8*2,$E$7+$J$7)*($E$8))) ->  | N58: =IF(M58="","",IF('Staff '!M56="Insufficient","Staffing",$E$8-SLA($B58,N$12,$E$8*2,$E$7+$J$7)*($E$8))) ->  | O58: =IF(N58="","",IF('Staff '!N56="Insufficient","Staffing",$E$8-SLA($B58,O$12,$E$8*2,$E$7+$J$7)*($E$8))) ->  | P58: =IF(O58="","",IF('Staff '!O56="Insufficient","Staffing",$E$8-SLA($B58,P$12,$E$8*2,$E$7+$J$7)*($E$8))) ->  | Q58: =IF(P58="","",IF('Staff '!P56="Insufficient","Staffing",$E$8-SLA($B58,Q$12,$E$8*2,$E$7+$J$7)*($E$8))) ->  | R58: =IF(Q58="","",IF('Staff '!Q56="Insufficient","Staffing",$E$8-SLA($B58,R$12,$E$8*2,$E$7+$J$7)*($E$8))) ->  | S58: =IF(R58="","",IF('Staff '!R56="Insufficient","Staffing",$E$8-SLA($B58,S$12,$E$8*2,$E$7+$J$7)*($E$8))) ->  | T58: =IF(S58="","",IF('Staff '!S56="Insufficient","Staffing",$E$8-SLA($B58,T$12,$E$8*2,$E$7+$J$7)*($E$8))) ->  | U58: =IF(T58="","",IF('Staff '!T56="Insufficient","Staffing",$E$8-SLA($B58,U$12,$E$8*2,$E$7+$J$7)*($E$8))) -> 
B59: ='Staff '!B57 ->  | C59: =IF('Staff '!H57="","",SLA($B59,$J$8,$E$8*2,$E$7+$J$7)) ->  | D59: =IF($B59="","",IF('Staff '!C57="Insufficient","Staffing",$E$8-SLA($B59,D$12,$E$8*2,$E$7+$J$7)*($E$8))) ->  | E59: =IF('Staff '!H57="","",IF('Staff '!D57="Insufficient","Staffing",$E$8-SLA($B59,E$12,$E$8*2,$E$7+$J$7)*($E$8))) ->  | F59: =IF(E59="","",IF('Staff '!E57="Insufficient","Staffing",$E$8-SLA($B59,F$12,$E$8*2,$E$7+$J$7)*($E$8))) ->  | G59: =IF(F59="","",IF('Staff '!F57="Insufficient","Staffing",$E$8-SLA($B59,G$12,$E$8*2,$E$7+$J$7)*($E$8))) ->  | H59: =IF(G59="","",IF('Staff '!G57="Insufficient","Staffing",$E$8-SLA($B59,H$12,$E$8*2,$E$7+$J$7)*($E$8))) ->  | I59: =IF(H59="","",IF('Staff '!H57="Insufficient","Staffing",$E$8-SLA($B59,I$12,$E$8*2,$E$7+$J$7)*($E$8))) ->  | J59: =IF(I59="","",IF('Staff '!I57="Insufficient","Staffing",$E$8-SLA($B59,J$12,$E$8*2,$E$7+$J$7)*($E$8))) ->  | K59: =IF(J59="","",IF('Staff '!J57="Insufficient","Staffing",$E$8-SLA($B59,K$12,$E$8*2,$E$7+$J$7)*($E$8))) ->  | L59: =IF(K59="","",IF('Staff '!K57="Insufficient","Staffing",$E$8-SLA($B59,L$12,$E$8*2,$E$7+$J$7)*($E$8))) ->  | M59: =IF(L59="","",IF('Staff '!L57="Insufficient","Staffing",$E$8-SLA($B59,M$12,$E$8*2,$E$7+$J$7)*($E$8))) ->  | N59: =IF(M59="","",IF('Staff '!M57="Insufficient","Staffing",$E$8-SLA($B59,N$12,$E$8*2,$E$7+$J$7)*($E$8))) ->  | O59: =IF(N59="","",IF('Staff '!N57="Insufficient","Staffing",$E$8-SLA($B59,O$12,$E$8*2,$E$7+$J$7)*($E$8))) ->  | P59: =IF(O59="","",IF('Staff '!O57="Insufficient","Staffing",$E$8-SLA($B59,P$12,$E$8*2,$E$7+$J$7)*($E$8))) ->  | Q59: =IF(P59="","",IF('Staff '!P57="Insufficient","Staffing",$E$8-SLA($B59,Q$12,$E$8*2,$E$7+$J$7)*($E$8))) ->  | R59: =IF(Q59="","",IF('Staff '!Q57="Insufficient","Staffing",$E$8-SLA($B59,R$12,$E$8*2,$E$7+$J$7)*($E$8))) ->  | S59: =IF(R59="","",IF('Staff '!R57="Insufficient","Staffing",$E$8-SLA($B59,S$12,$E$8*2,$E$7+$J$7)*($E$8))) ->  | T59: =IF(S59="","",IF('Staff '!S57="Insufficient","Staffing",$E$8-SLA($B59,T$12,$E$8*2,$E$7+$J$7)*($E$8))) ->  | U59: =IF(T59="","",IF('Staff '!T57="Insufficient","Staffing",$E$8-SLA($B59,U$12,$E$8*2,$E$7+$J$7)*($E$8))) -> 
B60: ='Staff '!B58 ->  | C60: =IF('Staff '!H58="","",SLA($B60,$J$8,$E$8*2,$E$7+$J$7)) ->  | D60: =IF($B60="","",IF('Staff '!C58="Insufficient","Staffing",$E$8-SLA($B60,D$12,$E$8*2,$E$7+$J$7)*($E$8))) ->  | E60: =IF('Staff '!H58="","",IF('Staff '!D58="Insufficient","Staffing",$E$8-SLA($B60,E$12,$E$8*2,$E$7+$J$7)*($E$8))) ->  | F60: =IF(E60="","",IF('Staff '!E58="Insufficient","Staffing",$E$8-SLA($B60,F$12,$E$8*2,$E$7+$J$7)*($E$8))) ->  | G60: =IF(F60="","",IF('Staff '!F58="Insufficient","Staffing",$E$8-SLA($B60,G$12,$E$8*2,$E$7+$J$7)*($E$8))) ->  | H60: =IF(G60="","",IF('Staff '!G58="Insufficient","Staffing",$E$8-SLA($B60,H$12,$E$8*2,$E$7+$J$7)*($E$8))) ->  | I60: =IF(H60="","",IF('Staff '!H58="Insufficient","Staffing",$E$8-SLA($B60,I$12,$E$8*2,$E$7+$J$7)*($E$8))) ->  | J60: =IF(I60="","",IF('Staff '!I58="Insufficient","Staffing",$E$8-SLA($B60,J$12,$E$8*2,$E$7+$J$7)*($E$8))) ->  | K60: =IF(J60="","",IF('Staff '!J58="Insufficient","Staffing",$E$8-SLA($B60,K$12,$E$8*2,$E$7+$J$7)*($E$8))) ->  | L60: =IF(K60="","",IF('Staff '!K58="Insufficient","Staffing",$E$8-SLA($B60,L$12,$E$8*2,$E$7+$J$7)*($E$8))) ->  | M60: =IF(L60="","",IF('Staff '!L58="Insufficient","Staffing",$E$8-SLA($B60,M$12,$E$8*2,$E$7+$J$7)*($E$8))) ->  | N60: =IF(M60="","",IF('Staff '!M58="Insufficient","Staffing",$E$8-SLA($B60,N$12,$E$8*2,$E$7+$J$7)*($E$8))) ->  | O60: =IF(N60="","",IF('Staff '!N58="Insufficient","Staffing",$E$8-SLA($B60,O$12,$E$8*2,$E$7+$J$7)*($E$8))) ->  | P60: =IF(O60="","",IF('Staff '!O58="Insufficient","Staffing",$E$8-SLA($B60,P$12,$E$8*2,$E$7+$J$7)*($E$8))) ->  | Q60: =IF(P60="","",IF('Staff '!P58="Insufficient","Staffing",$E$8-SLA($B60,Q$12,$E$8*2,$E$7+$J$7)*($E$8))) ->  | R60: =IF(Q60="","",IF('Staff '!Q58="Insufficient","Staffing",$E$8-SLA($B60,R$12,$E$8*2,$E$7+$J$7)*($E$8))) ->  | S60: =IF(R60="","",IF('Staff '!R58="Insufficient","Staffing",$E$8-SLA($B60,S$12,$E$8*2,$E$7+$J$7)*($E$8))) ->  | T60: =IF(S60="","",IF('Staff '!S58="Insufficient","Staffing",$E$8-SLA($B60,T$12,$E$8*2,$E$7+$J$7)*($E$8))) ->  | U60: =IF(T60="","",IF('Staff '!T58="Insufficient","Staffing",$E$8-SLA($B60,U$12,$E$8*2,$E$7+$J$7)*($E$8))) -> 
B61: ='Staff '!B59 ->  | C61: =IF('Staff '!H59="","",SLA($B61,$J$8,$E$8*2,$E$7+$J$7)) ->  | D61: =IF($B61="","",IF('Staff '!C59="Insufficient","Staffing",$E$8-SLA($B61,D$12,$E$8*2,$E$7+$J$7)*($E$8))) ->  | E61: =IF('Staff '!H59="","",IF('Staff '!D59="Insufficient","Staffing",$E$8-SLA($B61,E$12,$E$8*2,$E$7+$J$7)*($E$8))) ->  | F61: =IF(E61="","",IF('Staff '!E59="Insufficient","Staffing",$E$8-SLA($B61,F$12,$E$8*2,$E$7+$J$7)*($E$8))) ->  | G61: =IF(F61="","",IF('Staff '!F59="Insufficient","Staffing",$E$8-SLA($B61,G$12,$E$8*2,$E$7+$J$7)*($E$8))) ->  | H61: =IF(G61="","",IF('Staff '!G59="Insufficient","Staffing",$E$8-SLA($B61,H$12,$E$8*2,$E$7+$J$7)*($E$8))) ->  | I61: =IF(H61="","",IF('Staff '!H59="Insufficient","Staffing",$E$8-SLA($B61,I$12,$E$8*2,$E$7+$J$7)*($E$8))) ->  | J61: =IF(I61="","",IF('Staff '!I59="Insufficient","Staffing",$E$8-SLA($B61,J$12,$E$8*2,$E$7+$J$7)*($E$8))) ->  | K61: =IF(J61="","",IF('Staff '!J59="Insufficient","Staffing",$E$8-SLA($B61,K$12,$E$8*2,$E$7+$J$7)*($E$8))) ->  | L61: =IF(K61="","",IF('Staff '!K59="Insufficient","Staffing",$E$8-SLA($B61,L$12,$E$8*2,$E$7+$J$7)*($E$8))) ->  | M61: =IF(L61="","",IF('Staff '!L59="Insufficient","Staffing",$E$8-SLA($B61,M$12,$E$8*2,$E$7+$J$7)*($E$8))) ->  | N61: =IF(M61="","",IF('Staff '!M59="Insufficient","Staffing",$E$8-SLA($B61,N$12,$E$8*2,$E$7+$J$7)*($E$8))) ->  | O61: =IF(N61="","",IF('Staff '!N59="Insufficient","Staffing",$E$8-SLA($B61,O$12,$E$8*2,$E$7+$J$7)*($E$8))) ->  | P61: =IF(O61="","",IF('Staff '!O59="Insufficient","Staffing",$E$8-SLA($B61,P$12,$E$8*2,$E$7+$J$7)*($E$8))) ->  | Q61: =IF(P61="","",IF('Staff '!P59="Insufficient","Staffing",$E$8-SLA($B61,Q$12,$E$8*2,$E$7+$J$7)*($E$8))) ->  | R61: =IF(Q61="","",IF('Staff '!Q59="Insufficient","Staffing",$E$8-SLA($B61,R$12,$E$8*2,$E$7+$J$7)*($E$8))) ->  | S61: =IF(R61="","",IF('Staff '!R59="Insufficient","Staffing",$E$8-SLA($B61,S$12,$E$8*2,$E$7+$J$7)*($E$8))) ->  | T61: =IF(S61="","",IF('Staff '!S59="Insufficient","Staffing",$E$8-SLA($B61,T$12,$E$8*2,$E$7+$J$7)*($E$8))) ->  | U61: =IF(T61="","",IF('Staff '!T59="Insufficient","Staffing",$E$8-SLA($B61,U$12,$E$8*2,$E$7+$J$7)*($E$8))) -> 
B62: ='Staff '!B60 ->  | C62: =IF('Staff '!H60="","",SLA($B62,$J$8,$E$8*2,$E$7+$J$7)) ->  | D62: =IF($B62="","",IF('Staff '!C60="Insufficient","Staffing",$E$8-SLA($B62,D$12,$E$8*2,$E$7+$J$7)*($E$8))) ->  | E62: =IF('Staff '!H60="","",IF('Staff '!D60="Insufficient","Staffing",$E$8-SLA($B62,E$12,$E$8*2,$E$7+$J$7)*($E$8))) ->  | F62: =IF(E62="","",IF('Staff '!E60="Insufficient","Staffing",$E$8-SLA($B62,F$12,$E$8*2,$E$7+$J$7)*($E$8))) ->  | G62: =IF(F62="","",IF('Staff '!F60="Insufficient","Staffing",$E$8-SLA($B62,G$12,$E$8*2,$E$7+$J$7)*($E$8))) ->  | H62: =IF(G62="","",IF('Staff '!G60="Insufficient","Staffing",$E$8-SLA($B62,H$12,$E$8*2,$E$7+$J$7)*($E$8))) ->  | I62: =IF(H62="","",IF('Staff '!H60="Insufficient","Staffing",$E$8-SLA($B62,I$12,$E$8*2,$E$7+$J$7)*($E$8))) ->  | J62: =IF(I62="","",IF('Staff '!I60="Insufficient","Staffing",$E$8-SLA($B62,J$12,$E$8*2,$E$7+$J$7)*($E$8))) ->  | K62: =IF(J62="","",IF('Staff '!J60="Insufficient","Staffing",$E$8-SLA($B62,K$12,$E$8*2,$E$7+$J$7)*($E$8))) ->  | L62: =IF(K62="","",IF('Staff '!K60="Insufficient","Staffing",$E$8-SLA($B62,L$12,$E$8*2,$E$7+$J$7)*($E$8))) ->  | M62: =IF(L62="","",IF('Staff '!L60="Insufficient","Staffing",$E$8-SLA($B62,M$12,$E$8*2,$E$7+$J$7)*($E$8))) ->  | N62: =IF(M62="","",IF('Staff '!M60="Insufficient","Staffing",$E$8-SLA($B62,N$12,$E$8*2,$E$7+$J$7)*($E$8))) ->  | O62: =IF(N62="","",IF('Staff '!N60="Insufficient","Staffing",$E$8-SLA($B62,O$12,$E$8*2,$E$7+$J$7)*($E$8))) ->  | P62: =IF(O62="","",IF('Staff '!O60="Insufficient","Staffing",$E$8-SLA($B62,P$12,$E$8*2,$E$7+$J$7)*($E$8))) ->  | Q62: =IF(P62="","",IF('Staff '!P60="Insufficient","Staffing",$E$8-SLA($B62,Q$12,$E$8*2,$E$7+$J$7)*($E$8))) ->  | R62: =IF(Q62="","",IF('Staff '!Q60="Insufficient","Staffing",$E$8-SLA($B62,R$12,$E$8*2,$E$7+$J$7)*($E$8))) ->  | S62: =IF(R62="","",IF('Staff '!R60="Insufficient","Staffing",$E$8-SLA($B62,S$12,$E$8*2,$E$7+$J$7)*($E$8))) ->  | T62: =IF(S62="","",IF('Staff '!S60="Insufficient","Staffing",$E$8-SLA($B62,T$12,$E$8*2,$E$7+$J$7)*($E$8))) ->  | U62: =IF(T62="","",IF('Staff '!T60="Insufficient","Staffing",$E$8-SLA($B62,U$12,$E$8*2,$E$7+$J$7)*($E$8))) -> 
B63: ='Staff '!B61 ->  | C63: =IF('Staff '!H61="","",SLA($B63,$J$8,$E$8*2,$E$7+$J$7)) ->  | D63: =IF($B63="","",IF('Staff '!C61="Insufficient","Staffing",$E$8-SLA($B63,D$12,$E$8*2,$E$7+$J$7)*($E$8))) ->  | E63: =IF('Staff '!H61="","",IF('Staff '!D61="Insufficient","Staffing",$E$8-SLA($B63,E$12,$E$8*2,$E$7+$J$7)*($E$8))) ->  | F63: =IF(E63="","",IF('Staff '!E61="Insufficient","Staffing",$E$8-SLA($B63,F$12,$E$8*2,$E$7+$J$7)*($E$8))) ->  | G63: =IF(F63="","",IF('Staff '!F61="Insufficient","Staffing",$E$8-SLA($B63,G$12,$E$8*2,$E$7+$J$7)*($E$8))) ->  | H63: =IF(G63="","",IF('Staff '!G61="Insufficient","Staffing",$E$8-SLA($B63,H$12,$E$8*2,$E$7+$J$7)*($E$8))) ->  | I63: =IF(H63="","",IF('Staff '!H61="Insufficient","Staffing",$E$8-SLA($B63,I$12,$E$8*2,$E$7+$J$7)*($E$8))) ->  | J63: =IF(I63="","",IF('Staff '!I61="Insufficient","Staffing",$E$8-SLA($B63,J$12,$E$8*2,$E$7+$J$7)*($E$8))) ->  | K63: =IF(J63="","",IF('Staff '!J61="Insufficient","Staffing",$E$8-SLA($B63,K$12,$E$8*2,$E$7+$J$7)*($E$8))) ->  | L63: =IF(K63="","",IF('Staff '!K61="Insufficient","Staffing",$E$8-SLA($B63,L$12,$E$8*2,$E$7+$J$7)*($E$8))) ->  | M63: =IF(L63="","",IF('Staff '!L61="Insufficient","Staffing",$E$8-SLA($B63,M$12,$E$8*2,$E$7+$J$7)*($E$8))) ->  | N63: =IF(M63="","",IF('Staff '!M61="Insufficient","Staffing",$E$8-SLA($B63,N$12,$E$8*2,$E$7+$J$7)*($E$8))) ->  | O63: =IF(N63="","",IF('Staff '!N61="Insufficient","Staffing",$E$8-SLA($B63,O$12,$E$8*2,$E$7+$J$7)*($E$8))) ->  | P63: =IF(O63="","",IF('Staff '!O61="Insufficient","Staffing",$E$8-SLA($B63,P$12,$E$8*2,$E$7+$J$7)*($E$8))) ->  | Q63: =IF(P63="","",IF('Staff '!P61="Insufficient","Staffing",$E$8-SLA($B63,Q$12,$E$8*2,$E$7+$J$7)*($E$8))) ->  | R63: =IF(Q63="","",IF('Staff '!Q61="Insufficient","Staffing",$E$8-SLA($B63,R$12,$E$8*2,$E$7+$J$7)*($E$8))) ->  | S63: =IF(R63="","",IF('Staff '!R61="Insufficient","Staffing",$E$8-SLA($B63,S$12,$E$8*2,$E$7+$J$7)*($E$8))) ->  | T63: =IF(S63="","",IF('Staff '!S61="Insufficient","Staffing",$E$8-SLA($B63,T$12,$E$8*2,$E$7+$J$7)*($E$8))) ->  | U63: =IF(T63="","",IF('Staff '!T61="Insufficient","Staffing",$E$8-SLA($B63,U$12,$E$8*2,$E$7+$J$7)*($E$8))) -> 
B64: ='Staff '!B62 ->  | C64: =IF('Staff '!H62="","",SLA($B64,$J$8,$E$8*2,$E$7+$J$7)) ->  | D64: =IF($B64="","",IF('Staff '!C62="Insufficient","Staffing",$E$8-SLA($B64,D$12,$E$8*2,$E$7+$J$7)*($E$8))) ->  | E64: =IF('Staff '!H62="","",IF('Staff '!D62="Insufficient","Staffing",$E$8-SLA($B64,E$12,$E$8*2,$E$7+$J$7)*($E$8))) ->  | F64: =IF(E64="","",IF('Staff '!E62="Insufficient","Staffing",$E$8-SLA($B64,F$12,$E$8*2,$E$7+$J$7)*($E$8))) ->  | G64: =IF(F64="","",IF('Staff '!F62="Insufficient","Staffing",$E$8-SLA($B64,G$12,$E$8*2,$E$7+$J$7)*($E$8))) ->  | H64: =IF(G64="","",IF('Staff '!G62="Insufficient","Staffing",$E$8-SLA($B64,H$12,$E$8*2,$E$7+$J$7)*($E$8))) ->  | I64: =IF(H64="","",IF('Staff '!H62="Insufficient","Staffing",$E$8-SLA($B64,I$12,$E$8*2,$E$7+$J$7)*($E$8))) ->  | J64: =IF(I64="","",IF('Staff '!I62="Insufficient","Staffing",$E$8-SLA($B64,J$12,$E$8*2,$E$7+$J$7)*($E$8))) ->  | K64: =IF(J64="","",IF('Staff '!J62="Insufficient","Staffing",$E$8-SLA($B64,K$12,$E$8*2,$E$7+$J$7)*($E$8))) ->  | L64: =IF(K64="","",IF('Staff '!K62="Insufficient","Staffing",$E$8-SLA($B64,L$12,$E$8*2,$E$7+$J$7)*($E$8))) ->  | M64: =IF(L64="","",IF('Staff '!L62="Insufficient","Staffing",$E$8-SLA($B64,M$12,$E$8*2,$E$7+$J$7)*($E$8))) ->  | N64: =IF(M64="","",IF('Staff '!M62="Insufficient","Staffing",$E$8-SLA($B64,N$12,$E$8*2,$E$7+$J$7)*($E$8))) ->  | O64: =IF(N64="","",IF('Staff '!N62="Insufficient","Staffing",$E$8-SLA($B64,O$12,$E$8*2,$E$7+$J$7)*($E$8))) ->  | P64: =IF(O64="","",IF('Staff '!O62="Insufficient","Staffing",$E$8-SLA($B64,P$12,$E$8*2,$E$7+$J$7)*($E$8))) ->  | Q64: =IF(P64="","",IF('Staff '!P62="Insufficient","Staffing",$E$8-SLA($B64,Q$12,$E$8*2,$E$7+$J$7)*($E$8))) ->  | R64: =IF(Q64="","",IF('Staff '!Q62="Insufficient","Staffing",$E$8-SLA($B64,R$12,$E$8*2,$E$7+$J$7)*($E$8))) ->  | S64: =IF(R64="","",IF('Staff '!R62="Insufficient","Staffing",$E$8-SLA($B64,S$12,$E$8*2,$E$7+$J$7)*($E$8))) ->  | T64: =IF(S64="","",IF('Staff '!S62="Insufficient","Staffing",$E$8-SLA($B64,T$12,$E$8*2,$E$7+$J$7)*($E$8))) ->  | U64: =IF(T64="","",IF('Staff '!T62="Insufficient","Staffing",$E$8-SLA($B64,U$12,$E$8*2,$E$7+$J$7)*($E$8))) -> 
B65: ='Staff '!B63 ->  | C65: =IF('Staff '!H63="","",SLA($B65,$J$8,$E$8*2,$E$7+$J$7)) ->  | D65: =IF($B65="","",IF('Staff '!C63="Insufficient","Staffing",$E$8-SLA($B65,D$12,$E$8*2,$E$7+$J$7)*($E$8))) ->  | E65: =IF('Staff '!H63="","",IF('Staff '!D63="Insufficient","Staffing",$E$8-SLA($B65,E$12,$E$8*2,$E$7+$J$7)*($E$8))) ->  | F65: =IF(E65="","",IF('Staff '!E63="Insufficient","Staffing",$E$8-SLA($B65,F$12,$E$8*2,$E$7+$J$7)*($E$8))) ->  | G65: =IF(F65="","",IF('Staff '!F63="Insufficient","Staffing",$E$8-SLA($B65,G$12,$E$8*2,$E$7+$J$7)*($E$8))) ->  | H65: =IF(G65="","",IF('Staff '!G63="Insufficient","Staffing",$E$8-SLA($B65,H$12,$E$8*2,$E$7+$J$7)*($E$8))) ->  | I65: =IF(H65="","",IF('Staff '!H63="Insufficient","Staffing",$E$8-SLA($B65,I$12,$E$8*2,$E$7+$J$7)*($E$8))) ->  | J65: =IF(I65="","",IF('Staff '!I63="Insufficient","Staffing",$E$8-SLA($B65,J$12,$E$8*2,$E$7+$J$7)*($E$8))) ->  | K65: =IF(J65="","",IF('Staff '!J63="Insufficient","Staffing",$E$8-SLA($B65,K$12,$E$8*2,$E$7+$J$7)*($E$8))) ->  | L65: =IF(K65="","",IF('Staff '!K63="Insufficient","Staffing",$E$8-SLA($B65,L$12,$E$8*2,$E$7+$J$7)*($E$8))) ->  | M65: =IF(L65="","",IF('Staff '!L63="Insufficient","Staffing",$E$8-SLA($B65,M$12,$E$8*2,$E$7+$J$7)*($E$8))) ->  | N65: =IF(M65="","",IF('Staff '!M63="Insufficient","Staffing",$E$8-SLA($B65,N$12,$E$8*2,$E$7+$J$7)*($E$8))) ->  | O65: =IF(N65="","",IF('Staff '!N63="Insufficient","Staffing",$E$8-SLA($B65,O$12,$E$8*2,$E$7+$J$7)*($E$8))) ->  | P65: =IF(O65="","",IF('Staff '!O63="Insufficient","Staffing",$E$8-SLA($B65,P$12,$E$8*2,$E$7+$J$7)*($E$8))) ->  | Q65: =IF(P65="","",IF('Staff '!P63="Insufficient","Staffing",$E$8-SLA($B65,Q$12,$E$8*2,$E$7+$J$7)*($E$8))) ->  | R65: =IF(Q65="","",IF('Staff '!Q63="Insufficient","Staffing",$E$8-SLA($B65,R$12,$E$8*2,$E$7+$J$7)*($E$8))) ->  | S65: =IF(R65="","",IF('Staff '!R63="Insufficient","Staffing",$E$8-SLA($B65,S$12,$E$8*2,$E$7+$J$7)*($E$8))) ->  | T65: =IF(S65="","",IF('Staff '!S63="Insufficient","Staffing",$E$8-SLA($B65,T$12,$E$8*2,$E$7+$J$7)*($E$8))) ->  | U65: =IF(T65="","",IF('Staff '!T63="Insufficient","Staffing",$E$8-SLA($B65,U$12,$E$8*2,$E$7+$J$7)*($E$8))) -> 
B66: ='Staff '!B64 ->  | C66: =IF('Staff '!H64="","",SLA($B66,$J$8,$E$8*2,$E$7+$J$7)) ->  | D66: =IF($B66="","",IF('Staff '!C64="Insufficient","Staffing",$E$8-SLA($B66,D$12,$E$8*2,$E$7+$J$7)*($E$8))) ->  | E66: =IF('Staff '!H64="","",IF('Staff '!D64="Insufficient","Staffing",$E$8-SLA($B66,E$12,$E$8*2,$E$7+$J$7)*($E$8))) ->  | F66: =IF(E66="","",IF('Staff '!E64="Insufficient","Staffing",$E$8-SLA($B66,F$12,$E$8*2,$E$7+$J$7)*($E$8))) ->  | G66: =IF(F66="","",IF('Staff '!F64="Insufficient","Staffing",$E$8-SLA($B66,G$12,$E$8*2,$E$7+$J$7)*($E$8))) ->  | H66: =IF(G66="","",IF('Staff '!G64="Insufficient","Staffing",$E$8-SLA($B66,H$12,$E$8*2,$E$7+$J$7)*($E$8))) ->  | I66: =IF(H66="","",IF('Staff '!H64="Insufficient","Staffing",$E$8-SLA($B66,I$12,$E$8*2,$E$7+$J$7)*($E$8))) ->  | J66: =IF(I66="","",IF('Staff '!I64="Insufficient","Staffing",$E$8-SLA($B66,J$12,$E$8*2,$E$7+$J$7)*($E$8))) ->  | K66: =IF(J66="","",IF('Staff '!J64="Insufficient","Staffing",$E$8-SLA($B66,K$12,$E$8*2,$E$7+$J$7)*($E$8))) ->  | L66: =IF(K66="","",IF('Staff '!K64="Insufficient","Staffing",$E$8-SLA($B66,L$12,$E$8*2,$E$7+$J$7)*($E$8))) ->  | M66: =IF(L66="","",IF('Staff '!L64="Insufficient","Staffing",$E$8-SLA($B66,M$12,$E$8*2,$E$7+$J$7)*($E$8))) ->  | N66: =IF(M66="","",IF('Staff '!M64="Insufficient","Staffing",$E$8-SLA($B66,N$12,$E$8*2,$E$7+$J$7)*($E$8))) ->  | O66: =IF(N66="","",IF('Staff '!N64="Insufficient","Staffing",$E$8-SLA($B66,O$12,$E$8*2,$E$7+$J$7)*($E$8))) ->  | P66: =IF(O66="","",IF('Staff '!O64="Insufficient","Staffing",$E$8-SLA($B66,P$12,$E$8*2,$E$7+$J$7)*($E$8))) ->  | Q66: =IF(P66="","",IF('Staff '!P64="Insufficient","Staffing",$E$8-SLA($B66,Q$12,$E$8*2,$E$7+$J$7)*($E$8))) ->  | R66: =IF(Q66="","",IF('Staff '!Q64="Insufficient","Staffing",$E$8-SLA($B66,R$12,$E$8*2,$E$7+$J$7)*($E$8))) ->  | S66: =IF(R66="","",IF('Staff '!R64="Insufficient","Staffing",$E$8-SLA($B66,S$12,$E$8*2,$E$7+$J$7)*($E$8))) ->  | T66: =IF(S66="","",IF('Staff '!S64="Insufficient","Staffing",$E$8-SLA($B66,T$12,$E$8*2,$E$7+$J$7)*($E$8))) ->  | U66: =IF(T66="","",IF('Staff '!T64="Insufficient","Staffing",$E$8-SLA($B66,U$12,$E$8*2,$E$7+$J$7)*($E$8))) -> 
B67: ='Staff '!B65 ->  | C67: =IF('Staff '!H65="","",SLA($B67,$J$8,$E$8*2,$E$7+$J$7)) ->  | D67: =IF($B67="","",IF('Staff '!C65="Insufficient","Staffing",$E$8-SLA($B67,D$12,$E$8*2,$E$7+$J$7)*($E$8))) ->  | E67: =IF('Staff '!H65="","",IF('Staff '!D65="Insufficient","Staffing",$E$8-SLA($B67,E$12,$E$8*2,$E$7+$J$7)*($E$8))) ->  | F67: =IF(E67="","",IF('Staff '!E65="Insufficient","Staffing",$E$8-SLA($B67,F$12,$E$8*2,$E$7+$J$7)*($E$8))) ->  | G67: =IF(F67="","",IF('Staff '!F65="Insufficient","Staffing",$E$8-SLA($B67,G$12,$E$8*2,$E$7+$J$7)*($E$8))) ->  | H67: =IF(G67="","",IF('Staff '!G65="Insufficient","Staffing",$E$8-SLA($B67,H$12,$E$8*2,$E$7+$J$7)*($E$8))) ->  | I67: =IF(H67="","",IF('Staff '!H65="Insufficient","Staffing",$E$8-SLA($B67,I$12,$E$8*2,$E$7+$J$7)*($E$8))) ->  | J67: =IF(I67="","",IF('Staff '!I65="Insufficient","Staffing",$E$8-SLA($B67,J$12,$E$8*2,$E$7+$J$7)*($E$8))) ->  | K67: =IF(J67="","",IF('Staff '!J65="Insufficient","Staffing",$E$8-SLA($B67,K$12,$E$8*2,$E$7+$J$7)*($E$8))) ->  | L67: =IF(K67="","",IF('Staff '!K65="Insufficient","Staffing",$E$8-SLA($B67,L$12,$E$8*2,$E$7+$J$7)*($E$8))) ->  | M67: =IF(L67="","",IF('Staff '!L65="Insufficient","Staffing",$E$8-SLA($B67,M$12,$E$8*2,$E$7+$J$7)*($E$8))) ->  | N67: =IF(M67="","",IF('Staff '!M65="Insufficient","Staffing",$E$8-SLA($B67,N$12,$E$8*2,$E$7+$J$7)*($E$8))) ->  | O67: =IF(N67="","",IF('Staff '!N65="Insufficient","Staffing",$E$8-SLA($B67,O$12,$E$8*2,$E$7+$J$7)*($E$8))) ->  | P67: =IF(O67="","",IF('Staff '!O65="Insufficient","Staffing",$E$8-SLA($B67,P$12,$E$8*2,$E$7+$J$7)*($E$8))) ->  | Q67: =IF(P67="","",IF('Staff '!P65="Insufficient","Staffing",$E$8-SLA($B67,Q$12,$E$8*2,$E$7+$J$7)*($E$8))) ->  | R67: =IF(Q67="","",IF('Staff '!Q65="Insufficient","Staffing",$E$8-SLA($B67,R$12,$E$8*2,$E$7+$J$7)*($E$8))) ->  | S67: =IF(R67="","",IF('Staff '!R65="Insufficient","Staffing",$E$8-SLA($B67,S$12,$E$8*2,$E$7+$J$7)*($E$8))) ->  | T67: =IF(S67="","",IF('Staff '!S65="Insufficient","Staffing",$E$8-SLA($B67,T$12,$E$8*2,$E$7+$J$7)*($E$8))) ->  | U67: =IF(T67="","",IF('Staff '!T65="Insufficient","Staffing",$E$8-SLA($B67,U$12,$E$8*2,$E$7+$J$7)*($E$8))) -> 
B68: ='Staff '!B66 ->  | C68: =IF('Staff '!H66="","",SLA($B68,$J$8,$E$8*2,$E$7+$J$7)) ->  | D68: =IF($B68="","",IF('Staff '!C66="Insufficient","Staffing",$E$8-SLA($B68,D$12,$E$8*2,$E$7+$J$7)*($E$8))) ->  | E68: =IF('Staff '!H66="","",IF('Staff '!D66="Insufficient","Staffing",$E$8-SLA($B68,E$12,$E$8*2,$E$7+$J$7)*($E$8))) ->  | F68: =IF(E68="","",IF('Staff '!E66="Insufficient","Staffing",$E$8-SLA($B68,F$12,$E$8*2,$E$7+$J$7)*($E$8))) ->  | G68: =IF(F68="","",IF('Staff '!F66="Insufficient","Staffing",$E$8-SLA($B68,G$12,$E$8*2,$E$7+$J$7)*($E$8))) ->  | H68: =IF(G68="","",IF('Staff '!G66="Insufficient","Staffing",$E$8-SLA($B68,H$12,$E$8*2,$E$7+$J$7)*($E$8))) ->  | I68: =IF(H68="","",IF('Staff '!H66="Insufficient","Staffing",$E$8-SLA($B68,I$12,$E$8*2,$E$7+$J$7)*($E$8))) ->  | J68: =IF(I68="","",IF('Staff '!I66="Insufficient","Staffing",$E$8-SLA($B68,J$12,$E$8*2,$E$7+$J$7)*($E$8))) ->  | K68: =IF(J68="","",IF('Staff '!J66="Insufficient","Staffing",$E$8-SLA($B68,K$12,$E$8*2,$E$7+$J$7)*($E$8))) ->  | L68: =IF(K68="","",IF('Staff '!K66="Insufficient","Staffing",$E$8-SLA($B68,L$12,$E$8*2,$E$7+$J$7)*($E$8))) ->  | M68: =IF(L68="","",IF('Staff '!L66="Insufficient","Staffing",$E$8-SLA($B68,M$12,$E$8*2,$E$7+$J$7)*($E$8))) ->  | N68: =IF(M68="","",IF('Staff '!M66="Insufficient","Staffing",$E$8-SLA($B68,N$12,$E$8*2,$E$7+$J$7)*($E$8))) ->  | O68: =IF(N68="","",IF('Staff '!N66="Insufficient","Staffing",$E$8-SLA($B68,O$12,$E$8*2,$E$7+$J$7)*($E$8))) ->  | P68: =IF(O68="","",IF('Staff '!O66="Insufficient","Staffing",$E$8-SLA($B68,P$12,$E$8*2,$E$7+$J$7)*($E$8))) ->  | Q68: =IF(P68="","",IF('Staff '!P66="Insufficient","Staffing",$E$8-SLA($B68,Q$12,$E$8*2,$E$7+$J$7)*($E$8))) ->  | R68: =IF(Q68="","",IF('Staff '!Q66="Insufficient","Staffing",$E$8-SLA($B68,R$12,$E$8*2,$E$7+$J$7)*($E$8))) ->  | S68: =IF(R68="","",IF('Staff '!R66="Insufficient","Staffing",$E$8-SLA($B68,S$12,$E$8*2,$E$7+$J$7)*($E$8))) ->  | T68: =IF(S68="","",IF('Staff '!S66="Insufficient","Staffing",$E$8-SLA($B68,T$12,$E$8*2,$E$7+$J$7)*($E$8))) ->  | U68: =IF(T68="","",IF('Staff '!T66="Insufficient","Staffing",$E$8-SLA($B68,U$12,$E$8*2,$E$7+$J$7)*($E$8))) -> 
B69: ='Staff '!B67 ->  | C69: =IF('Staff '!H67="","",SLA($B69,$J$8,$E$8*2,$E$7+$J$7)) ->  | D69: =IF($B69="","",IF('Staff '!C67="Insufficient","Staffing",$E$8-SLA($B69,D$12,$E$8*2,$E$7+$J$7)*($E$8))) ->  | E69: =IF('Staff '!H67="","",IF('Staff '!D67="Insufficient","Staffing",$E$8-SLA($B69,E$12,$E$8*2,$E$7+$J$7)*($E$8))) ->  | F69: =IF(E69="","",IF('Staff '!E67="Insufficient","Staffing",$E$8-SLA($B69,F$12,$E$8*2,$E$7+$J$7)*($E$8))) ->  | G69: =IF(F69="","",IF('Staff '!F67="Insufficient","Staffing",$E$8-SLA($B69,G$12,$E$8*2,$E$7+$J$7)*($E$8))) ->  | H69: =IF(G69="","",IF('Staff '!G67="Insufficient","Staffing",$E$8-SLA($B69,H$12,$E$8*2,$E$7+$J$7)*($E$8))) ->  | I69: =IF(H69="","",IF('Staff '!H67="Insufficient","Staffing",$E$8-SLA($B69,I$12,$E$8*2,$E$7+$J$7)*($E$8))) ->  | J69: =IF(I69="","",IF('Staff '!I67="Insufficient","Staffing",$E$8-SLA($B69,J$12,$E$8*2,$E$7+$J$7)*($E$8))) ->  | K69: =IF(J69="","",IF('Staff '!J67="Insufficient","Staffing",$E$8-SLA($B69,K$12,$E$8*2,$E$7+$J$7)*($E$8))) ->  | L69: =IF(K69="","",IF('Staff '!K67="Insufficient","Staffing",$E$8-SLA($B69,L$12,$E$8*2,$E$7+$J$7)*($E$8))) ->  | M69: =IF(L69="","",IF('Staff '!L67="Insufficient","Staffing",$E$8-SLA($B69,M$12,$E$8*2,$E$7+$J$7)*($E$8))) ->  | N69: =IF(M69="","",IF('Staff '!M67="Insufficient","Staffing",$E$8-SLA($B69,N$12,$E$8*2,$E$7+$J$7)*($E$8))) ->  | O69: =IF(N69="","",IF('Staff '!N67="Insufficient","Staffing",$E$8-SLA($B69,O$12,$E$8*2,$E$7+$J$7)*($E$8))) ->  | P69: =IF(O69="","",IF('Staff '!O67="Insufficient","Staffing",$E$8-SLA($B69,P$12,$E$8*2,$E$7+$J$7)*($E$8))) ->  | Q69: =IF(P69="","",IF('Staff '!P67="Insufficient","Staffing",$E$8-SLA($B69,Q$12,$E$8*2,$E$7+$J$7)*($E$8))) ->  | R69: =IF(Q69="","",IF('Staff '!Q67="Insufficient","Staffing",$E$8-SLA($B69,R$12,$E$8*2,$E$7+$J$7)*($E$8))) ->  | S69: =IF(R69="","",IF('Staff '!R67="Insufficient","Staffing",$E$8-SLA($B69,S$12,$E$8*2,$E$7+$J$7)*($E$8))) ->  | T69: =IF(S69="","",IF('Staff '!S67="Insufficient","Staffing",$E$8-SLA($B69,T$12,$E$8*2,$E$7+$J$7)*($E$8))) ->  | U69: =IF(T69="","",IF('Staff '!T67="Insufficient","Staffing",$E$8-SLA($B69,U$12,$E$8*2,$E$7+$J$7)*($E$8))) -> 
B70: ='Staff '!B68 ->  | C70: =IF('Staff '!H68="","",SLA($B70,$J$8,$E$8*2,$E$7+$J$7)) ->  | D70: =IF($B70="","",IF('Staff '!C68="Insufficient","Staffing",$E$8-SLA($B70,D$12,$E$8*2,$E$7+$J$7)*($E$8))) ->  | E70: =IF('Staff '!H68="","",IF('Staff '!D68="Insufficient","Staffing",$E$8-SLA($B70,E$12,$E$8*2,$E$7+$J$7)*($E$8))) ->  | F70: =IF(E70="","",IF('Staff '!E68="Insufficient","Staffing",$E$8-SLA($B70,F$12,$E$8*2,$E$7+$J$7)*($E$8))) ->  | G70: =IF(F70="","",IF('Staff '!F68="Insufficient","Staffing",$E$8-SLA($B70,G$12,$E$8*2,$E$7+$J$7)*($E$8))) ->  | H70: =IF(G70="","",IF('Staff '!G68="Insufficient","Staffing",$E$8-SLA($B70,H$12,$E$8*2,$E$7+$J$7)*($E$8))) ->  | I70: =IF(H70="","",IF('Staff '!H68="Insufficient","Staffing",$E$8-SLA($B70,I$12,$E$8*2,$E$7+$J$7)*($E$8))) ->  | J70: =IF(I70="","",IF('Staff '!I68="Insufficient","Staffing",$E$8-SLA($B70,J$12,$E$8*2,$E$7+$J$7)*($E$8))) ->  | K70: =IF(J70="","",IF('Staff '!J68="Insufficient","Staffing",$E$8-SLA($B70,K$12,$E$8*2,$E$7+$J$7)*($E$8))) ->  | L70: =IF(K70="","",IF('Staff '!K68="Insufficient","Staffing",$E$8-SLA($B70,L$12,$E$8*2,$E$7+$J$7)*($E$8))) ->  | M70: =IF(L70="","",IF('Staff '!L68="Insufficient","Staffing",$E$8-SLA($B70,M$12,$E$8*2,$E$7+$J$7)*($E$8))) ->  | N70: =IF(M70="","",IF('Staff '!M68="Insufficient","Staffing",$E$8-SLA($B70,N$12,$E$8*2,$E$7+$J$7)*($E$8))) ->  | O70: =IF(N70="","",IF('Staff '!N68="Insufficient","Staffing",$E$8-SLA($B70,O$12,$E$8*2,$E$7+$J$7)*($E$8))) ->  | P70: =IF(O70="","",IF('Staff '!O68="Insufficient","Staffing",$E$8-SLA($B70,P$12,$E$8*2,$E$7+$J$7)*($E$8))) ->  | Q70: =IF(P70="","",IF('Staff '!P68="Insufficient","Staffing",$E$8-SLA($B70,Q$12,$E$8*2,$E$7+$J$7)*($E$8))) ->  | R70: =IF(Q70="","",IF('Staff '!Q68="Insufficient","Staffing",$E$8-SLA($B70,R$12,$E$8*2,$E$7+$J$7)*($E$8))) ->  | S70: =IF(R70="","",IF('Staff '!R68="Insufficient","Staffing",$E$8-SLA($B70,S$12,$E$8*2,$E$7+$J$7)*($E$8))) ->  | T70: =IF(S70="","",IF('Staff '!S68="Insufficient","Staffing",$E$8-SLA($B70,T$12,$E$8*2,$E$7+$J$7)*($E$8))) ->  | U70: =IF(T70="","",IF('Staff '!T68="Insufficient","Staffing",$E$8-SLA($B70,U$12,$E$8*2,$E$7+$J$7)*($E$8))) -> 
B71: ='Staff '!B69 ->  | C71: =IF('Staff '!H69="","",SLA($B71,$J$8,$E$8*2,$E$7+$J$7)) ->  | D71: =IF($B71="","",IF('Staff '!C69="Insufficient","Staffing",$E$8-SLA($B71,D$12,$E$8*2,$E$7+$J$7)*($E$8))) ->  | E71: =IF('Staff '!H69="","",IF('Staff '!D69="Insufficient","Staffing",$E$8-SLA($B71,E$12,$E$8*2,$E$7+$J$7)*($E$8))) ->  | F71: =IF(E71="","",IF('Staff '!E69="Insufficient","Staffing",$E$8-SLA($B71,F$12,$E$8*2,$E$7+$J$7)*($E$8))) ->  | G71: =IF(F71="","",IF('Staff '!F69="Insufficient","Staffing",$E$8-SLA($B71,G$12,$E$8*2,$E$7+$J$7)*($E$8))) ->  | H71: =IF(G71="","",IF('Staff '!G69="Insufficient","Staffing",$E$8-SLA($B71,H$12,$E$8*2,$E$7+$J$7)*($E$8))) ->  | I71: =IF(H71="","",IF('Staff '!H69="Insufficient","Staffing",$E$8-SLA($B71,I$12,$E$8*2,$E$7+$J$7)*($E$8))) ->  | J71: =IF(I71="","",IF('Staff '!I69="Insufficient","Staffing",$E$8-SLA($B71,J$12,$E$8*2,$E$7+$J$7)*($E$8))) ->  | K71: =IF(J71="","",IF('Staff '!J69="Insufficient","Staffing",$E$8-SLA($B71,K$12,$E$8*2,$E$7+$J$7)*($E$8))) ->  | L71: =IF(K71="","",IF('Staff '!K69="Insufficient","Staffing",$E$8-SLA($B71,L$12,$E$8*2,$E$7+$J$7)*($E$8))) ->  | M71: =IF(L71="","",IF('Staff '!L69="Insufficient","Staffing",$E$8-SLA($B71,M$12,$E$8*2,$E$7+$J$7)*($E$8))) ->  | N71: =IF(M71="","",IF('Staff '!M69="Insufficient","Staffing",$E$8-SLA($B71,N$12,$E$8*2,$E$7+$J$7)*($E$8))) ->  | O71: =IF(N71="","",IF('Staff '!N69="Insufficient","Staffing",$E$8-SLA($B71,O$12,$E$8*2,$E$7+$J$7)*($E$8))) ->  | P71: =IF(O71="","",IF('Staff '!O69="Insufficient","Staffing",$E$8-SLA($B71,P$12,$E$8*2,$E$7+$J$7)*($E$8))) ->  | Q71: =IF(P71="","",IF('Staff '!P69="Insufficient","Staffing",$E$8-SLA($B71,Q$12,$E$8*2,$E$7+$J$7)*($E$8))) ->  | R71: =IF(Q71="","",IF('Staff '!Q69="Insufficient","Staffing",$E$8-SLA($B71,R$12,$E$8*2,$E$7+$J$7)*($E$8))) ->  | S71: =IF(R71="","",IF('Staff '!R69="Insufficient","Staffing",$E$8-SLA($B71,S$12,$E$8*2,$E$7+$J$7)*($E$8))) ->  | T71: =IF(S71="","",IF('Staff '!S69="Insufficient","Staffing",$E$8-SLA($B71,T$12,$E$8*2,$E$7+$J$7)*($E$8))) ->  | U71: =IF(T71="","",IF('Staff '!T69="Insufficient","Staffing",$E$8-SLA($B71,U$12,$E$8*2,$E$7+$J$7)*($E$8))) -> 
B72: ='Staff '!B70 ->  | C72: =IF('Staff '!H70="","",SLA($B72,$J$8,$E$8*2,$E$7+$J$7)) ->  | D72: =IF($B72="","",IF('Staff '!C70="Insufficient","Staffing",$E$8-SLA($B72,D$12,$E$8*2,$E$7+$J$7)*($E$8))) ->  | E72: =IF('Staff '!H70="","",IF('Staff '!D70="Insufficient","Staffing",$E$8-SLA($B72,E$12,$E$8*2,$E$7+$J$7)*($E$8))) ->  | F72: =IF(E72="","",IF('Staff '!E70="Insufficient","Staffing",$E$8-SLA($B72,F$12,$E$8*2,$E$7+$J$7)*($E$8))) ->  | G72: =IF(F72="","",IF('Staff '!F70="Insufficient","Staffing",$E$8-SLA($B72,G$12,$E$8*2,$E$7+$J$7)*($E$8))) ->  | H72: =IF(G72="","",IF('Staff '!G70="Insufficient","Staffing",$E$8-SLA($B72,H$12,$E$8*2,$E$7+$J$7)*($E$8))) ->  | I72: =IF(H72="","",IF('Staff '!H70="Insufficient","Staffing",$E$8-SLA($B72,I$12,$E$8*2,$E$7+$J$7)*($E$8))) ->  | J72: =IF(I72="","",IF('Staff '!I70="Insufficient","Staffing",$E$8-SLA($B72,J$12,$E$8*2,$E$7+$J$7)*($E$8))) ->  | K72: =IF(J72="","",IF('Staff '!J70="Insufficient","Staffing",$E$8-SLA($B72,K$12,$E$8*2,$E$7+$J$7)*($E$8))) ->  | L72: =IF(K72="","",IF('Staff '!K70="Insufficient","Staffing",$E$8-SLA($B72,L$12,$E$8*2,$E$7+$J$7)*($E$8))) ->  | M72: =IF(L72="","",IF('Staff '!L70="Insufficient","Staffing",$E$8-SLA($B72,M$12,$E$8*2,$E$7+$J$7)*($E$8))) ->  | N72: =IF(M72="","",IF('Staff '!M70="Insufficient","Staffing",$E$8-SLA($B72,N$12,$E$8*2,$E$7+$J$7)*($E$8))) ->  | O72: =IF(N72="","",IF('Staff '!N70="Insufficient","Staffing",$E$8-SLA($B72,O$12,$E$8*2,$E$7+$J$7)*($E$8))) ->  | P72: =IF(O72="","",IF('Staff '!O70="Insufficient","Staffing",$E$8-SLA($B72,P$12,$E$8*2,$E$7+$J$7)*($E$8))) ->  | Q72: =IF(P72="","",IF('Staff '!P70="Insufficient","Staffing",$E$8-SLA($B72,Q$12,$E$8*2,$E$7+$J$7)*($E$8))) ->  | R72: =IF(Q72="","",IF('Staff '!Q70="Insufficient","Staffing",$E$8-SLA($B72,R$12,$E$8*2,$E$7+$J$7)*($E$8))) ->  | S72: =IF(R72="","",IF('Staff '!R70="Insufficient","Staffing",$E$8-SLA($B72,S$12,$E$8*2,$E$7+$J$7)*($E$8))) ->  | T72: =IF(S72="","",IF('Staff '!S70="Insufficient","Staffing",$E$8-SLA($B72,T$12,$E$8*2,$E$7+$J$7)*($E$8))) ->  | U72: =IF(T72="","",IF('Staff '!T70="Insufficient","Staffing",$E$8-SLA($B72,U$12,$E$8*2,$E$7+$J$7)*($E$8))) -> 
B73: ='Staff '!B71 ->  | C73: =IF('Staff '!H71="","",SLA($B73,$J$8,$E$8*2,$E$7+$J$7)) ->  | D73: =IF($B73="","",IF('Staff '!C71="Insufficient","Staffing",$E$8-SLA($B73,D$12,$E$8*2,$E$7+$J$7)*($E$8))) ->  | E73: =IF('Staff '!H71="","",IF('Staff '!D71="Insufficient","Staffing",$E$8-SLA($B73,E$12,$E$8*2,$E$7+$J$7)*($E$8))) ->  | F73: =IF(E73="","",IF('Staff '!E71="Insufficient","Staffing",$E$8-SLA($B73,F$12,$E$8*2,$E$7+$J$7)*($E$8))) ->  | G73: =IF(F73="","",IF('Staff '!F71="Insufficient","Staffing",$E$8-SLA($B73,G$12,$E$8*2,$E$7+$J$7)*($E$8))) ->  | H73: =IF(G73="","",IF('Staff '!G71="Insufficient","Staffing",$E$8-SLA($B73,H$12,$E$8*2,$E$7+$J$7)*($E$8))) ->  | I73: =IF(H73="","",IF('Staff '!H71="Insufficient","Staffing",$E$8-SLA($B73,I$12,$E$8*2,$E$7+$J$7)*($E$8))) ->  | J73: =IF(I73="","",IF('Staff '!I71="Insufficient","Staffing",$E$8-SLA($B73,J$12,$E$8*2,$E$7+$J$7)*($E$8))) ->  | K73: =IF(J73="","",IF('Staff '!J71="Insufficient","Staffing",$E$8-SLA($B73,K$12,$E$8*2,$E$7+$J$7)*($E$8))) ->  | L73: =IF(K73="","",IF('Staff '!K71="Insufficient","Staffing",$E$8-SLA($B73,L$12,$E$8*2,$E$7+$J$7)*($E$8))) ->  | M73: =IF(L73="","",IF('Staff '!L71="Insufficient","Staffing",$E$8-SLA($B73,M$12,$E$8*2,$E$7+$J$7)*($E$8))) ->  | N73: =IF(M73="","",IF('Staff '!M71="Insufficient","Staffing",$E$8-SLA($B73,N$12,$E$8*2,$E$7+$J$7)*($E$8))) ->  | O73: =IF(N73="","",IF('Staff '!N71="Insufficient","Staffing",$E$8-SLA($B73,O$12,$E$8*2,$E$7+$J$7)*($E$8))) ->  | P73: =IF(O73="","",IF('Staff '!O71="Insufficient","Staffing",$E$8-SLA($B73,P$12,$E$8*2,$E$7+$J$7)*($E$8))) ->  | Q73: =IF(P73="","",IF('Staff '!P71="Insufficient","Staffing",$E$8-SLA($B73,Q$12,$E$8*2,$E$7+$J$7)*($E$8))) ->  | R73: =IF(Q73="","",IF('Staff '!Q71="Insufficient","Staffing",$E$8-SLA($B73,R$12,$E$8*2,$E$7+$J$7)*($E$8))) ->  | S73: =IF(R73="","",IF('Staff '!R71="Insufficient","Staffing",$E$8-SLA($B73,S$12,$E$8*2,$E$7+$J$7)*($E$8))) ->  | T73: =IF(S73="","",IF('Staff '!S71="Insufficient","Staffing",$E$8-SLA($B73,T$12,$E$8*2,$E$7+$J$7)*($E$8))) ->  | U73: =IF(T73="","",IF('Staff '!T71="Insufficient","Staffing",$E$8-SLA($B73,U$12,$E$8*2,$E$7+$J$7)*($E$8))) -> 
B74: ='Staff '!B72 ->  | C74: =IF('Staff '!H72="","",SLA($B74,$J$8,$E$8*2,$E$7+$J$7)) ->  | D74: =IF($B74="","",IF('Staff '!C72="Insufficient","Staffing",$E$8-SLA($B74,D$12,$E$8*2,$E$7+$J$7)*($E$8))) ->  | E74: =IF('Staff '!H72="","",IF('Staff '!D72="Insufficient","Staffing",$E$8-SLA($B74,E$12,$E$8*2,$E$7+$J$7)*($E$8))) ->  | F74: =IF(E74="","",IF('Staff '!E72="Insufficient","Staffing",$E$8-SLA($B74,F$12,$E$8*2,$E$7+$J$7)*($E$8))) ->  | G74: =IF(F74="","",IF('Staff '!F72="Insufficient","Staffing",$E$8-SLA($B74,G$12,$E$8*2,$E$7+$J$7)*($E$8))) ->  | H74: =IF(G74="","",IF('Staff '!G72="Insufficient","Staffing",$E$8-SLA($B74,H$12,$E$8*2,$E$7+$J$7)*($E$8))) ->  | I74: =IF(H74="","",IF('Staff '!H72="Insufficient","Staffing",$E$8-SLA($B74,I$12,$E$8*2,$E$7+$J$7)*($E$8))) ->  | J74: =IF(I74="","",IF('Staff '!I72="Insufficient","Staffing",$E$8-SLA($B74,J$12,$E$8*2,$E$7+$J$7)*($E$8))) ->  | K74: =IF(J74="","",IF('Staff '!J72="Insufficient","Staffing",$E$8-SLA($B74,K$12,$E$8*2,$E$7+$J$7)*($E$8))) ->  | L74: =IF(K74="","",IF('Staff '!K72="Insufficient","Staffing",$E$8-SLA($B74,L$12,$E$8*2,$E$7+$J$7)*($E$8))) ->  | M74: =IF(L74="","",IF('Staff '!L72="Insufficient","Staffing",$E$8-SLA($B74,M$12,$E$8*2,$E$7+$J$7)*($E$8))) ->  | N74: =IF(M74="","",IF('Staff '!M72="Insufficient","Staffing",$E$8-SLA($B74,N$12,$E$8*2,$E$7+$J$7)*($E$8))) ->  | O74: =IF(N74="","",IF('Staff '!N72="Insufficient","Staffing",$E$8-SLA($B74,O$12,$E$8*2,$E$7+$J$7)*($E$8))) ->  | P74: =IF(O74="","",IF('Staff '!O72="Insufficient","Staffing",$E$8-SLA($B74,P$12,$E$8*2,$E$7+$J$7)*($E$8))) ->  | Q74: =IF(P74="","",IF('Staff '!P72="Insufficient","Staffing",$E$8-SLA($B74,Q$12,$E$8*2,$E$7+$J$7)*($E$8))) ->  | R74: =IF(Q74="","",IF('Staff '!Q72="Insufficient","Staffing",$E$8-SLA($B74,R$12,$E$8*2,$E$7+$J$7)*($E$8))) ->  | S74: =IF(R74="","",IF('Staff '!R72="Insufficient","Staffing",$E$8-SLA($B74,S$12,$E$8*2,$E$7+$J$7)*($E$8))) ->  | T74: =IF(S74="","",IF('Staff '!S72="Insufficient","Staffing",$E$8-SLA($B74,T$12,$E$8*2,$E$7+$J$7)*($E$8))) ->  | U74: =IF(T74="","",IF('Staff '!T72="Insufficient","Staffing",$E$8-SLA($B74,U$12,$E$8*2,$E$7+$J$7)*($E$8))) -> 
B75: ='Staff '!B73 ->  | C75: =IF('Staff '!H73="","",SLA($B75,$J$8,$E$8*2,$E$7+$J$7)) ->  | D75: =IF($B75="","",IF('Staff '!C73="Insufficient","Staffing",$E$8-SLA($B75,D$12,$E$8*2,$E$7+$J$7)*($E$8))) ->  | E75: =IF('Staff '!H73="","",IF('Staff '!D73="Insufficient","Staffing",$E$8-SLA($B75,E$12,$E$8*2,$E$7+$J$7)*($E$8))) ->  | F75: =IF(E75="","",IF('Staff '!E73="Insufficient","Staffing",$E$8-SLA($B75,F$12,$E$8*2,$E$7+$J$7)*($E$8))) ->  | G75: =IF(F75="","",IF('Staff '!F73="Insufficient","Staffing",$E$8-SLA($B75,G$12,$E$8*2,$E$7+$J$7)*($E$8))) ->  | H75: =IF(G75="","",IF('Staff '!G73="Insufficient","Staffing",$E$8-SLA($B75,H$12,$E$8*2,$E$7+$J$7)*($E$8))) ->  | I75: =IF(H75="","",IF('Staff '!H73="Insufficient","Staffing",$E$8-SLA($B75,I$12,$E$8*2,$E$7+$J$7)*($E$8))) ->  | J75: =IF(I75="","",IF('Staff '!I73="Insufficient","Staffing",$E$8-SLA($B75,J$12,$E$8*2,$E$7+$J$7)*($E$8))) ->  | K75: =IF(J75="","",IF('Staff '!J73="Insufficient","Staffing",$E$8-SLA($B75,K$12,$E$8*2,$E$7+$J$7)*($E$8))) ->  | L75: =IF(K75="","",IF('Staff '!K73="Insufficient","Staffing",$E$8-SLA($B75,L$12,$E$8*2,$E$7+$J$7)*($E$8))) ->  | M75: =IF(L75="","",IF('Staff '!L73="Insufficient","Staffing",$E$8-SLA($B75,M$12,$E$8*2,$E$7+$J$7)*($E$8))) ->  | N75: =IF(M75="","",IF('Staff '!M73="Insufficient","Staffing",$E$8-SLA($B75,N$12,$E$8*2,$E$7+$J$7)*($E$8))) ->  | O75: =IF(N75="","",IF('Staff '!N73="Insufficient","Staffing",$E$8-SLA($B75,O$12,$E$8*2,$E$7+$J$7)*($E$8))) ->  | P75: =IF(O75="","",IF('Staff '!O73="Insufficient","Staffing",$E$8-SLA($B75,P$12,$E$8*2,$E$7+$J$7)*($E$8))) ->  | Q75: =IF(P75="","",IF('Staff '!P73="Insufficient","Staffing",$E$8-SLA($B75,Q$12,$E$8*2,$E$7+$J$7)*($E$8))) ->  | R75: =IF(Q75="","",IF('Staff '!Q73="Insufficient","Staffing",$E$8-SLA($B75,R$12,$E$8*2,$E$7+$J$7)*($E$8))) ->  | S75: =IF(R75="","",IF('Staff '!R73="Insufficient","Staffing",$E$8-SLA($B75,S$12,$E$8*2,$E$7+$J$7)*($E$8))) ->  | T75: =IF(S75="","",IF('Staff '!S73="Insufficient","Staffing",$E$8-SLA($B75,T$12,$E$8*2,$E$7+$J$7)*($E$8))) ->  | U75: =IF(T75="","",IF('Staff '!T73="Insufficient","Staffing",$E$8-SLA($B75,U$12,$E$8*2,$E$7+$J$7)*($E$8))) -> 
B76: ='Staff '!B74 ->  | C76: =IF('Staff '!H74="","",SLA($B76,$J$8,$E$8*2,$E$7+$J$7)) ->  | D76: =IF($B76="","",IF('Staff '!C74="Insufficient","Staffing",$E$8-SLA($B76,D$12,$E$8*2,$E$7+$J$7)*($E$8))) ->  | E76: =IF('Staff '!H74="","",IF('Staff '!D74="Insufficient","Staffing",$E$8-SLA($B76,E$12,$E$8*2,$E$7+$J$7)*($E$8))) ->  | F76: =IF(E76="","",IF('Staff '!E74="Insufficient","Staffing",$E$8-SLA($B76,F$12,$E$8*2,$E$7+$J$7)*($E$8))) ->  | G76: =IF(F76="","",IF('Staff '!F74="Insufficient","Staffing",$E$8-SLA($B76,G$12,$E$8*2,$E$7+$J$7)*($E$8))) ->  | H76: =IF(G76="","",IF('Staff '!G74="Insufficient","Staffing",$E$8-SLA($B76,H$12,$E$8*2,$E$7+$J$7)*($E$8))) ->  | I76: =IF(H76="","",IF('Staff '!H74="Insufficient","Staffing",$E$8-SLA($B76,I$12,$E$8*2,$E$7+$J$7)*($E$8))) ->  | J76: =IF(I76="","",IF('Staff '!I74="Insufficient","Staffing",$E$8-SLA($B76,J$12,$E$8*2,$E$7+$J$7)*($E$8))) ->  | K76: =IF(J76="","",IF('Staff '!J74="Insufficient","Staffing",$E$8-SLA($B76,K$12,$E$8*2,$E$7+$J$7)*($E$8))) ->  | L76: =IF(K76="","",IF('Staff '!K74="Insufficient","Staffing",$E$8-SLA($B76,L$12,$E$8*2,$E$7+$J$7)*($E$8))) ->  | M76: =IF(L76="","",IF('Staff '!L74="Insufficient","Staffing",$E$8-SLA($B76,M$12,$E$8*2,$E$7+$J$7)*($E$8))) ->  | N76: =IF(M76="","",IF('Staff '!M74="Insufficient","Staffing",$E$8-SLA($B76,N$12,$E$8*2,$E$7+$J$7)*($E$8))) ->  | O76: =IF(N76="","",IF('Staff '!N74="Insufficient","Staffing",$E$8-SLA($B76,O$12,$E$8*2,$E$7+$J$7)*($E$8))) ->  | P76: =IF(O76="","",IF('Staff '!O74="Insufficient","Staffing",$E$8-SLA($B76,P$12,$E$8*2,$E$7+$J$7)*($E$8))) ->  | Q76: =IF(P76="","",IF('Staff '!P74="Insufficient","Staffing",$E$8-SLA($B76,Q$12,$E$8*2,$E$7+$J$7)*($E$8))) ->  | R76: =IF(Q76="","",IF('Staff '!Q74="Insufficient","Staffing",$E$8-SLA($B76,R$12,$E$8*2,$E$7+$J$7)*($E$8))) ->  | S76: =IF(R76="","",IF('Staff '!R74="Insufficient","Staffing",$E$8-SLA($B76,S$12,$E$8*2,$E$7+$J$7)*($E$8))) ->  | T76: =IF(S76="","",IF('Staff '!S74="Insufficient","Staffing",$E$8-SLA($B76,T$12,$E$8*2,$E$7+$J$7)*($E$8))) ->  | U76: =IF(T76="","",IF('Staff '!T74="Insufficient","Staffing",$E$8-SLA($B76,U$12,$E$8*2,$E$7+$J$7)*($E$8))) -> 
B77: ='Staff '!B75 ->  | C77: =IF('Staff '!H75="","",SLA($B77,$J$8,$E$8*2,$E$7+$J$7)) ->  | D77: =IF($B77="","",IF('Staff '!C75="Insufficient","Staffing",$E$8-SLA($B77,D$12,$E$8*2,$E$7+$J$7)*($E$8))) ->  | E77: =IF('Staff '!H75="","",IF('Staff '!D75="Insufficient","Staffing",$E$8-SLA($B77,E$12,$E$8*2,$E$7+$J$7)*($E$8))) ->  | F77: =IF(E77="","",IF('Staff '!E75="Insufficient","Staffing",$E$8-SLA($B77,F$12,$E$8*2,$E$7+$J$7)*($E$8))) ->  | G77: =IF(F77="","",IF('Staff '!F75="Insufficient","Staffing",$E$8-SLA($B77,G$12,$E$8*2,$E$7+$J$7)*($E$8))) ->  | H77: =IF(G77="","",IF('Staff '!G75="Insufficient","Staffing",$E$8-SLA($B77,H$12,$E$8*2,$E$7+$J$7)*($E$8))) ->  | I77: =IF(H77="","",IF('Staff '!H75="Insufficient","Staffing",$E$8-SLA($B77,I$12,$E$8*2,$E$7+$J$7)*($E$8))) ->  | J77: =IF(I77="","",IF('Staff '!I75="Insufficient","Staffing",$E$8-SLA($B77,J$12,$E$8*2,$E$7+$J$7)*($E$8))) ->  | K77: =IF(J77="","",IF('Staff '!J75="Insufficient","Staffing",$E$8-SLA($B77,K$12,$E$8*2,$E$7+$J$7)*($E$8))) ->  | L77: =IF(K77="","",IF('Staff '!K75="Insufficient","Staffing",$E$8-SLA($B77,L$12,$E$8*2,$E$7+$J$7)*($E$8))) ->  | M77: =IF(L77="","",IF('Staff '!L75="Insufficient","Staffing",$E$8-SLA($B77,M$12,$E$8*2,$E$7+$J$7)*($E$8))) ->  | N77: =IF(M77="","",IF('Staff '!M75="Insufficient","Staffing",$E$8-SLA($B77,N$12,$E$8*2,$E$7+$J$7)*($E$8))) ->  | O77: =IF(N77="","",IF('Staff '!N75="Insufficient","Staffing",$E$8-SLA($B77,O$12,$E$8*2,$E$7+$J$7)*($E$8))) ->  | P77: =IF(O77="","",IF('Staff '!O75="Insufficient","Staffing",$E$8-SLA($B77,P$12,$E$8*2,$E$7+$J$7)*($E$8))) ->  | Q77: =IF(P77="","",IF('Staff '!P75="Insufficient","Staffing",$E$8-SLA($B77,Q$12,$E$8*2,$E$7+$J$7)*($E$8))) ->  | R77: =IF(Q77="","",IF('Staff '!Q75="Insufficient","Staffing",$E$8-SLA($B77,R$12,$E$8*2,$E$7+$J$7)*($E$8))) ->  | S77: =IF(R77="","",IF('Staff '!R75="Insufficient","Staffing",$E$8-SLA($B77,S$12,$E$8*2,$E$7+$J$7)*($E$8))) ->  | T77: =IF(S77="","",IF('Staff '!S75="Insufficient","Staffing",$E$8-SLA($B77,T$12,$E$8*2,$E$7+$J$7)*($E$8))) ->  | U77: =IF(T77="","",IF('Staff '!T75="Insufficient","Staffing",$E$8-SLA($B77,U$12,$E$8*2,$E$7+$J$7)*($E$8))) -> 
B78: ='Staff '!B76 ->  | C78: =IF('Staff '!H76="","",SLA($B78,$J$8,$E$8*2,$E$7+$J$7)) ->  | D78: =IF($B78="","",IF('Staff '!C76="Insufficient","Staffing",$E$8-SLA($B78,D$12,$E$8*2,$E$7+$J$7)*($E$8))) ->  | E78: =IF('Staff '!H76="","",IF('Staff '!D76="Insufficient","Staffing",$E$8-SLA($B78,E$12,$E$8*2,$E$7+$J$7)*($E$8))) ->  | F78: =IF(E78="","",IF('Staff '!E76="Insufficient","Staffing",$E$8-SLA($B78,F$12,$E$8*2,$E$7+$J$7)*($E$8))) ->  | G78: =IF(F78="","",IF('Staff '!F76="Insufficient","Staffing",$E$8-SLA($B78,G$12,$E$8*2,$E$7+$J$7)*($E$8))) ->  | H78: =IF(G78="","",IF('Staff '!G76="Insufficient","Staffing",$E$8-SLA($B78,H$12,$E$8*2,$E$7+$J$7)*($E$8))) ->  | I78: =IF(H78="","",IF('Staff '!H76="Insufficient","Staffing",$E$8-SLA($B78,I$12,$E$8*2,$E$7+$J$7)*($E$8))) ->  | J78: =IF(I78="","",IF('Staff '!I76="Insufficient","Staffing",$E$8-SLA($B78,J$12,$E$8*2,$E$7+$J$7)*($E$8))) ->  | K78: =IF(J78="","",IF('Staff '!J76="Insufficient","Staffing",$E$8-SLA($B78,K$12,$E$8*2,$E$7+$J$7)*($E$8))) ->  | L78: =IF(K78="","",IF('Staff '!K76="Insufficient","Staffing",$E$8-SLA($B78,L$12,$E$8*2,$E$7+$J$7)*($E$8))) ->  | M78: =IF(L78="","",IF('Staff '!L76="Insufficient","Staffing",$E$8-SLA($B78,M$12,$E$8*2,$E$7+$J$7)*($E$8))) ->  | N78: =IF(M78="","",IF('Staff '!M76="Insufficient","Staffing",$E$8-SLA($B78,N$12,$E$8*2,$E$7+$J$7)*($E$8))) ->  | O78: =IF(N78="","",IF('Staff '!N76="Insufficient","Staffing",$E$8-SLA($B78,O$12,$E$8*2,$E$7+$J$7)*($E$8))) ->  | P78: =IF(O78="","",IF('Staff '!O76="Insufficient","Staffing",$E$8-SLA($B78,P$12,$E$8*2,$E$7+$J$7)*($E$8))) ->  | Q78: =IF(P78="","",IF('Staff '!P76="Insufficient","Staffing",$E$8-SLA($B78,Q$12,$E$8*2,$E$7+$J$7)*($E$8))) ->  | R78: =IF(Q78="","",IF('Staff '!Q76="Insufficient","Staffing",$E$8-SLA($B78,R$12,$E$8*2,$E$7+$J$7)*($E$8))) ->  | S78: =IF(R78="","",IF('Staff '!R76="Insufficient","Staffing",$E$8-SLA($B78,S$12,$E$8*2,$E$7+$J$7)*($E$8))) ->  | T78: =IF(S78="","",IF('Staff '!S76="Insufficient","Staffing",$E$8-SLA($B78,T$12,$E$8*2,$E$7+$J$7)*($E$8))) ->  | U78: =IF(T78="","",IF('Staff '!T76="Insufficient","Staffing",$E$8-SLA($B78,U$12,$E$8*2,$E$7+$J$7)*($E$8))) -> 
B79: ='Staff '!B77 ->  | C79: =IF('Staff '!H77="","",SLA($B79,$J$8,$E$8*2,$E$7+$J$7)) ->  | D79: =IF($B79="","",IF('Staff '!C77="Insufficient","Staffing",$E$8-SLA($B79,D$12,$E$8*2,$E$7+$J$7)*($E$8))) ->  | E79: =IF('Staff '!H77="","",IF('Staff '!D77="Insufficient","Staffing",$E$8-SLA($B79,E$12,$E$8*2,$E$7+$J$7)*($E$8))) ->  | F79: =IF(E79="","",IF('Staff '!E77="Insufficient","Staffing",$E$8-SLA($B79,F$12,$E$8*2,$E$7+$J$7)*($E$8))) ->  | G79: =IF(F79="","",IF('Staff '!F77="Insufficient","Staffing",$E$8-SLA($B79,G$12,$E$8*2,$E$7+$J$7)*($E$8))) ->  | H79: =IF(G79="","",IF('Staff '!G77="Insufficient","Staffing",$E$8-SLA($B79,H$12,$E$8*2,$E$7+$J$7)*($E$8))) ->  | I79: =IF(H79="","",IF('Staff '!H77="Insufficient","Staffing",$E$8-SLA($B79,I$12,$E$8*2,$E$7+$J$7)*($E$8))) ->  | J79: =IF(I79="","",IF('Staff '!I77="Insufficient","Staffing",$E$8-SLA($B79,J$12,$E$8*2,$E$7+$J$7)*($E$8))) ->  | K79: =IF(J79="","",IF('Staff '!J77="Insufficient","Staffing",$E$8-SLA($B79,K$12,$E$8*2,$E$7+$J$7)*($E$8))) ->  | L79: =IF(K79="","",IF('Staff '!K77="Insufficient","Staffing",$E$8-SLA($B79,L$12,$E$8*2,$E$7+$J$7)*($E$8))) ->  | M79: =IF(L79="","",IF('Staff '!L77="Insufficient","Staffing",$E$8-SLA($B79,M$12,$E$8*2,$E$7+$J$7)*($E$8))) ->  | N79: =IF(M79="","",IF('Staff '!M77="Insufficient","Staffing",$E$8-SLA($B79,N$12,$E$8*2,$E$7+$J$7)*($E$8))) ->  | O79: =IF(N79="","",IF('Staff '!N77="Insufficient","Staffing",$E$8-SLA($B79,O$12,$E$8*2,$E$7+$J$7)*($E$8))) ->  | P79: =IF(O79="","",IF('Staff '!O77="Insufficient","Staffing",$E$8-SLA($B79,P$12,$E$8*2,$E$7+$J$7)*($E$8))) ->  | Q79: =IF(P79="","",IF('Staff '!P77="Insufficient","Staffing",$E$8-SLA($B79,Q$12,$E$8*2,$E$7+$J$7)*($E$8))) ->  | R79: =IF(Q79="","",IF('Staff '!Q77="Insufficient","Staffing",$E$8-SLA($B79,R$12,$E$8*2,$E$7+$J$7)*($E$8))) ->  | S79: =IF(R79="","",IF('Staff '!R77="Insufficient","Staffing",$E$8-SLA($B79,S$12,$E$8*2,$E$7+$J$7)*($E$8))) ->  | T79: =IF(S79="","",IF('Staff '!S77="Insufficient","Staffing",$E$8-SLA($B79,T$12,$E$8*2,$E$7+$J$7)*($E$8))) ->  | U79: =IF(T79="","",IF('Staff '!T77="Insufficient","Staffing",$E$8-SLA($B79,U$12,$E$8*2,$E$7+$J$7)*($E$8))) -> 
B80: ='Staff '!B78 ->  | C80: =IF('Staff '!H78="","",SLA($B80,$J$8,$E$8*2,$E$7+$J$7)) ->  | D80: =IF($B80="","",IF('Staff '!C78="Insufficient","Staffing",$E$8-SLA($B80,D$12,$E$8*2,$E$7+$J$7)*($E$8))) ->  | E80: =IF('Staff '!H78="","",IF('Staff '!D78="Insufficient","Staffing",$E$8-SLA($B80,E$12,$E$8*2,$E$7+$J$7)*($E$8))) ->  | F80: =IF(E80="","",IF('Staff '!E78="Insufficient","Staffing",$E$8-SLA($B80,F$12,$E$8*2,$E$7+$J$7)*($E$8))) ->  | G80: =IF(F80="","",IF('Staff '!F78="Insufficient","Staffing",$E$8-SLA($B80,G$12,$E$8*2,$E$7+$J$7)*($E$8))) ->  | H80: =IF(G80="","",IF('Staff '!G78="Insufficient","Staffing",$E$8-SLA($B80,H$12,$E$8*2,$E$7+$J$7)*($E$8))) ->  | I80: =IF(H80="","",IF('Staff '!H78="Insufficient","Staffing",$E$8-SLA($B80,I$12,$E$8*2,$E$7+$J$7)*($E$8))) ->  | J80: =IF(I80="","",IF('Staff '!I78="Insufficient","Staffing",$E$8-SLA($B80,J$12,$E$8*2,$E$7+$J$7)*($E$8))) ->  | K80: =IF(J80="","",IF('Staff '!J78="Insufficient","Staffing",$E$8-SLA($B80,K$12,$E$8*2,$E$7+$J$7)*($E$8))) ->  | L80: =IF(K80="","",IF('Staff '!K78="Insufficient","Staffing",$E$8-SLA($B80,L$12,$E$8*2,$E$7+$J$7)*($E$8))) ->  | M80: =IF(L80="","",IF('Staff '!L78="Insufficient","Staffing",$E$8-SLA($B80,M$12,$E$8*2,$E$7+$J$7)*($E$8))) ->  | N80: =IF(M80="","",IF('Staff '!M78="Insufficient","Staffing",$E$8-SLA($B80,N$12,$E$8*2,$E$7+$J$7)*($E$8))) ->  | O80: =IF(N80="","",IF('Staff '!N78="Insufficient","Staffing",$E$8-SLA($B80,O$12,$E$8*2,$E$7+$J$7)*($E$8))) ->  | P80: =IF(O80="","",IF('Staff '!O78="Insufficient","Staffing",$E$8-SLA($B80,P$12,$E$8*2,$E$7+$J$7)*($E$8))) ->  | Q80: =IF(P80="","",IF('Staff '!P78="Insufficient","Staffing",$E$8-SLA($B80,Q$12,$E$8*2,$E$7+$J$7)*($E$8))) ->  | R80: =IF(Q80="","",IF('Staff '!Q78="Insufficient","Staffing",$E$8-SLA($B80,R$12,$E$8*2,$E$7+$J$7)*($E$8))) ->  | S80: =IF(R80="","",IF('Staff '!R78="Insufficient","Staffing",$E$8-SLA($B80,S$12,$E$8*2,$E$7+$J$7)*($E$8))) ->  | T80: =IF(S80="","",IF('Staff '!S78="Insufficient","Staffing",$E$8-SLA($B80,T$12,$E$8*2,$E$7+$J$7)*($E$8))) ->  | U80: =IF(T80="","",IF('Staff '!T78="Insufficient","Staffing",$E$8-SLA($B80,U$12,$E$8*2,$E$7+$J$7)*($E$8))) -> 
B81: ='Staff '!B79 ->  | C81: =IF('Staff '!H79="","",SLA($B81,$J$8,$E$8*2,$E$7+$J$7)) ->  | D81: =IF($B81="","",IF('Staff '!C79="Insufficient","Staffing",$E$8-SLA($B81,D$12,$E$8*2,$E$7+$J$7)*($E$8))) ->  | E81: =IF('Staff '!H79="","",IF('Staff '!D79="Insufficient","Staffing",$E$8-SLA($B81,E$12,$E$8*2,$E$7+$J$7)*($E$8))) ->  | F81: =IF(E81="","",IF('Staff '!E79="Insufficient","Staffing",$E$8-SLA($B81,F$12,$E$8*2,$E$7+$J$7)*($E$8))) ->  | G81: =IF(F81="","",IF('Staff '!F79="Insufficient","Staffing",$E$8-SLA($B81,G$12,$E$8*2,$E$7+$J$7)*($E$8))) ->  | H81: =IF(G81="","",IF('Staff '!G79="Insufficient","Staffing",$E$8-SLA($B81,H$12,$E$8*2,$E$7+$J$7)*($E$8))) ->  | I81: =IF(H81="","",IF('Staff '!H79="Insufficient","Staffing",$E$8-SLA($B81,I$12,$E$8*2,$E$7+$J$7)*($E$8))) ->  | J81: =IF(I81="","",IF('Staff '!I79="Insufficient","Staffing",$E$8-SLA($B81,J$12,$E$8*2,$E$7+$J$7)*($E$8))) ->  | K81: =IF(J81="","",IF('Staff '!J79="Insufficient","Staffing",$E$8-SLA($B81,K$12,$E$8*2,$E$7+$J$7)*($E$8))) ->  | L81: =IF(K81="","",IF('Staff '!K79="Insufficient","Staffing",$E$8-SLA($B81,L$12,$E$8*2,$E$7+$J$7)*($E$8))) ->  | M81: =IF(L81="","",IF('Staff '!L79="Insufficient","Staffing",$E$8-SLA($B81,M$12,$E$8*2,$E$7+$J$7)*($E$8))) ->  | N81: =IF(M81="","",IF('Staff '!M79="Insufficient","Staffing",$E$8-SLA($B81,N$12,$E$8*2,$E$7+$J$7)*($E$8))) ->  | O81: =IF(N81="","",IF('Staff '!N79="Insufficient","Staffing",$E$8-SLA($B81,O$12,$E$8*2,$E$7+$J$7)*($E$8))) ->  | P81: =IF(O81="","",IF('Staff '!O79="Insufficient","Staffing",$E$8-SLA($B81,P$12,$E$8*2,$E$7+$J$7)*($E$8))) ->  | Q81: =IF(P81="","",IF('Staff '!P79="Insufficient","Staffing",$E$8-SLA($B81,Q$12,$E$8*2,$E$7+$J$7)*($E$8))) ->  | R81: =IF(Q81="","",IF('Staff '!Q79="Insufficient","Staffing",$E$8-SLA($B81,R$12,$E$8*2,$E$7+$J$7)*($E$8))) ->  | S81: =IF(R81="","",IF('Staff '!R79="Insufficient","Staffing",$E$8-SLA($B81,S$12,$E$8*2,$E$7+$J$7)*($E$8))) ->  | T81: =IF(S81="","",IF('Staff '!S79="Insufficient","Staffing",$E$8-SLA($B81,T$12,$E$8*2,$E$7+$J$7)*($E$8))) ->  | U81: =IF(T81="","",IF('Staff '!T79="Insufficient","Staffing",$E$8-SLA($B81,U$12,$E$8*2,$E$7+$J$7)*($E$8))) -> 
B82: ='Staff '!B80 ->  | C82: =IF('Staff '!H80="","",SLA($B82,$J$8,$E$8*2,$E$7+$J$7)) ->  | D82: =IF($B82="","",IF('Staff '!C80="Insufficient","Staffing",$E$8-SLA($B82,D$12,$E$8*2,$E$7+$J$7)*($E$8))) ->  | E82: =IF('Staff '!H80="","",IF('Staff '!D80="Insufficient","Staffing",$E$8-SLA($B82,E$12,$E$8*2,$E$7+$J$7)*($E$8))) ->  | F82: =IF(E82="","",IF('Staff '!E80="Insufficient","Staffing",$E$8-SLA($B82,F$12,$E$8*2,$E$7+$J$7)*($E$8))) ->  | G82: =IF(F82="","",IF('Staff '!F80="Insufficient","Staffing",$E$8-SLA($B82,G$12,$E$8*2,$E$7+$J$7)*($E$8))) ->  | H82: =IF(G82="","",IF('Staff '!G80="Insufficient","Staffing",$E$8-SLA($B82,H$12,$E$8*2,$E$7+$J$7)*($E$8))) ->  | I82: =IF(H82="","",IF('Staff '!H80="Insufficient","Staffing",$E$8-SLA($B82,I$12,$E$8*2,$E$7+$J$7)*($E$8))) ->  | J82: =IF(I82="","",IF('Staff '!I80="Insufficient","Staffing",$E$8-SLA($B82,J$12,$E$8*2,$E$7+$J$7)*($E$8))) ->  | K82: =IF(J82="","",IF('Staff '!J80="Insufficient","Staffing",$E$8-SLA($B82,K$12,$E$8*2,$E$7+$J$7)*($E$8))) ->  | L82: =IF(K82="","",IF('Staff '!K80="Insufficient","Staffing",$E$8-SLA($B82,L$12,$E$8*2,$E$7+$J$7)*($E$8))) ->  | M82: =IF(L82="","",IF('Staff '!L80="Insufficient","Staffing",$E$8-SLA($B82,M$12,$E$8*2,$E$7+$J$7)*($E$8))) ->  | N82: =IF(M82="","",IF('Staff '!M80="Insufficient","Staffing",$E$8-SLA($B82,N$12,$E$8*2,$E$7+$J$7)*($E$8))) ->  | O82: =IF(N82="","",IF('Staff '!N80="Insufficient","Staffing",$E$8-SLA($B82,O$12,$E$8*2,$E$7+$J$7)*($E$8))) ->  | P82: =IF(O82="","",IF('Staff '!O80="Insufficient","Staffing",$E$8-SLA($B82,P$12,$E$8*2,$E$7+$J$7)*($E$8))) ->  | Q82: =IF(P82="","",IF('Staff '!P80="Insufficient","Staffing",$E$8-SLA($B82,Q$12,$E$8*2,$E$7+$J$7)*($E$8))) ->  | R82: =IF(Q82="","",IF('Staff '!Q80="Insufficient","Staffing",$E$8-SLA($B82,R$12,$E$8*2,$E$7+$J$7)*($E$8))) ->  | S82: =IF(R82="","",IF('Staff '!R80="Insufficient","Staffing",$E$8-SLA($B82,S$12,$E$8*2,$E$7+$J$7)*($E$8))) ->  | T82: =IF(S82="","",IF('Staff '!S80="Insufficient","Staffing",$E$8-SLA($B82,T$12,$E$8*2,$E$7+$J$7)*($E$8))) ->  | U82: =IF(T82="","",IF('Staff '!T80="Insufficient","Staffing",$E$8-SLA($B82,U$12,$E$8*2,$E$7+$J$7)*($E$8))) -> 
B83: ='Staff '!B81 ->  | C83: =IF('Staff '!H81="","",SLA($B83,$J$8,$E$8*2,$E$7+$J$7)) ->  | D83: =IF($B83="","",IF('Staff '!C81="Insufficient","Staffing",$E$8-SLA($B83,D$12,$E$8*2,$E$7+$J$7)*($E$8))) ->  | E83: =IF('Staff '!H81="","",IF('Staff '!D81="Insufficient","Staffing",$E$8-SLA($B83,E$12,$E$8*2,$E$7+$J$7)*($E$8))) ->  | F83: =IF(E83="","",IF('Staff '!E81="Insufficient","Staffing",$E$8-SLA($B83,F$12,$E$8*2,$E$7+$J$7)*($E$8))) ->  | G83: =IF(F83="","",IF('Staff '!F81="Insufficient","Staffing",$E$8-SLA($B83,G$12,$E$8*2,$E$7+$J$7)*($E$8))) ->  | H83: =IF(G83="","",IF('Staff '!G81="Insufficient","Staffing",$E$8-SLA($B83,H$12,$E$8*2,$E$7+$J$7)*($E$8))) ->  | I83: =IF(H83="","",IF('Staff '!H81="Insufficient","Staffing",$E$8-SLA($B83,I$12,$E$8*2,$E$7+$J$7)*($E$8))) ->  | J83: =IF(I83="","",IF('Staff '!I81="Insufficient","Staffing",$E$8-SLA($B83,J$12,$E$8*2,$E$7+$J$7)*($E$8))) ->  | K83: =IF(J83="","",IF('Staff '!J81="Insufficient","Staffing",$E$8-SLA($B83,K$12,$E$8*2,$E$7+$J$7)*($E$8))) ->  | L83: =IF(K83="","",IF('Staff '!K81="Insufficient","Staffing",$E$8-SLA($B83,L$12,$E$8*2,$E$7+$J$7)*($E$8))) ->  | M83: =IF(L83="","",IF('Staff '!L81="Insufficient","Staffing",$E$8-SLA($B83,M$12,$E$8*2,$E$7+$J$7)*($E$8))) ->  | N83: =IF(M83="","",IF('Staff '!M81="Insufficient","Staffing",$E$8-SLA($B83,N$12,$E$8*2,$E$7+$J$7)*($E$8))) ->  | O83: =IF(N83="","",IF('Staff '!N81="Insufficient","Staffing",$E$8-SLA($B83,O$12,$E$8*2,$E$7+$J$7)*($E$8))) ->  | P83: =IF(O83="","",IF('Staff '!O81="Insufficient","Staffing",$E$8-SLA($B83,P$12,$E$8*2,$E$7+$J$7)*($E$8))) ->  | Q83: =IF(P83="","",IF('Staff '!P81="Insufficient","Staffing",$E$8-SLA($B83,Q$12,$E$8*2,$E$7+$J$7)*($E$8))) ->  | R83: =IF(Q83="","",IF('Staff '!Q81="Insufficient","Staffing",$E$8-SLA($B83,R$12,$E$8*2,$E$7+$J$7)*($E$8))) ->  | S83: =IF(R83="","",IF('Staff '!R81="Insufficient","Staffing",$E$8-SLA($B83,S$12,$E$8*2,$E$7+$J$7)*($E$8))) ->  | T83: =IF(S83="","",IF('Staff '!S81="Insufficient","Staffing",$E$8-SLA($B83,T$12,$E$8*2,$E$7+$J$7)*($E$8))) ->  | U83: =IF(T83="","",IF('Staff '!T81="Insufficient","Staffing",$E$8-SLA($B83,U$12,$E$8*2,$E$7+$J$7)*($E$8))) -> 

Sheet Trunks
B2: Customer Queue Calculator
B3: © Brad Cleveland
B4: Sponsored by: International Customer Management Institute (ICMI)
C6: For each trunk group, enter the Erlangs (hours) of traffic and the % blockage allowable*
J7: Trunks required:
C8: Erlangs of traffic for trunk group 1: | F8: 100 | G8: % blockage: | H8: 0.001 | J8: =NBTrunks(F8,H8) -> 128
C10: Erlangs of traffic for trunk group 2: | F10: 100 | G10: % blockage: | H10: 0.02 | J10: =NBTrunks(F10,H10) -> 113
C12: Erlangs of traffic for trunk group 3: | F12: 100 | G12: % blockage: | H12: 0.03 | J12: =NBTrunks(F12,H12) -> 110
C14: Erlangs of traffic for trunk group 4: | G14: % blockage: | J14: =NBTrunks(F14,H14) -> 0
C16: Erlangs of traffic for trunk group 5: | G16: % blockage: | J16: =NBTrunks(F16,H16) -> 0
B19: Blockage is the allowable percentage of customers who receive a busy signal or engaged message and do not enter the queue
B20: * An assumption of 0.1% or higher

Sheet SL & Occ Bar
B2: Customer Queue Calculator
B3: © Brad Cleveland
B4: Sponsored by: International Customer Management Institute (ICMI)
K6: ='Staff '!J6 -> *Measured in seconds
D8: ='Staff '!D7 -> Average Talk Time* | E8: ='Staff '!E7 -> 180 | I8: ='Staff '!I7 -> Average After Contact Work Time* | J8: ='Staff '!J7 -> 30
D9: ='Staff '!D8 -> Contacts Per Half Hour | E9: ='Staff '!E8 -> 250 | I9: ='Staff '!I8 -> Service Level Objective* | J9: ='Staff '!J8 -> 20

Sheet Instructions
B2: Customer Queue Calculator
B3: © Brad Cleveland
B4: Sponsored by: International Customer Management Institute (ICMI)
B6: Overview
B8: The Customer Queue Calculator is an easy-to-use tool that enables you to:
B10: · Estimate base staff requirements for any half hour.
B11: · Gain a wealth of related insight on customer delay times, employee occupancy (amount of time they are
B12: directly helping customers), and other variables.
B13: · Predict the workload that will be carried by systems (if applicable).
B14: · Illustrate the “power of one”—the impact each employee has on customers and other employees.
B16: Calculations are based on the widely-used Erlang C and Erlang B formulas (developed in 1917 by Denmark-based A.K. Erlang). The tool provides insight on base staff—breaks, holidays, and other variables that keep employees from the work are not accounted for. In that sense, this is not workforce management system, but an educational tool that clearly and simply illustrates the direct relationship between customers who need help and the employees required to help them.
B18: The tool is also ideal for seeing the impact of changes to workload or employees. Examples include:
B20: · Marketing that increases customer interactions
B21: · Product or process improvements that reduce (prevent) interactions
B22: · Training that improves first contact resolution
B23: · Better schedule adherence
B24: · Or many others
B26: Compatibility
B28: The calculator is generally compatible with Excel for Windows and Mac.
B30: Getting Started
B32: When opening the spreadsheet, you will be prompted by Excel to either enable macros or disable macros. For the calculations to work, choose “enable macros.”
B34: Staff
B36: Choose the staff tab to go to that sheet. Entries are made in yellow cells. Erlang C requires you to input four variables:
B38: Average talk time in seconds. Input the projected average for the future half hour you are analyzing.
B40: Average after-contact work in seconds. Input the projected average for the future half hour you are analyzing.
B42: Contacts per half hour. Input the projected volume for the future half hour you are analyzing.
B44: Service level in seconds. If your service level objective is for 90 percent of customers to reach an agent within in 20 seconds, you will input 20 seconds. If it’s 80 percent in 15 seconds, plug in 15 seconds. In other words, the program needs the Y seconds in the definition, “X percent of contacts answered in Y seconds.”
B46: The output provides a wealth of information and insight into the dynamics of customer queues. The program predicts a range of data on staffing requirements based on the information you provided. The range of answers always begins with the fewest number of agents that can handle the specified load (assuming no customer abandonments) and ends with service level at virtually 100%.
B48: To interpret the results, locate the row that reflects your target service level (SL%) or the closest percentage to your desired service level (you may want to use your mouse to highlight the row for easier viewing). The values in the other columns of that row correspond with your objective.
B50: It is easy to change any of your entries to see how that impacts results.
B52: Abbreviations
B54: Here’s what the column headings stand for:
B56: Agents: the number of agents required to be available to handle customer interactions.
B58: P(0): probability of a delay greater than zero seconds. In other words, the probability of a customer going into queue rather than immediately reaching an agent.
B60: ASA: average speed of answer.
B62: DLYDLY: average delay of delayed contacts. This is the average delay of those contacts that are delayed. (ASA looks at all contacts, DLYDLY only looks at those that go into queue.)
B64: Q1: average number of contacts in queue at any time, including times when there is no queue. The label is somewhat of a misnomer, because Q1 incorporates all contacts into the calculation, including those that don’t end up in queue. However, this column makes a useful contrast with the next, Q2.
B66: Q2: average number of contacts in queue when all agents are busy or when there is a queue. Again, this is an average, and there will sometimes be more contacts in queue, sometimes fewer. But this figure can provide useful guidance for what to look for when monitoring real-time information. Note: These predictions become less accurate when SL is so high that Q1 approaches 0.
B68: SL: service level, the percentage of contacts that will be answered (meaning, that will reach agents) within the number of seconds you specify.
B70: OCC: percent employee occupancy. The percentage of time employees will spend handling contacts, including talk time and after-contact work. The rest of the time they are available and waiting for contacts.
B72: TKLD: This column is the hours (erlangs) of trunk traffic, which is the product of (talk time + average speed of answer) x number of contacts in an hour. Because Erlang B, bandwidth calculators and other alternatives used for determining trunk and related system capacity often require input in hours, these numbers can be readily used as is. The actual traffic carried by trunks in a half hour will, in each row, be half of what is given.
B74: NOTE: If the first line of the table indicates "Insufficient Staffing," that means that technically there were just enough agents to handle the workload, but at 100% occupancy, which is not feasible. Erlang tables do not support this condition.
B76: Delay
B78: Choose the delay tab to go to that sheet. You’ll need to make entries in the staff sheet, which will then appear in the delay sheet.
B80: A good question to ask for any service level is, “What happens to the customers that don’t get answered in Y seconds?” This part of the program answers that question.
B82: For discussion purposes, input these variables into the staff module:
B83: Talk time: 180
B84: After contact work time: 30
B85: Contacts: 250
B86: Service level: 20
B88: Then return to the delay module. As you can see, 34 agents will result in a service level of 82 percent of contacts answered in 20 seconds. But here we get additional insight into what happens to individual customers. Sixty-five customers will wait five seconds or longer. In the next five seconds, seven of those customers reach agents, so only 58 customers are waiting 10 seconds or longer. In the next five seconds, six more customers will reach agents, leaving only 52 callers waiting 15 seconds or more. At this service level, one customer is still waiting three minutes or more.
B90: Note an important implication of delay: because of random contact arrival, different customers have different experiences. What’s the worst case that your organization is willing to tolerate? This becomes a key question when exploring these tradeoffs.
B92: Delay calculations and staff calculations are based on the same data. To change assumptions, enter new variables in the staff module.
B94: Trunks
B96: Select the Trunks tab to go to that sheet. These calculations are based on Erlang B.
B98: Enter the desired trunk load. This can be obtained from the last column of your staffing calculations for your desired service level.
B100: Enter the percentage of busy signals allowable. This number should be between 0.001 and 0.999.
B102: You can enter up to five different trunk load and busy signal combinations. The program calculates the number of trunks required to carry the erlangs (hours) of traffic you input, at the probability of blockage that you specify.
B104: SL & Occ Bar Chart
B106: This sheet shows a bar chart that illustrates service level and occupancy based on staffing levels. Variables are displayed in gray cells. You can change variables in the staff module.
B108: Erlang C and Erlang B Formulas
B110: Interested in the formulas behind these calculations? Here they are!
B112: Erlang C:
B116: Erlang B:
B120: Support
B122: For support, please contact Laura Grimes:
B124: Email: laura@harringtonconsulting.us
B125: Office: +1 248-842-2824
B127: This is a free program we make available to contact center and customer experience professionals, and we do not formally staff a support team. Please be understanding of response times.
B129: Interested in building your own spreadsheets? Erlang formulas are available for download at www.erlang.co.uk
B131: Help us Improve
B133: If you find bugs or have suggestions for how we can improve this program, please contact Laura Grimes:
B135: Email: laura@harringtonconsulting.us
B136: Office: +1 248-842-2824
B138: Limitation of Liability
B140: The purpose of this program is to educate and entertain. By using this program, you acknowledge that neither the developers nor sponsors shall have any liability or responsibility to any person or entity with respect to any loss or damage caused, or alleged to be caused, directly or indirectly, by the information provided by the program. We encourage you to consult a competent professional when making decisions related to staff and other resources.
B142: About
B144: © Brad Cleveland
B145: Sponsored by: International Customer Management Institute (ICMI)
B146: Version 1.2, July 22, 2022

Sheet Example (hidden)
A1: © Brad Cleveland
A2: Sponsored by: International Customer Management Institute (ICMI)
A3: Version: Beta V 1.0, July 1, 2021
B5: SLA% | C5: Service Time (sec) | D5: Calls per Hour | E5: AHT (secs) | F5: MaxWait (secs)
A6: Enter parameters here --> | B6: 0.85 | C6: 15 | D6: 100 | E6: 180 | F6: 30
B8: # Agents | C8: # Trunks | D8: SLA% | E8: % Queued | F8: Aband'd | G8: Utilisation | H8: ASA (secs) | I8: Queue Time (secs) | J8: Average Queue
B9: =B10-1 -> 6 | C9: =Trunks(B9,$D$6,$E$6) -> 18 | D9: =SLA(B9,$C$6,$D$6,$E$6) -> 0.4594587386 | E9: =Queued(B9,$D$6,$E$6) -> 0.5875164866 | F9: =Abandon(B9,$F$6,$D$6,$E$6) -> 0.4973219633 | G9: =Utilisation(B9,$D$6,$E$6) -> 0.8333333135 | H9: =ASA(B9,$D$6,$E$6) -> 106 | I9: =QueueTime(B9,$D$6,$E$6) -> 180 | J9: =QueueSize(B9,$D$6,$E$6) -> 3
B10: =B11-1 -> 7 | C10: 15 | D10: =SLA(B10,$C$6,$D$6,$E$6) -> 0.725612998 | E10: =Queued(B10,$D$6,$E$6) -> 0.3241499662 | F10: =Abandon(B10,$F$6,$D$6,$E$6) -> 0.2322635949 | G10: =Utilisation(B10,$D$6,$E$6) -> 0.7142857313 | H10: =ASA(B10,$D$6,$E$6) -> 29 | I10: =QueueTime(B10,$D$6,$E$6) -> 90 | J10: =QueueSize(B10,$D$6,$E$6) -> 1
A11: Answers are given here --> | B11: =Agents(B6,C6,D6,E6) -> 8 | C11: =Trunks(B11,$D$6,$E$6) -> 14 | D11: =SLA(B11,$C$6,$D$6,$E$6) -> 0.8697326779 | E11: 0.1672665179 | F11: =Abandon(B11,$F$6,$D$6,$E$6) -> 0.1014522687 | G11: =Utilisation(B11,$D$6,$E$6) -> 0.625 | H11: =ASA(B11,$D$6,$E$6) -> 10 | I11: =QueueTime(B11,$D$6,$E$6) -> 60 | J11: =QueueSize(B11,$D$6,$E$6) -> 0
B12: =B11+1 -> 9 | C12: 14 | D12: =SLA(B12,$C$6,$D$6,$E$6) -> 0.9423118234 | E12: 0.08051034808 | F12: =Abandon(B12,$F$6,$D$6,$E$6) -> 0.04133539274 | G12: =Utilisation(B12,$D$6,$E$6) -> 0.555555582 | H12: =ASA(B12,$D$6,$E$6) -> 4 | I12: =QueueTime(B12,$D$6,$E$6) -> 45 | J12: =QueueSize(B12,$D$6,$E$6) -> 0
B13: =B12+1 -> 10 | C13: 14 | D13: 0.9761978984 | E13: 0.03610536084 | F13: 0.01569132507 | G13: 0.5 | H13: 1 | I13: 36 | J13: 0
B14: 11 | C14: 14 | D14: 0.9908478856 | E14: 0.01508929953 | F14: 0.005551042967 | G14: 0.4545454681 | H14: 0 | I14: 30 | J14: 0
B15: 12 | C15: 14 | D15: 0.9967161417 | E15: 0.005884713959 | F15: 0.001832518843 | G15: 0.4166666567 | H15: 0 | I15: 26 | J15: 0
B16: 13 | C16: 14 | D16: 0.9988981485 | E16: 0.00214612647 | F16: 0.0005657128058 | G16: 0.3846153915 | H16: 0 | I16: 23 | J16: 0
B17: 14 | C17: 14 | D17: 0.999653399 | E17: 0.0007337857387 | F17: 0.0001637297246 | G17: 0.3571428657 | H17: 0 | I17: 20 | J17: 0
B18: 15 | C18: 15 | D18: =SLA(B18,$C$6,$D$6,$E$6) -> 0.99989748 | E18: 0.0002358658967 | F18: 4.454931332e-05 | G18: 0.3333333433 | H18: 0 | I18: 18 | J18: 0
C22: Agents | D22: Calls per hour | E22: AHT (secs)
A23: With this no. of agents etc --> | C23: =B11 -> 8 | D23: =D6 -> 100 | E23: =E6 -> 180
B25: SLA% | D25: Service Time
A26: Service level could be --> | B26: 1 | C26: in | D26: =ServiceTime($C$23,B26,$D$23,$E$23) -> 61 | E26: secs
A27: or | B27: 0.95 | C27: in | D27: =ServiceTime($C$23,B27,$D$23,$E$23) -> 43 | E27: secs
A28: or | B28: 0.9 | C28: in | D28: 25 | E28: secs
A29: .. | B29: 0.85 | C29: in | D29: 7 | E29: secs
B30: 0.8 | C30: in | D30: 0 | E30: secs
B31: 0.75 | C31: in | D31: 0 | E31: secs
B32: 0.7 | C32: in | D32: 0 | E32: secs
B33: 0.65 | C33: in | D33: 0 | E33: secs
B34: 0.6 | C34: in | D34: 0 | E34: secs
B35: 0.55 | C35: in | D35: 0 | E35: secs
B36: 0.5 | C36: in | D36: 0 | E36: secs
